Workbook

Sheet Diagramme
B3: Rohrdurchmesser | C3: 0.02 | D3: m

Sheet TC_1 bis Druckminderer
C2: Temperatur | E2: 338 | G2: Normdichte | H2: 0.08988
C3: Massenstrom | E3: =17.64*8 -> 141.12 | G3: Startdruck | H3: 20.00
C4: Rauigleit (mm) | E4: 4.00E-02
C5: Innendurchmesser (m) | E5: ='Diagramme '!C3 -> 0.02
C7: Rohr oder Ventil | D7: Länge Rohrleitung | E7: Innendruchmesser Rohr | F7: Rauigkeit | G7: Massenstrom H2 | H7: Massenstrom H2 | I7: Volumenstrom H2 | J7: Druck | K7: Temperatur | L7: Dichte | M7: dynamische Viskosität | N7: kinematische Viskosität | O7: Norm Dichte | P7: Norm Volumenstrom | Q7: Geschwindigkeit | R7: Mach-Zahl | S7: RE-Zahl | T7: k/d | U7: Rohrreibungszahl | V7: Kv-Wert | W7: Widerstandsbeiwert Zeta | X7: Durckverlust durch Komponente | Y7: Durckverlust durch Komponente | Z7: p_1 | AA7: p_2 | AB7: Delta p | AC7: Delta P aufsummiert
A9: System | B9: Komponente | C9: [-] | D9: [m] | E9: [m]2 | F9: [m]3 | G9: [kg/h] | H9: [kg/s] | I9: [m^3/s] | J9: [Pa] | K9: [K] | L9: [kg/m^3] | M9: [Pa*s] | N9: [m^2/s] | O9: [kg/m^3] | P9: [Nm^3/h] | Q9: [m/s] | R9: [-] | S9: [-] | T9: [-] | U9: [-] | V9: [m^3/h] | W9: [-] | X9: [Pa] | Y9: [bar] | Z9: [bar] | AA9: [bar] | AB9: [Pa] | AC9: [Pa]
B10: H2 Kupplung | C10: Ventil | E10: =IF(ISTEXT(E9),$E$5,E9) -> 0.02 | F10: =IF(ISTEXT(F9),E4*0.001,F9) -> 4.00E-05 | G10: =17.64*8 -> 141.12 | H10: =G10/3600 -> 0.0392 | I10: =H10/L10 -> 0.028 | J10: =IF(ISTEXT(AA9),$H$3*100000,AA9*100000) -> 2000000 | K10: =IF(ISTEXT(K9),E2,K9) -> 338 | L10: =Dichte(K10,J10) -> 1.41924 | M10: =VLOOKUP(J10*0.00001,'Datenbank Werte '!$A$1:$B$500,2,TRUE)*0.000001 -> 9.72E-06 | N10: =M10/L10 -> 6.85E-06 | O10: =IF(ISTEXT(O9),H2,O9) -> 8.99E-02 | P10: =Tabelle74[[#This Row],['[kg/h']]]/Tabelle74[[#This Row],['[kg/m^3']4]] -> 1570.09 | Q10: =H10*4/(L10*PI()*E10^2) -> 87.92 | R10: =Tabelle74[[#This Row],['[m/s']]]/VLOOKUP(J10*0.00001,'Datenbank Werte '!$A$1:$C$500,3,TRUE) -> 0.06 | S10: =(L10*Q10*E10)/M10 -> 2.5685E+05 | T10: =F10/E10 -> 2.0E-03 | U10: =Rohrreibungszahl(Tabelle74[[#This Row],['[-']]],Tabelle74[[#This Row],['[-']4]],Tabelle74[[#This Row],['[-']3]],Tabelle74[[#This Row],['[m']2]],Tabelle74[[#This Row],['[m']3]]) -> Nur bei 'Rohr' benötigt | V10: 3.53 | X10: =IF(Tabelle74[[#This Row],['[-']2]]>0,Tabelle74[[#This Row],['[-']2]]*(Tabelle74[[#This Row],['[kg/m^3']]]/2)*Tabelle74[[#This Row],['[m/s']]]^2,Druckverlust(Tabelle74[[#This Row],[Spalte1]],C10,U10,V10,P10,L10,O10,J10,K10,Q10,D10,E10)) -> 121072.38 | Y10: =X10/10^5 -> 1.210723779 | Z10: =J10/10^5 -> 20.00 | AA10: =Z10-Y10 -> 18.79 | AB10: =X10 -> 121072.38 | AC10: =SUM($AB$10:AB10) -> 121072.38
B11: Schlauch | C11: Rohr | D11: 1 | E11: =IF(ISTEXT(E10),$E$5,E10) -> 0.02 | F11: 4.00E-05 | G11: 141.12 | H11: 0.0392 | I11: 0.029 | J11: =IF(ISTEXT(AA10),$H$3*100000,AA10*100000) -> 1878927.622 | K11: =IF(ISTEXT(K10),E3,K10) -> 338 | L11: =Dichte(K11,J11) -> 1.33419 | M11: =VLOOKUP(J11*0.00001,'Datenbank Werte '!$A$1:$B$500,2,TRUE)*0.000001 -> 9.71E-06 | N11: 7.28E-06 | O11: =IF(ISTEXT(O10),H3,O10) -> 8.99E-02 | P11: =Tabelle74[[#This Row],['[kg/h']]]/Tabelle74[[#This Row],['[kg/m^3']4]] -> 1570.09 | Q11: =H11*4/(L11*PI()*E11^2) -> 93.52 | R11: =Tabelle74[[#This Row],['[m/s']]]/VLOOKUP(J11*0.00001,'Datenbank Werte '!$A$1:$C$500,3,TRUE) -> 0.07 | S11: =(L11*Q11*E11)/M11 -> 2.5688E+05 | T11: 2.0E-03 | U11: =Rohrreibungszahl(Tabelle74[[#This Row],['[-']]],Tabelle74[[#This Row],['[-']4]],Tabelle74[[#This Row],['[-']3]],Tabelle74[[#This Row],['[m']2]],Tabelle74[[#This Row],['[m']3]]) -> 2.41E-02 | X11: =IF(Tabelle74[[#This Row],['[-']2]]>0,Tabelle74[[#This Row],['[-']2]]*(Tabelle74[[#This Row],['[kg/m^3']]]/2)*Tabelle74[[#This Row],['[m/s']]]^2,Druckverlust(Tabelle74[[#This Row],[Spalte1]],C11,U11,V11,P11,L11,O11,J11,K11,Q11,D11,E11)) -> 7029.25 | Y11: 0.0702924573 | Z11: 18.79 | AA11: 18.72 | AB11: 7029.25 | AC11: =SUM($AB$10:AB11) -> 128101.62
B12: 90°Winkel | C12: Rohr | E12: 0.02 | F12: 4.00E-05 | G12: =17.64*8 -> 141.12 | H12: =G12/3600 -> 0.0392 | I12: 0.029 | J12: 1871898.376 | K12: 338 | L12: =Dichte(K12,J12) -> 1.32925 | M12: =VLOOKUP(J12*0.00001,'Datenbank Werte '!$A$1:$B$500,2,TRUE)*0.000001 -> 9.71E-06 | N12: 7.31E-06 | O12: 8.99E-02 | P12: =Tabelle74[[#This Row],['[kg/h']]]/Tabelle74[[#This Row],['[kg/m^3']4]] -> 1570.09 | Q12: 93.87 | R12: =Tabelle74[[#This Row],['[m/s']]]/VLOOKUP(J12*0.00001,'Datenbank Werte '!$A$1:$C$500,3,TRUE) -> 0.07 | S12: 2.5688E+05 | T12: 2.0E-03 | U12: =Rohrreibungszahl(Tabelle74[[#This Row],['[-']]],Tabelle74[[#This Row],['[-']4]],Tabelle74[[#This Row],['[-']3]],Tabelle74[[#This Row],['[m']2]],Tabelle74[[#This Row],['[m']3]]) -> 2.41E-02 | W12: 0.15 | X12: =IF(Tabelle74[[#This Row],['[-']2]]>0,Tabelle74[[#This Row],['[-']2]]*(Tabelle74[[#This Row],['[kg/m^3']]]/2)*Tabelle74[[#This Row],['[m/s']]]^2,Druckverlust(Tabelle74[[#This Row],[Spalte1]],C12,U12,V12,P12,L12,O12,J12,K12,Q12,D12,E12)) -> 878.47 | Y12: =X12/10^5 -> 0.008784693107 | Z12: =J12/10^5 -> 18.72 | AA12: =Z12-Y12 -> 18.71 | AB12: =X12 -> 878.47 | AC12: =SUM($AB$10:AB12) -> 128980.09
B13: Rohr | C13: Rohr | D13: 4.8 | E13: 0.02 | F13: 4.00E-05 | G13: =17.64*8 -> 141.12 | H13: =G13/3600 -> 0.0392 | I13: 0.030 | J13: 1871019.907 | K13: 338 | L13: =Dichte(K13,J13) -> 1.32863 | M13: =VLOOKUP(J13*0.00001,'Datenbank Werte '!$A$1:$B$500,2,TRUE)*0.000001 -> 9.71E-06 | N13: 7.31E-06 | O13: 8.99E-02 | P13: =Tabelle74[[#This Row],['[kg/h']]]/Tabelle74[[#This Row],['[kg/m^3']4]] -> 1570.09 | Q13: 93.91 | R13: =Tabelle74[[#This Row],['[m/s']]]/VLOOKUP(J13*0.00001,'Datenbank Werte '!$A$1:$C$500,3,TRUE) -> 0.07 | S13: 2.5688E+05 | T13: 2.0E-03 | U13: =Rohrreibungszahl(Tabelle74[[#This Row],['[-']]],Tabelle74[[#This Row],['[-']4]],Tabelle74[[#This Row],['[-']3]],Tabelle74[[#This Row],['[m']2]],Tabelle74[[#This Row],['[m']3]]) -> 2.41E-02 | X13: =IF(Tabelle74[[#This Row],['[-']2]]>0,Tabelle74[[#This Row],['[-']2]]*(Tabelle74[[#This Row],['[kg/m^3']]]/2)*Tabelle74[[#This Row],['[m/s']]]^2,Druckverlust(Tabelle74[[#This Row],[Spalte1]],C13,U13,V13,P13,L13,O13,J13,K13,Q13,D13,E13)) -> 33881.54 | Y13: 0.3388154037 | Z13: 18.71 | AA13: 18.37 | AB13: 33881.54 | AC13: =SUM($AB$10:AB13) -> 162861.63
B14: 90°Winkel | C14: Rohr | E14: 0.02 | F14: 4.00E-05 | G14: =17.64*8 -> 141.12 | H14: =G14/3600 -> 0.0392 | I14: 0.030 | J14: 1837138.367 | K14: 338 | L14: =Dichte(K14,J14) -> 1.30481 | M14: =VLOOKUP(J14*0.00001,'Datenbank Werte '!$A$1:$B$500,2,TRUE)*0.000001 -> 9.71E-06 | N14: 7.45E-06 | O14: 8.99E-02 | P14: =Tabelle74[[#This Row],['[kg/h']]]/Tabelle74[[#This Row],['[kg/m^3']4]] -> 1570.09 | Q14: 95.63 | R14: =Tabelle74[[#This Row],['[m/s']]]/VLOOKUP(J14*0.00001,'Datenbank Werte '!$A$1:$C$500,3,TRUE) -> 0.07 | S14: 2.5688E+05 | T14: 2.0E-03 | U14: =Rohrreibungszahl(Tabelle74[[#This Row],['[-']]],Tabelle74[[#This Row],['[-']4]],Tabelle74[[#This Row],['[-']3]],Tabelle74[[#This Row],['[m']2]],Tabelle74[[#This Row],['[m']3]]) -> 2.41E-02 | W14: 0.15 | X14: =IF(Tabelle74[[#This Row],['[-']2]]>0,Tabelle74[[#This Row],['[-']2]]*(Tabelle74[[#This Row],['[kg/m^3']]]/2)*Tabelle74[[#This Row],['[m/s']]]^2,Druckverlust(Tabelle74[[#This Row],[Spalte1]],C14,U14,V14,P14,L14,O14,J14,K14,Q14,D14,E14)) -> 894.92 | Y14: 0.008949233663 | Z14: 18.37 | AA14: 18.36 | AB14: 894.92 | AC14: =SUM($AB$10:AB14) -> 163756.56
B15: Rohr (Durchführung FRP) | C15: Rohr | D15: 1.6 | E15: 0.02 | F15: 4.00E-05 | G15: =17.64*8 -> 141.12 | H15: =G15/3600 -> 0.0392 | I15: =H15/L15 -> 0.030 | J15: =IF(ISTEXT(AA14),$H$3*100000,AA14*100000) -> 1836243.443 | K15: =IF(ISTEXT(K14),E7,K14) -> 338 | L15: =Dichte(K15,J15) -> 1.30418 | M15: =VLOOKUP(J15*0.00001,'Datenbank Werte '!$A$1:$B$500,2,TRUE)*0.000001 -> 9.71E-06 | N15: =M15/L15 -> 7.45E-06 | O15: =IF(ISTEXT(O14),H7,O14) -> 8.99E-02 | P15: =Tabelle74[[#This Row],['[kg/h']]]/Tabelle74[[#This Row],['[kg/m^3']4]] -> 1570.09 | Q15: =H15*4/(L15*PI()*E15^2) -> 95.67 | R15: =Tabelle74[[#This Row],['[m/s']]]/VLOOKUP(J15*0.00001,'Datenbank Werte '!$A$1:$C$500,3,TRUE) -> 0.07 | S15: =(L15*Q15*E15)/M15 -> 2.5688E+05 | T15: =F15/E15 -> 2.0E-03 | U15: =Rohrreibungszahl(Tabelle74[[#This Row],['[-']]],Tabelle74[[#This Row],['[-']4]],Tabelle74[[#This Row],['[-']3]],Tabelle74[[#This Row],['[m']2]],Tabelle74[[#This Row],['[m']3]]) -> 2.41E-02 | X15: =IF(Tabelle74[[#This Row],['[-']2]]>0,Tabelle74[[#This Row],['[-']2]]*(Tabelle74[[#This Row],['[kg/m^3']]]/2)*Tabelle74[[#This Row],['[m/s']]]^2,Druckverlust(Tabelle74[[#This Row],[Spalte1]],C15,U15,V15,P15,L15,O15,J15,K15,Q15,D15,E15)) -> 11505.59 | Y15: 0.1150558901 | Z15: 18.36 | AA15: 18.25 | AB15: 11505.59 | AC15: =SUM($AB$10:AB15) -> 175262.15
B16: Filter | C16: Ventil | E16: 0.02 | F16: 4.00E-05 | G16: 141.12 | H16: 0.0392 | I16: 0.030 | J16: 1824737.854 | K16: 338 | L16: =Dichte(K16,J16) -> 1.29609 | M16: =VLOOKUP(J16*0.00001,'Datenbank Werte '!$A$1:$B$500,2,TRUE)*0.000001 -> 9.71E-06 | N16: 7.50E-06 | O16: 8.99E-02 | P16: =Tabelle74[[#This Row],['[kg/h']]]/Tabelle74[[#This Row],['[kg/m^3']4]] -> 1570.09 | Q16: 96.27 | R16: =Tabelle74[[#This Row],['[m/s']]]/VLOOKUP(J16*0.00001,'Datenbank Werte '!$A$1:$C$500,3,TRUE) -> 0.07 | S16: 2.5688E+05 | T16: 2.0E-03 | U16: =Rohrreibungszahl(Tabelle74[[#This Row],['[-']]],Tabelle74[[#This Row],['[-']4]],Tabelle74[[#This Row],['[-']3]],Tabelle74[[#This Row],['[m']2]],Tabelle74[[#This Row],['[m']3]]) -> Nur bei 'Rohr' benötigt | V16: 4 | X16: =IF(Tabelle74[[#This Row],['[-']2]]>0,Tabelle74[[#This Row],['[-']2]]*(Tabelle74[[#This Row],['[kg/m^3']]]/2)*Tabelle74[[#This Row],['[m/s']]]^2,Druckverlust(Tabelle74[[#This Row],[Spalte1]],C16,U16,V16,P16,L16,O16,J16,K16,Q16,D16,E16)) -> 102894.19 | Y16: 1.028941854 | Z16: 18.25 | AA16: 17.22 | AB16: 102894.19 | AC16: =SUM($AB$10:AB16) -> 278156.33
B17: Rückschlag-/Absperrventil | C17: Ventil | E17: 0.02 | F17: 4.00E-05 | G17: 141.12 | H17: 0.0392 | I17: 0.032 | J17: 1721843.669 | K17: 338 | L17: =Dichte(K17,J17) -> 1.22368 | M17: =VLOOKUP(J17*0.00001,'Datenbank Werte '!$A$1:$B$500,2,TRUE)*0.000001 -> 9.71E-06 | N17: 7.94E-06 | O17: 8.99E-02 | P17: =Tabelle74[[#This Row],['[kg/h']]]/Tabelle74[[#This Row],['[kg/m^3']4]] -> 1570.09 | Q17: 101.97 | R17: =Tabelle74[[#This Row],['[m/s']]]/VLOOKUP(J17*0.00001,'Datenbank Werte '!$A$1:$C$500,3,TRUE) -> 0.07 | S17: 2.5689E+05 | T17: 2.0E-03 | U17: =Rohrreibungszahl(Tabelle74[[#This Row],['[-']]],Tabelle74[[#This Row],['[-']4]],Tabelle74[[#This Row],['[-']3]],Tabelle74[[#This Row],['[m']2]],Tabelle74[[#This Row],['[m']3]]) -> Nur bei 'Rohr' benötigt | V17: 4 | X17: =IF(Tabelle74[[#This Row],['[-']2]]>0,Tabelle74[[#This Row],['[-']2]]*(Tabelle74[[#This Row],['[kg/m^3']]]/2)*Tabelle74[[#This Row],['[m/s']]]^2,Druckverlust(Tabelle74[[#This Row],[Spalte1]],C17,U17,V17,P17,L17,O17,J17,K17,Q17,D17,E17)) -> 109910.05 | Y17: 1.099100481 | Z17: 17.22 | AA17: 16.12 | AB17: 109910.05 | AC17: =SUM($AB$10:AB17) -> 388066.38
B18: T-Stück (Eingang Sammelrohr) | C18: Rohr | E18: 0.02 | F18: 4.00E-05 | G18: 141.12 | H18: 0.0392 | I18: 0.034 | J18: 1611933.621 | K18: 338 | L18: =Dichte(K18,J18) -> 1.14625 | M18: =VLOOKUP(J18*0.00001,'Datenbank Werte '!$A$1:$B$500,2,TRUE)*0.000001 -> 9.71E-06 | N18: 8.47E-06 | O18: 8.99E-02 | P18: =Tabelle74[[#This Row],['[kg/h']]]/Tabelle74[[#This Row],['[kg/m^3']4]] -> 1570.09 | Q18: 108.86 | R18: =Tabelle74[[#This Row],['[m/s']]]/VLOOKUP(J18*0.00001,'Datenbank Werte '!$A$1:$C$500,3,TRUE) -> 0.08 | S18: 2.5691E+05 | T18: 2.0E-03 | U18: =Rohrreibungszahl(Tabelle74[[#This Row],['[-']]],Tabelle74[[#This Row],['[-']4]],Tabelle74[[#This Row],['[-']3]],Tabelle74[[#This Row],['[m']2]],Tabelle74[[#This Row],['[m']3]]) -> 2.41E-02 | W18: 0.9 | X18: =IF(Tabelle74[[#This Row],['[-']2]]>0,Tabelle74[[#This Row],['[-']2]]*(Tabelle74[[#This Row],['[kg/m^3']]]/2)*Tabelle74[[#This Row],['[m/s']]]^2,Druckverlust(Tabelle74[[#This Row],[Spalte1]],C18,U18,V18,P18,L18,O18,J18,K18,Q18,D18,E18)) -> 6112.32 | Y18: 0.06112316516 | Z18: 16.12 | AA18: 16.06 | AB18: 6112.32 | AC18: =SUM($AB$10:AB18) -> 394178.70
C19: Rohr | D19: 0.1 | E19: =IF(ISTEXT(E18),$E$5,E18) -> 0.02 | F19: 4.00E-05 | G19: 141.12 | H19: 0.0392 | I19: 0.034 | J19: 1605821.304 | K19: =IF(ISTEXT(K18),E11,K18) -> 338 | L19: =Dichte(K19,J19) -> 1.14194 | M19: =VLOOKUP(J19*0.00001,'Datenbank Werte '!$A$1:$B$500,2,TRUE)*0.000001 -> 9.71E-06 | N19: 8.51E-06 | O19: =IF(ISTEXT(O18),H11,O18) -> 8.99E-02 | P19: =Tabelle74[[#This Row],['[kg/h']]]/Tabelle74[[#This Row],['[kg/m^3']4]] -> 1570.09 | Q19: 109.27 | R19: =Tabelle74[[#This Row],['[m/s']]]/VLOOKUP(J19*0.00001,'Datenbank Werte '!$A$1:$C$500,3,TRUE) -> 0.08 | S19: 2.5691E+05 | T19: =F19/E19 -> 2.0E-03 | U19: =Rohrreibungszahl(Tabelle74[[#This Row],['[-']]],Tabelle74[[#This Row],['[-']4]],Tabelle74[[#This Row],['[-']3]],Tabelle74[[#This Row],['[m']2]],Tabelle74[[#This Row],['[m']3]]) -> 2.41E-02 | X19: =IF(Tabelle74[[#This Row],['[-']2]]>0,Tabelle74[[#This Row],['[-']2]]*(Tabelle74[[#This Row],['[kg/m^3']]]/2)*Tabelle74[[#This Row],['[m/s']]]^2,Druckverlust(Tabelle74[[#This Row],[Spalte1]],C19,U19,V19,P19,L19,O19,J19,K19,Q19,D19,E19)) -> 821.26 | Y19: 0.008212632297 | Z19: 16.06 | AA19: 16.05 | AB19: 821.26 | AC19: =SUM($AB$10:AB19) -> 394999.96
B20: T-Stück (Ausgang Sammelrohr) | C20: Rohr | E20: 0.02 | F20: 4.00E-05 | G20: 141.12 | H20: 0.0392 | I20: 0.034 | J20: 1605000.041 | K20: 338 | L20: =Dichte(K20,J20) -> 1.14136 | M20: =VLOOKUP(J20*0.00001,'Datenbank Werte '!$A$1:$B$500,2,TRUE)*0.000001 -> 9.71E-06 | N20: 8.51E-06 | O20: 8.99E-02 | P20: =Tabelle74[[#This Row],['[kg/h']]]/Tabelle74[[#This Row],['[kg/m^3']4]] -> 1570.09 | Q20: 109.32 | R20: =Tabelle74[[#This Row],['[m/s']]]/VLOOKUP(J20*0.00001,'Datenbank Werte '!$A$1:$C$500,3,TRUE) -> 0.08 | S20: 2.5691E+05 | T20: 2.0E-03 | U20: =Rohrreibungszahl(Tabelle74[[#This Row],['[-']]],Tabelle74[[#This Row],['[-']4]],Tabelle74[[#This Row],['[-']3]],Tabelle74[[#This Row],['[m']2]],Tabelle74[[#This Row],['[m']3]]) -> 2.41E-02 | W20: 1.3 | X20: =IF(Tabelle74[[#This Row],['[-']2]]>0,Tabelle74[[#This Row],['[-']2]]*(Tabelle74[[#This Row],['[kg/m^3']]]/2)*Tabelle74[[#This Row],['[m/s']]]^2,Druckverlust(Tabelle74[[#This Row],[Spalte1]],C20,U20,V20,P20,L20,O20,J20,K20,Q20,D20,E20)) -> 8866.71 | Y20: 0.08866711617 | Z20: 16.05 | AA20: 15.96 | AB20: 8866.71 | AC20: =SUM($AB$10:AB20) -> 403866.67
C21: Rohr | D21: 0.2 | E21: 0.02 | F21: 4.00E-05 | G21: 141.12 | H21: 0.0392 | I21: 0.035 | J21: 1596133.329 | K21: 338 | L21: =Dichte(K21,J21) -> 1.13511 | M21: =VLOOKUP(J21*0.00001,'Datenbank Werte '!$A$1:$B$500,2,TRUE)*0.000001 -> 9.71E-06 | N21: 8.56E-06 | O21: 8.99E-02 | P21: =Tabelle74[[#This Row],['[kg/h']]]/Tabelle74[[#This Row],['[kg/m^3']4]] -> 1570.09 | Q21: 109.93 | R21: =Tabelle74[[#This Row],['[m/s']]]/VLOOKUP(J21*0.00001,'Datenbank Werte '!$A$1:$C$500,3,TRUE) -> 0.08 | S21: 2.5692E+05 | T21: 2.0E-03 | U21: =Rohrreibungszahl(Tabelle74[[#This Row],['[-']]],Tabelle74[[#This Row],['[-']4]],Tabelle74[[#This Row],['[-']3]],Tabelle74[[#This Row],['[m']2]],Tabelle74[[#This Row],['[m']3]]) -> 2.41E-02 | X21: =IF(Tabelle74[[#This Row],['[-']2]]>0,Tabelle74[[#This Row],['[-']2]]*(Tabelle74[[#This Row],['[kg/m^3']]]/2)*Tabelle74[[#This Row],['[m/s']]]^2,Druckverlust(Tabelle74[[#This Row],[Spalte1]],C21,U21,V21,P21,L21,O21,J21,K21,Q21,D21,E21)) -> 1652.41 | Y21: 0.01652407525 | Z21: 15.96 | AA21: 15.94 | AB21: 1652.41 | AC21: =SUM($AB$10:AB21) -> 405519.08
B22: T-Stück (Überdruckventil) | C22: Rohr | E22: 0.02 | F22: 4.00E-05 | G22: 141.12 | H22: 0.0392 | I22: 0.035 | J22: 1594480.922 | K22: 338 | L22: =Dichte(K22,J22) -> 1.13395 | M22: =VLOOKUP(J22*0.00001,'Datenbank Werte '!$A$1:$B$500,2,TRUE)*0.000001 -> 9.71E-06 | N22: 8.57E-06 | O22: 8.99E-02 | P22: =Tabelle74[[#This Row],['[kg/h']]]/Tabelle74[[#This Row],['[kg/m^3']4]] -> 1570.09 | Q22: 110.04 | R22: =Tabelle74[[#This Row],['[m/s']]]/VLOOKUP(J22*0.00001,'Datenbank Werte '!$A$1:$C$500,3,TRUE) -> 0.08 | S22: 2.5692E+05 | T22: 2.0E-03 | U22: =Rohrreibungszahl(Tabelle74[[#This Row],['[-']]],Tabelle74[[#This Row],['[-']4]],Tabelle74[[#This Row],['[-']3]],Tabelle74[[#This Row],['[m']2]],Tabelle74[[#This Row],['[m']3]]) -> 2.41E-02 | W22: 0.05 | X22: =IF(Tabelle74[[#This Row],['[-']2]]>0,Tabelle74[[#This Row],['[-']2]]*(Tabelle74[[#This Row],['[kg/m^3']]]/2)*Tabelle74[[#This Row],['[m/s']]]^2,Druckverlust(Tabelle74[[#This Row],[Spalte1]],C22,U22,V22,P22,L22,O22,J22,K22,Q22,D22,E22)) -> 343.26 | Y22: 0.003432577705 | Z22: 15.94 | AA22: 15.94 | AB22: 343.26 | AC22: =SUM($AB$10:AB22) -> 405862.34
C23: Rohr | D23: 0.2 | E23: 0.02 | F23: 4.00E-05 | G23: 141.12 | H23: 0.0392 | I23: 0.035 | J23: 1594137.664 | K23: 338 | L23: =Dichte(K23,J23) -> 1.13370 | M23: =VLOOKUP(J23*0.00001,'Datenbank Werte '!$A$1:$B$500,2,TRUE)*0.000001 -> 9.71E-06 | N23: 8.57E-06 | O23: 8.99E-02 | P23: =Tabelle74[[#This Row],['[kg/h']]]/Tabelle74[[#This Row],['[kg/m^3']4]] -> 1570.09 | Q23: 110.06 | R23: =Tabelle74[[#This Row],['[m/s']]]/VLOOKUP(J23*0.00001,'Datenbank Werte '!$A$1:$C$500,3,TRUE) -> 0.08 | S23: 2.5692E+05 | T23: 2.0E-03 | U23: =Rohrreibungszahl(Tabelle74[[#This Row],['[-']]],Tabelle74[[#This Row],['[-']4]],Tabelle74[[#This Row],['[-']3]],Tabelle74[[#This Row],['[m']2]],Tabelle74[[#This Row],['[m']3]]) -> 2.41E-02 | X23: =IF(Tabelle74[[#This Row],['[-']2]]>0,Tabelle74[[#This Row],['[-']2]]*(Tabelle74[[#This Row],['[kg/m^3']]]/2)*Tabelle74[[#This Row],['[m/s']]]^2,Druckverlust(Tabelle74[[#This Row],[Spalte1]],C23,U23,V23,P23,L23,O23,J23,K23,Q23,D23,E23)) -> 1654.46 | Y23: 0.01654458372 | Z23: 15.94 | AA23: 15.92 | AB23: 1654.46 | AC23: =SUM($AB$10:AB23) -> 407516.79
B24: T-Stück (Sensoren) | C24: Rohr | E24: 0.02 | F24: 4.00E-05 | G24: 141.12 | H24: 0.0392 | I24: 0.035 | J24: 1592483.206 | K24: 338 | L24: =Dichte(K24,J24) -> 1.13254 | M24: =VLOOKUP(J24*0.00001,'Datenbank Werte '!$A$1:$B$500,2,TRUE)*0.000001 -> 9.71E-06 | N24: 8.58E-06 | O24: 8.99E-02 | P24: =Tabelle74[[#This Row],['[kg/h']]]/Tabelle74[[#This Row],['[kg/m^3']4]] -> 1570.09 | Q24: 110.18 | R24: =Tabelle74[[#This Row],['[m/s']]]/VLOOKUP(J24*0.00001,'Datenbank Werte '!$A$1:$C$500,3,TRUE) -> 0.08 | S24: 2.5692E+05 | T24: 2.0E-03 | U24: =Rohrreibungszahl(Tabelle74[[#This Row],['[-']]],Tabelle74[[#This Row],['[-']4]],Tabelle74[[#This Row],['[-']3]],Tabelle74[[#This Row],['[m']2]],Tabelle74[[#This Row],['[m']3]]) -> 2.41E-02 | W24: 0.05 | X24: =IF(Tabelle74[[#This Row],['[-']2]]>0,Tabelle74[[#This Row],['[-']2]]*(Tabelle74[[#This Row],['[kg/m^3']]]/2)*Tabelle74[[#This Row],['[m/s']]]^2,Druckverlust(Tabelle74[[#This Row],[Spalte1]],C24,U24,V24,P24,L24,O24,J24,K24,Q24,D24,E24)) -> 343.68 | Y24: 0.003436846816 | Z24: 15.92 | AA24: 15.92 | AB24: 343.68 | AC24: =SUM($AB$10:AB24) -> 407860.48
C25: Rohr | D25: 0.2 | E25: 0.02 | F25: 4.00E-05 | G25: 141.12 | H25: 0.0392 | I25: 0.035 | J25: 1592139.521 | K25: 338 | L25: =Dichte(K25,J25) -> 1.13229 | M25: =VLOOKUP(J25*0.00001,'Datenbank Werte '!$A$1:$B$500,2,TRUE)*0.000001 -> 9.71E-06 | N25: 8.58E-06 | O25: 8.99E-02 | P25: =Tabelle74[[#This Row],['[kg/h']]]/Tabelle74[[#This Row],['[kg/m^3']4]] -> 1570.09 | Q25: 110.20 | R25: =Tabelle74[[#This Row],['[m/s']]]/VLOOKUP(J25*0.00001,'Datenbank Werte '!$A$1:$C$500,3,TRUE) -> 0.08 | S25: 2.5692E+05 | T25: 2.0E-03 | U25: =Rohrreibungszahl(Tabelle74[[#This Row],['[-']]],Tabelle74[[#This Row],['[-']4]],Tabelle74[[#This Row],['[-']3]],Tabelle74[[#This Row],['[m']2]],Tabelle74[[#This Row],['[m']3]]) -> 2.41E-02 | X25: =IF(Tabelle74[[#This Row],['[-']2]]>0,Tabelle74[[#This Row],['[-']2]]*(Tabelle74[[#This Row],['[kg/m^3']]]/2)*Tabelle74[[#This Row],['[m/s']]]^2,Druckverlust(Tabelle74[[#This Row],[Spalte1]],C25,U25,V25,P25,L25,O25,J25,K25,Q25,D25,E25)) -> 1656.52 | Y25: 0.01656516917 | Z25: 15.92 | AA25: 15.90 | AB25: 1656.52 | AC25: =SUM($AB$10:AB25) -> 409517.00
B26: T-Stück (Entlüftungsventil) | C26: Rohr | E26: 0.02 | F26: 4.00E-05 | G26: 141.12 | H26: 0.0392 | I26: 0.035 | J26: 1590483.004 | K26: 338 | L26: =Dichte(K26,J26) -> 1.13113 | M26: =VLOOKUP(J26*0.00001,'Datenbank Werte '!$A$1:$B$500,2,TRUE)*0.000001 -> 9.71E-06 | N26: 8.59E-06 | O26: 8.99E-02 | P26: =Tabelle74[[#This Row],['[kg/h']]]/Tabelle74[[#This Row],['[kg/m^3']4]] -> 1570.09 | Q26: 110.31 | R26: =Tabelle74[[#This Row],['[m/s']]]/VLOOKUP(J26*0.00001,'Datenbank Werte '!$A$1:$C$500,3,TRUE) -> 0.08 | S26: 2.5692E+05 | T26: 2.0E-03 | U26: =Rohrreibungszahl(Tabelle74[[#This Row],['[-']]],Tabelle74[[#This Row],['[-']4]],Tabelle74[[#This Row],['[-']3]],Tabelle74[[#This Row],['[m']2]],Tabelle74[[#This Row],['[m']3]]) -> 2.41E-02 | W26: 0.05 | X26: =IF(Tabelle74[[#This Row],['[-']2]]>0,Tabelle74[[#This Row],['[-']2]]*(Tabelle74[[#This Row],['[kg/m^3']]]/2)*Tabelle74[[#This Row],['[m/s']]]^2,Druckverlust(Tabelle74[[#This Row],[Spalte1]],C26,U26,V26,P26,L26,O26,J26,K26,Q26,D26,E26)) -> 344.11 | Y26: 0.003441131984 | Z26: 15.90 | AA26: 15.90 | AB26: 344.11 | AC26: =SUM($AB$10:AB26) -> 409861.11
B27: Hauptventil | C27: Ventil | E27: 0.02 | F27: 4.00E-05 | G27: 141.12 | H27: 0.0392 | I27: 0.035 | J27: 1590138.891 | K27: 338 | L27: =Dichte(K27,J27) -> 1.13088 | M27: =VLOOKUP(J27*0.00001,'Datenbank Werte '!$A$1:$B$500,2,TRUE)*0.000001 -> 9.71E-06 | N27: 8.59E-06 | O27: 8.99E-02 | P27: =Tabelle74[[#This Row],['[kg/h']]]/Tabelle74[[#This Row],['[kg/m^3']4]] -> 1570.09 | Q27: 110.34 | R27: =Tabelle74[[#This Row],['[m/s']]]/VLOOKUP(J27*0.00001,'Datenbank Werte '!$A$1:$C$500,3,TRUE) -> 0.08 | S27: 2.5692E+05 | T27: 2.0E-03 | U27: =Rohrreibungszahl(Tabelle74[[#This Row],['[-']]],Tabelle74[[#This Row],['[-']4]],Tabelle74[[#This Row],['[-']3]],Tabelle74[[#This Row],['[m']2]],Tabelle74[[#This Row],['[m']3]]) ->  | V27: 4 | X27: =IF(Tabelle74[[#This Row],['[-']2]]>0,Tabelle74[[#This Row],['[-']2]]*(Tabelle74[[#This Row],['[kg/m^3']]]/2)*Tabelle74[[#This Row],['[m/s']]]^2,Druckverlust(Tabelle74[[#This Row],[Spalte1]],C27,U27,V27,P27,L27,O27,J27,K27,Q27,D27,E27)) -> 120556.49 | Y27: 1.205564942 | Z27: 15.90 | AA27: 14.70 | AB27: 120556.49 | AC27: =SUM($AB$10:AB27) -> 530417.60
C28: Rohr | D28: 0.2 | E28: 0.02 | F28: 4.00E-05 | G28: 141.12 | H28: 0.0392 | I28: 0.037 | J28: 1469582.397 | K28: 338 | L28: =Dichte(K28,J28) -> 1.04582 | M28: =VLOOKUP(J28*0.00001,'Datenbank Werte '!$A$1:$B$500,2,TRUE)*0.000001 -> 9.71E-06 | N28: 9.29E-06 | O28: 8.99E-02 | P28: =Tabelle74[[#This Row],['[kg/h']]]/Tabelle74[[#This Row],['[kg/m^3']4]] -> 1570.09 | Q28: 119.31 | R28: =Tabelle74[[#This Row],['[m/s']]]/VLOOKUP(J28*0.00001,'Datenbank Werte '!$A$1:$C$500,3,TRUE) -> 0.08 | S28: 2.5693E+05 | T28: 2.0E-03 | U28: =Rohrreibungszahl(Tabelle74[[#This Row],['[-']]],Tabelle74[[#This Row],['[-']4]],Tabelle74[[#This Row],['[-']3]],Tabelle74[[#This Row],['[m']2]],Tabelle74[[#This Row],['[m']3]]) -> 2.41E-02 | X28: =IF(Tabelle74[[#This Row],['[-']2]]>0,Tabelle74[[#This Row],['[-']2]]*(Tabelle74[[#This Row],['[kg/m^3']]]/2)*Tabelle74[[#This Row],['[m/s']]]^2,Druckverlust(Tabelle74[[#This Row],[Spalte1]],C28,U28,V28,P28,L28,O28,J28,K28,Q28,D28,E28)) -> 1793.48 | Y28: 0.01793477754 | Z28: 14.70 | AA28: 14.68 | AB28: 1793.48 | AC28: =SUM($AB$10:AB28) -> 532211.08
B29: T-Stück (Druckminderer) | C29: Rohr | E29: 0.02 | F29: 4.00E-05 | G29: =17.64*4 -> 70.56 | H29: 0.0196 | I29: 0.019 | J29: 1467788.919 | K29: 338 | L29: =Dichte(K29,J29) -> 1.04456 | M29: =VLOOKUP(J29*0.00001,'Datenbank Werte '!$A$1:$B$500,2,TRUE)*0.000001 -> 9.71E-06 | N29: 9.30E-06 | O29: 8.99E-02 | P29: =Tabelle74[[#This Row],['[kg/h']]]/Tabelle74[[#This Row],['[kg/m^3']4]] -> 785.05 | Q29: 59.73 | R29: =Tabelle74[[#This Row],['[m/s']]]/VLOOKUP(J29*0.00001,'Datenbank Werte '!$A$1:$C$500,3,TRUE) -> 0.04 | S29: 1.2847E+05 | T29: 2.0E-03 | U29: =Rohrreibungszahl(Tabelle74[[#This Row],['[-']]],Tabelle74[[#This Row],['[-']4]],Tabelle74[[#This Row],['[-']3]],Tabelle74[[#This Row],['[m']2]],Tabelle74[[#This Row],['[m']3]]) -> 2.47E-02 | W29: 1.3 | X29: =IF(Tabelle74[[#This Row],['[-']2]]>0,Tabelle74[[#This Row],['[-']2]]*(Tabelle74[[#This Row],['[kg/m^3']]]/2)*Tabelle74[[#This Row],['[m/s']]]^2,Druckverlust(Tabelle74[[#This Row],[Spalte1]],C29,U29,V29,P29,L29,O29,J29,K29,Q29,D29,E29)) -> 2422.11 | Y29: 0.02422107154 | Z29: 14.68 | AA29: 14.65 | AB29: 2422.11 | AC29: =SUM($AB$10:AB29) -> 534633.19
C30: Rohr | D30: 0.3 | E30: 0.02 | F30: 4.00E-05 | G30: =17.64*4 -> 70.56 | H30: 0.0196 | I30: 0.019 | J30: 1465366.812 | K30: 338 | L30: =Dichte(K30,J30) -> 1.04285 | M30: =VLOOKUP(J30*0.00001,'Datenbank Werte '!$A$1:$B$500,2,TRUE)*0.000001 -> 9.71E-06 | N30: 9.31E-06 | O30: 8.99E-02 | P30: =Tabelle74[[#This Row],['[kg/h']]]/Tabelle74[[#This Row],['[kg/m^3']4]] -> 785.05 | Q30: 59.83 | R30: =Tabelle74[[#This Row],['[m/s']]]/VLOOKUP(J30*0.00001,'Datenbank Werte '!$A$1:$C$500,3,TRUE) -> 0.04 | S30: 1.2847E+05 | T30: 2.0E-03 | U30: =Rohrreibungszahl(Tabelle74[[#This Row],['[-']]],Tabelle74[[#This Row],['[-']4]],Tabelle74[[#This Row],['[-']3]],Tabelle74[[#This Row],['[m']2]],Tabelle74[[#This Row],['[m']3]]) -> 2.47E-02 | X30: =IF(Tabelle74[[#This Row],['[-']2]]>0,Tabelle74[[#This Row],['[-']2]]*(Tabelle74[[#This Row],['[kg/m^3']]]/2)*Tabelle74[[#This Row],['[m/s']]]^2,Druckverlust(Tabelle74[[#This Row],[Spalte1]],C30,U30,V30,P30,L30,O30,J30,K30,Q30,D30,E30)) -> 692.49 | Y30: 0.006924891326 | Z30: 14.65 | AA30: 14.65 | AB30: 692.49 | AC30: =SUM($AB$10:AB30) -> 535325.68
B31: 90°Winkel | C31: Rohr | E31: 0.02 | F31: 4.00E-05 | G31: 70.56 | H31: 0.0196 | I31: 0.019 | J31: 1464674.323 | K31: 338 | L31: =Dichte(K31,J31) -> 1.04236 | M31: =VLOOKUP(J31*0.00001,'Datenbank Werte '!$A$1:$B$500,2,TRUE)*0.000001 -> 9.71E-06 | N31: 9.32E-06 | O31: 8.99E-02 | P31: =Tabelle74[[#This Row],['[kg/h']]]/Tabelle74[[#This Row],['[kg/m^3']4]] -> 785.05 | Q31: 59.85 | R31: =Tabelle74[[#This Row],['[m/s']]]/VLOOKUP(J31*0.00001,'Datenbank Werte '!$A$1:$C$500,3,TRUE) -> 0.04 | S31: 1.2847E+05 | T31: 2.0E-03 | U31: =Rohrreibungszahl(Tabelle74[[#This Row],['[-']]],Tabelle74[[#This Row],['[-']4]],Tabelle74[[#This Row],['[-']3]],Tabelle74[[#This Row],['[m']2]],Tabelle74[[#This Row],['[m']3]]) -> 2.47E-02 | W31: 0.15 | X31: =IF(Tabelle74[[#This Row],['[-']2]]>0,Tabelle74[[#This Row],['[-']2]]*(Tabelle74[[#This Row],['[kg/m^3']]]/2)*Tabelle74[[#This Row],['[m/s']]]^2,Druckverlust(Tabelle74[[#This Row],[Spalte1]],C31,U31,V31,P31,L31,O31,J31,K31,Q31,D31,E31)) -> 280.06 | Y31: 0.002800635018 | Z31: 14.65 | AA31: 14.64 | AB31: 280.06 | AC31: =SUM($AB$10:AB31) -> 535605.74
C32: Rohr | D32: 0.2 | E32: 0.02 | F32: 4.00E-05 | G32: 70.56 | H32: 0.0196 | I32: 0.019 | J32: 1464394.259 | K32: 338 | L32: =Dichte(K32,J32) -> 1.04216 | M32: =VLOOKUP(J32*0.00001,'Datenbank Werte '!$A$1:$B$500,2,TRUE)*0.000001 -> 9.71E-06 | N32: 9.32E-06 | O32: 8.99E-02 | P32: =Tabelle74[[#This Row],['[kg/h']]]/Tabelle74[[#This Row],['[kg/m^3']4]] -> 785.05 | Q32: 59.86 | R32: =Tabelle74[[#This Row],['[m/s']]]/VLOOKUP(J32*0.00001,'Datenbank Werte '!$A$1:$C$500,3,TRUE) -> 0.04 | S32: 1.2847E+05 | T32: 2.0E-03 | U32: =Rohrreibungszahl(Tabelle74[[#This Row],['[-']]],Tabelle74[[#This Row],['[-']4]],Tabelle74[[#This Row],['[-']3]],Tabelle74[[#This Row],['[m']2]],Tabelle74[[#This Row],['[m']3]]) -> 2.47E-02 | X32: =IF(Tabelle74[[#This Row],['[-']2]]>0,Tabelle74[[#This Row],['[-']2]]*(Tabelle74[[#This Row],['[kg/m^3']]]/2)*Tabelle74[[#This Row],['[m/s']]]^2,Druckverlust(Tabelle74[[#This Row],[Spalte1]],C32,U32,V32,P32,L32,O32,J32,K32,Q32,D32,E32)) -> 461.96 | Y32: 0.004619636065 | Z32: 14.64 | AA32: 14.64 | AB32: 461.96 | AC32: =SUM($AB$10:AB32) -> 536067.70
B33: Ergebnis | AB33: Druckverlust gesamt in bar | AC33: =SUBTOTAL(104,Tabelle74['[Pa']4])*0.00001 -> 5.360677045
U36: =S11*T11 -> 513.7571169

Sheet TC_2 bis Druckminderer
C2: Temperatur | E2: 338 | G2: Normdichte | H2: 0.08988
C3: Massenstrom | E3: =17.64*8 -> 141.12 | G3: Startdruck | H3: 20.00
C4: Rauigleit (mm) | E4: 4.00E-02
C5: Innendurchmesser | E5: ='Diagramme '!C3 -> 0.02
C7: Rohr oder Ventil | D7: Länge Rohrleitung | E7: Innendruchmesser Rohr | F7: Rauigkeit | G7: Massenstrom H2 | H7: Massenstrom H2 | I7: Volumenstrom H2 | J7: Druck | K7: Temperatur | L7: Dichte | M7: dynamische Viskosität | N7: kinematische Viskosität | O7: Norm Dichte | P7: Norm Volumenstrom | Q7: Geschwindigkeit | R7: Mach-Zahl | S7: RE-Zahl | T7: k/d | U7: Rohrreibungszahl | V7: Kv-Wert | W7: Widerstandsbeiwert Zeta | X7: Durckverlust durch Komponente | Y7: Durckverlust durch Komponente | Z7: p_1 | AA7: p_2 | AB7: Delta p | AC7: Delta P aufsummiert
A9: System | B9: Komponente | C9: [-] | D9: [m] | E9: [m]2 | F9: [m]3 | G9: [kg/h] | H9: [kg/s] | I9: [m^3/s] | J9: [Pa] | K9: [K] | L9: [kg/m^3] | M9: [Pa*s] | N9: [m^2/s] | O9: [kg/m^3] | P9: [Nm^3/h] | Q9: [m/s] | R9: [-] | S9: [-] | T9: [-] | U9: [-] | V9: [m^3/h] | W9: [-] | X9: [Pa] | Y9: [bar] | Z9: [bar] | AA9: [bar] | AB9: [Pa] | AC9: [Pa]
B10: H2 Kupplung | C10: Ventil | E10: =IF(ISTEXT(E9),$E$5,E9) -> 0.02 | F10: =IF(ISTEXT(F9),E4*0.001,F9) -> 4.00E-05 | G10: =17.64*8 -> 141.12 | H10: =G10/3600 -> 0.0392 | I10: =H10/L10 -> 0.02762041837 | J10: =IF(ISTEXT(AA9),$H$3*100000,AA9*100000) -> 2000000 | K10: =IF(ISTEXT(K9),E2,K9) -> 338 | L10: =Dichte(K10,J10) -> 1.41924 | M10: =VLOOKUP(J10*0.00001,'Datenbank Werte '!$A$1:$B$500,2,TRUE)*0.000001 -> 9.72E-06 | N10: =M10/L10 -> 6.85E-06 | O10: =IF(ISTEXT(O9),H2,O9) -> 0.08988 | P10: =Tabelle7[[#This Row],['[kg/h']]]/Tabelle7[[#This Row],['[kg/m^3']4]] -> 1570.09 | Q10: =H10*4/(L10*PI()*E10^2) -> 87.92 | R10: =Tabelle7[[#This Row],['[m/s']]]/VLOOKUP(J10*0.00001,'Datenbank Werte '!$A$1:$C$500,3,TRUE) -> 0.06 | S10: =(L10*Q10*E10)/M10 -> 2.5685E+05 | T10: =F10/E10 -> 2.0E-03 | U10: =Rohrreibungszahl(Tabelle7[[#This Row],['[-']]],Tabelle7[[#This Row],['[-']4]],Tabelle7[[#This Row],['[-']3]],Tabelle7[[#This Row],['[m']2]],Tabelle7[[#This Row],['[m']3]]) -> Nur bei 'Rohr' benötigt | V10: 3.53 | X10: =IF(Tabelle7[[#This Row],['[-']2]]>0,Tabelle7[[#This Row],['[-']2]]*(Tabelle7[[#This Row],['[kg/m^3']]]/2)*Tabelle7[[#This Row],['[m/s']]]^2,Druckverlust(Tabelle7[[#This Row],[Spalte1]],C10,U10,V10,P10,L10,O10,J10,K10,Q10,D10,E10)) -> 121072.38 | Y10: =X10/10^5 -> 1.210723779 | Z10: =J10/10^5 -> 20.00 | AA10: =Z10-Y10 -> 18.79 | AB10: =X10 -> 121072.38 | AC10: =SUM($AB$10:AB10) -> 121072.38
B11: Schlauch | C11: Rohr | D11: 1 | E11: =IF(ISTEXT(E10),$E$5,E10) -> 0.02 | F11: =IF(ISTEXT(F10),E5,F10) -> 4.00E-05 | G11: 141.12 | H11: =G11/3600 -> 0.0392 | I11: 2.94E-02 | J11: =IF(ISTEXT(AA10),$H$3*100000,AA10*100000) -> 1878927.622 | K11: =IF(ISTEXT(K10),E3,K10) -> 338 | L11: =Dichte(K11,J11) -> 1.33419 | M11: =VLOOKUP(J11*0.00001,'Datenbank Werte '!$A$1:$B$500,2,TRUE)*0.000001 -> 9.71E-06 | N11: 7.28E-06 | O11: =IF(ISTEXT(O10),H3,O10) -> 8.99E-02 | P11: =Tabelle7[[#This Row],['[kg/h']]]/Tabelle7[[#This Row],['[kg/m^3']4]] -> 1570.09 | Q11: 93.52 | R11: =Tabelle7[[#This Row],['[m/s']]]/VLOOKUP(J11*0.00001,'Datenbank Werte '!$A$1:$C$500,3,TRUE) -> 0.07 | S11: 2.5688E+05 | T11: 2.0E-03 | U11: =Rohrreibungszahl(Tabelle7[[#This Row],['[-']]],Tabelle7[[#This Row],['[-']4]],Tabelle7[[#This Row],['[-']3]],Tabelle7[[#This Row],['[m']2]],Tabelle7[[#This Row],['[m']3]]) -> 2.41E-02 | X11: =IF(Tabelle7[[#This Row],['[-']2]]>0,Tabelle7[[#This Row],['[-']2]]*(Tabelle7[[#This Row],['[kg/m^3']]]/2)*Tabelle7[[#This Row],['[m/s']]]^2,Druckverlust(Tabelle7[[#This Row],[Spalte1]],C11,U11,V11,P11,L11,O11,J11,K11,Q11,D11,E11)) -> 7029.25 | Y11: =X11/10^5 -> 0.0702924573 | Z11: =J11/10^5 -> 18.79 | AA11: =Z11-Y11 -> 18.72 | AB11: =X11 -> 7029.25 | AC11: =SUM($AB$10:AB11) -> 128101.62
B12: 90°Winkel | C12: Rohr | E12: 0.02 | F12: 4.00E-05 | G12: =17.64*8 -> 141.12 | H12: =G12/3600 -> 0.0392 | I12: 2.95E-02 | J12: 1871898.376 | K12: 338 | L12: =Dichte(K12,J12) -> 1.32925 | M12: =VLOOKUP(J12*0.00001,'Datenbank Werte '!$A$1:$B$500,2,TRUE)*0.000001 -> 9.71E-06 | N12: 7.31E-06 | O12: 8.99E-02 | P12: =Tabelle7[[#This Row],['[kg/h']]]/Tabelle7[[#This Row],['[kg/m^3']4]] -> 1570.09 | Q12: 93.87 | R12: =Tabelle7[[#This Row],['[m/s']]]/VLOOKUP(J12*0.00001,'Datenbank Werte '!$A$1:$C$500,3,TRUE) -> 0.07 | S12: 2.5688E+05 | T12: 2.0E-03 | U12: =Rohrreibungszahl(Tabelle7[[#This Row],['[-']]],Tabelle7[[#This Row],['[-']4]],Tabelle7[[#This Row],['[-']3]],Tabelle7[[#This Row],['[m']2]],Tabelle7[[#This Row],['[m']3]]) -> 2.41E-02 | W12: 0.15 | X12: =IF(Tabelle7[[#This Row],['[-']2]]>0,Tabelle7[[#This Row],['[-']2]]*(Tabelle7[[#This Row],['[kg/m^3']]]/2)*Tabelle7[[#This Row],['[m/s']]]^2,Druckverlust(Tabelle7[[#This Row],[Spalte1]],C12,U12,V12,P12,L12,O12,J12,K12,Q12,D12,E12)) -> 878.47 | Y12: =X12/10^5 -> 0.008784693107 | Z12: =J12/10^5 -> 18.72 | AA12: =Z12-Y12 -> 18.71 | AB12: =X12 -> 878.47 | AC12: =SUM($AB$10:AB12) -> 128980.09
B13: Rohr | C13: Rohr | D13: 4.8 | E13: 0.02 | F13: 4.00E-05 | G13: 141.12 | H13: 0.0392 | I13: 2.95E-02 | J13: 1871019.907 | K13: 338 | L13: =Dichte(K13,J13) -> 1.32863 | M13: =VLOOKUP(J13*0.00001,'Datenbank Werte '!$A$1:$B$500,2,TRUE)*0.000001 -> 9.71E-06 | N13: 7.31E-06 | O13: 8.99E-02 | P13: =Tabelle7[[#This Row],['[kg/h']]]/Tabelle7[[#This Row],['[kg/m^3']4]] -> 1570.09 | Q13: 93.91 | R13: =Tabelle7[[#This Row],['[m/s']]]/VLOOKUP(J13*0.00001,'Datenbank Werte '!$A$1:$C$500,3,TRUE) -> 0.07 | S13: 2.5688E+05 | T13: 2.0E-03 | U13: =Rohrreibungszahl(Tabelle7[[#This Row],['[-']]],Tabelle7[[#This Row],['[-']4]],Tabelle7[[#This Row],['[-']3]],Tabelle7[[#This Row],['[m']2]],Tabelle7[[#This Row],['[m']3]]) -> 2.41E-02 | X13: =IF(Tabelle7[[#This Row],['[-']2]]>0,Tabelle7[[#This Row],['[-']2]]*(Tabelle7[[#This Row],['[kg/m^3']]]/2)*Tabelle7[[#This Row],['[m/s']]]^2,Druckverlust(Tabelle7[[#This Row],[Spalte1]],C13,U13,V13,P13,L13,O13,J13,K13,Q13,D13,E13)) -> 33881.54 | Y13: 0.3388154037 | Z13: 18.71 | AA13: 18.37 | AB13: 33881.54 | AC13: =SUM($AB$10:AB13) -> 162861.63
B14: 90°Winkel | C14: Rohr | E14: 0.02 | F14: 4.00E-05 | G14: 141.12 | H14: 0.0392 | I14: 3.00E-02 | J14: 1837138.367 | K14: 338 | L14: =Dichte(K14,J14) -> 1.30481 | M14: =VLOOKUP(J14*0.00001,'Datenbank Werte '!$A$1:$B$500,2,TRUE)*0.000001 -> 9.71E-06 | N14: 7.45E-06 | O14: 8.99E-02 | P14: =Tabelle7[[#This Row],['[kg/h']]]/Tabelle7[[#This Row],['[kg/m^3']4]] -> 1570.09 | Q14: 95.63 | R14: =Tabelle7[[#This Row],['[m/s']]]/VLOOKUP(J14*0.00001,'Datenbank Werte '!$A$1:$C$500,3,TRUE) -> 0.07 | S14: 2.5688E+05 | T14: 2.0E-03 | U14: =Rohrreibungszahl(Tabelle7[[#This Row],['[-']]],Tabelle7[[#This Row],['[-']4]],Tabelle7[[#This Row],['[-']3]],Tabelle7[[#This Row],['[m']2]],Tabelle7[[#This Row],['[m']3]]) -> 2.41E-02 | W14: 0.15 | X14: =IF(Tabelle7[[#This Row],['[-']2]]>0,Tabelle7[[#This Row],['[-']2]]*(Tabelle7[[#This Row],['[kg/m^3']]]/2)*Tabelle7[[#This Row],['[m/s']]]^2,Druckverlust(Tabelle7[[#This Row],[Spalte1]],C14,U14,V14,P14,L14,O14,J14,K14,Q14,D14,E14)) -> 894.92 | Y14: 0.008949233663 | Z14: 18.37 | AA14: 18.36 | AB14: 894.92 | AC14: =SUM($AB$10:AB14) -> 163756.56
B15: Rohr | C15: Rohr | D15: 3 | E15: 0.02 | F15: 4.00E-05 | G15: 141.12 | H15: 0.0392 | I15: 3.01E-02 | J15: 1836243.443 | K15: 338 | L15: =Dichte(K15,J15) -> 1.30418 | M15: =VLOOKUP(J15*0.00001,'Datenbank Werte '!$A$1:$B$500,2,TRUE)*0.000001 -> 9.71E-06 | N15: 7.45E-06 | O15: 8.99E-02 | P15: =Tabelle7[[#This Row],['[kg/h']]]/Tabelle7[[#This Row],['[kg/m^3']4]] -> 1570.09 | Q15: 95.67 | R15: =Tabelle7[[#This Row],['[m/s']]]/VLOOKUP(J15*0.00001,'Datenbank Werte '!$A$1:$C$500,3,TRUE) -> 0.07 | S15: 2.5688E+05 | T15: 2.0E-03 | U15: =Rohrreibungszahl(Tabelle7[[#This Row],['[-']]],Tabelle7[[#This Row],['[-']4]],Tabelle7[[#This Row],['[-']3]],Tabelle7[[#This Row],['[m']2]],Tabelle7[[#This Row],['[m']3]]) -> 2.41E-02 | X15: =IF(Tabelle7[[#This Row],['[-']2]]>0,Tabelle7[[#This Row],['[-']2]]*(Tabelle7[[#This Row],['[kg/m^3']]]/2)*Tabelle7[[#This Row],['[m/s']]]^2,Druckverlust(Tabelle7[[#This Row],[Spalte1]],C15,U15,V15,P15,L15,O15,J15,K15,Q15,D15,E15)) -> 21572.98 | Y15: 0.2157297939 | Z15: 18.36 | AA15: 18.15 | AB15: 21572.98 | AC15: =SUM($AB$10:AB15) -> 185329.54
B16: 90°Winkel | C16: Rohr | E16: =IF(ISTEXT(E15),$E$5,E15) -> 0.02 | F16: =IF(ISTEXT(F15),E10,F15) -> 4.00E-05 | G16: 141.12 | H16: 0.0392 | I16: 3.04E-02 | J16: =IF(ISTEXT(AA15),$H$3*100000,AA15*100000) -> 1814670.464 | K16: =IF(ISTEXT(K15),E8,K15) -> 338 | L16: =Dichte(K16,J16) -> 1.28901 | M16: =VLOOKUP(J16*0.00001,'Datenbank Werte '!$A$1:$B$500,2,TRUE)*0.000001 -> 9.71E-06 | N16: 7.54E-06 | O16: =IF(ISTEXT(O15),H8,O15) -> 8.99E-02 | P16: =Tabelle7[[#This Row],['[kg/h']]]/Tabelle7[[#This Row],['[kg/m^3']4]] -> 1570.09 | Q16: 96.80 | R16: =Tabelle7[[#This Row],['[m/s']]]/VLOOKUP(J16*0.00001,'Datenbank Werte '!$A$1:$C$500,3,TRUE) -> 0.07 | S16: 2.5688E+05 | T16: 2.0E-03 | U16: =Rohrreibungszahl(Tabelle7[[#This Row],['[-']]],Tabelle7[[#This Row],['[-']4]],Tabelle7[[#This Row],['[-']3]],Tabelle7[[#This Row],['[m']2]],Tabelle7[[#This Row],['[m']3]]) -> 2.41E-02 | W16: 0.15 | X16: =IF(Tabelle7[[#This Row],['[-']2]]>0,Tabelle7[[#This Row],['[-']2]]*(Tabelle7[[#This Row],['[kg/m^3']]]/2)*Tabelle7[[#This Row],['[m/s']]]^2,Druckverlust(Tabelle7[[#This Row],[Spalte1]],C16,U16,V16,P16,L16,O16,J16,K16,Q16,D16,E16)) -> 905.89 | Y16: 0.009058942182 | Z16: 18.15 | AA16: 18.14 | AB16: 905.89 | AC16: =SUM($AB$10:AB16) -> 186235.43
B17: Rohr (Durchführung FRP) | C17: Rohr | D17: 1.6 | E17: =IF(ISTEXT(E16),$E$5,E16) -> 0.02 | F17: =IF(ISTEXT(F16),E11,F16) -> 4.00E-05 | G17: 141.12 | H17: 0.0392 | I17: =H17/L17 -> 3.04E-02 | J17: =IF(ISTEXT(AA16),$H$3*100000,AA16*100000) -> 1813764.57 | K17: =IF(ISTEXT(K16),E9,K16) -> 338 | L17: =Dichte(K17,J17) -> 1.28837 | M17: =VLOOKUP(J17*0.00001,'Datenbank Werte '!$A$1:$B$500,2,TRUE)*0.000001 -> 9.71E-06 | N17: =M17/L17 -> 7.54E-06 | O17: =IF(ISTEXT(O16),H9,O16) -> 8.99E-02 | P17: =Tabelle7[[#This Row],['[kg/h']]]/Tabelle7[[#This Row],['[kg/m^3']4]] -> 1570.09 | Q17: =H17*4/(L17*PI()*E17^2) -> 96.85 | R17: =Tabelle7[[#This Row],['[m/s']]]/VLOOKUP(J17*0.00001,'Datenbank Werte '!$A$1:$C$500,3,TRUE) -> 0.07 | S17: =(L17*Q17*E17)/M17 -> 2.5688E+05 | T17: =F17/E17 -> 2.0E-03 | U17: =Rohrreibungszahl(Tabelle7[[#This Row],['[-']]],Tabelle7[[#This Row],['[-']4]],Tabelle7[[#This Row],['[-']3]],Tabelle7[[#This Row],['[m']2]],Tabelle7[[#This Row],['[m']3]]) -> 2.41E-02 | X17: =IF(Tabelle7[[#This Row],['[-']2]]>0,Tabelle7[[#This Row],['[-']2]]*(Tabelle7[[#This Row],['[kg/m^3']]]/2)*Tabelle7[[#This Row],['[m/s']]]^2,Druckverlust(Tabelle7[[#This Row],[Spalte1]],C17,U17,V17,P17,L17,O17,J17,K17,Q17,D17,E17)) -> 11646.78 | Y17: 0.1164677588 | Z17: 18.14 | AA17: 18.02 | AB17: 11646.78 | AC17: =SUM($AB$10:AB17) -> 197882.21
B18: Filter | C18: Ventil | E18: =IF(ISTEXT(E16),$E$5,E16) -> 0.02 | F18: =IF(ISTEXT(F16),E11,F16) -> 4.00E-05 | G18: 141.12 | H18: 0.0392 | I18: 3.06E-02 | J18: =IF(ISTEXT(AA17),$H$3*100000,AA17*100000) -> 1802117.794 | K18: =IF(ISTEXT(K16),E9,K16) -> 338 | L18: =Dichte(K18,J18) -> 1.28018 | M18: =VLOOKUP(J18*0.00001,'Datenbank Werte '!$A$1:$B$500,2,TRUE)*0.000001 -> 9.71E-06 | N18: 7.59E-06 | O18: =IF(ISTEXT(O16),H9,O16) -> 8.99E-02 | P18: =Tabelle7[[#This Row],['[kg/h']]]/Tabelle7[[#This Row],['[kg/m^3']4]] -> 1570.09 | Q18: 97.47 | R18: =Tabelle7[[#This Row],['[m/s']]]/VLOOKUP(J18*0.00001,'Datenbank Werte '!$A$1:$C$500,3,TRUE) -> 0.07 | S18: 2.5688E+05 | T18: 2.0E-03 | U18: =Rohrreibungszahl(Tabelle7[[#This Row],['[-']]],Tabelle7[[#This Row],['[-']4]],Tabelle7[[#This Row],['[-']3]],Tabelle7[[#This Row],['[m']2]],Tabelle7[[#This Row],['[m']3]]) -> Nur bei 'Rohr' benötigt | V18: 4 | X18: =IF(Tabelle7[[#This Row],['[-']2]]>0,Tabelle7[[#This Row],['[-']2]]*(Tabelle7[[#This Row],['[kg/m^3']]]/2)*Tabelle7[[#This Row],['[m/s']]]^2,Druckverlust(Tabelle7[[#This Row],[Spalte1]],C18,U18,V18,P18,L18,O18,J18,K18,Q18,D18,E18)) -> 104353.53 | Y18: 1.043535348 | Z18: 18.02 | AA18: 16.98 | AB18: 104353.53 | AC18: =SUM($AB$10:AB18) -> 302235.74
B19: Rückschlag-/Absperrventil | C19: Ventil | E19: 0.02 | F19: =IF(ISTEXT(F18),E12,F18) -> 4.00E-05 | G19: 141.12 | H19: 0.0392 | I19: 3.25E-02 | J19: 1697764.259 | K19: =IF(ISTEXT(K18),E10,K18) -> 338 | L19: =Dichte(K19,J19) -> 1.20673 | M19: =VLOOKUP(J19*0.00001,'Datenbank Werte '!$A$1:$B$500,2,TRUE)*0.000001 -> 9.71E-06 | N19: 8.05E-06 | O19: =IF(ISTEXT(O18),H10,O18) -> 8.99E-02 | P19: =Tabelle7[[#This Row],['[kg/h']]]/Tabelle7[[#This Row],['[kg/m^3']4]] -> 1570.09 | Q19: 103.40 | R19: =Tabelle7[[#This Row],['[m/s']]]/VLOOKUP(J19*0.00001,'Datenbank Werte '!$A$1:$C$500,3,TRUE) -> 0.07 | S19: 2.5691E+05 | T19: 2.0E-03 | U19: =Rohrreibungszahl(Tabelle7[[#This Row],['[-']]],Tabelle7[[#This Row],['[-']4]],Tabelle7[[#This Row],['[-']3]],Tabelle7[[#This Row],['[m']2]],Tabelle7[[#This Row],['[m']3]]) -> Nur bei 'Rohr' benötigt | V19: 4 | X19: =IF(Tabelle7[[#This Row],['[-']2]]>0,Tabelle7[[#This Row],['[-']2]]*(Tabelle7[[#This Row],['[kg/m^3']]]/2)*Tabelle7[[#This Row],['[m/s']]]^2,Druckverlust(Tabelle7[[#This Row],[Spalte1]],C19,U19,V19,P19,L19,O19,J19,K19,Q19,D19,E19)) -> 111702.93 | Y19: 1.117029328 | Z19: 16.98 | AA19: 15.86 | AB19: 111702.93 | AC19: =SUM($AB$10:AB19) -> 413938.67
B20: T-Stück (Eingang Sammelrohr) | C20: Rohr | E20: =IF(ISTEXT(E19),$E$5,E19) -> 0.02 | F20: =IF(ISTEXT(F19),E13,F19) -> 4.00E-05 | G20: 141.12 | H20: 0.0392 | I20: =H20/L20 -> 3.48E-02 | J20: 1586061.326 | K20: 338 | L20: =Dichte(K20,J20) -> 1.12801 | M20: =VLOOKUP(J20*0.00001,'Datenbank Werte '!$A$1:$B$500,2,TRUE)*0.000001 -> 9.71E-06 | N20: =M20/L20 -> 8.61E-06 | O20: 8.99E-02 | P20: =Tabelle7[[#This Row],['[kg/h']]]/Tabelle7[[#This Row],['[kg/m^3']4]] -> 1570.09 | Q20: =H20*4/(L20*PI()*E20^2) -> 110.62 | R20: =Tabelle7[[#This Row],['[m/s']]]/VLOOKUP(J20*0.00001,'Datenbank Werte '!$A$1:$C$500,3,TRUE) -> 0.08 | S20: =(L20*Q20*E20)/M20 -> 2.5692E+05 | T20: =F20/E20 -> 2.0E-03 | U20: =Rohrreibungszahl(Tabelle7[[#This Row],['[-']]],Tabelle7[[#This Row],['[-']4]],Tabelle7[[#This Row],['[-']3]],Tabelle7[[#This Row],['[m']2]],Tabelle7[[#This Row],['[m']3]]) -> 2.41E-02 | W20: 0.9 | X20: =IF(Tabelle7[[#This Row],['[-']2]]>0,Tabelle7[[#This Row],['[-']2]]*(Tabelle7[[#This Row],['[kg/m^3']]]/2)*Tabelle7[[#This Row],['[m/s']]]^2,Druckverlust(Tabelle7[[#This Row],[Spalte1]],C20,U20,V20,P20,L20,O20,J20,K20,Q20,D20,E20)) -> 6211.16 | Y20: 0.0621115776 | Z20: 15.86 | AA20: 15.80 | AB20: 6211.16 | AC20: =SUM($AB$10:AB20) -> 420149.83
B21: Sammelrohr | C21: Rohr | D21: 0.2 | E21: =IF(ISTEXT(E20),$E$5,E20) -> 0.02 | F21: =IF(ISTEXT(F20),E14,F20) -> 4.00E-05 | G21: 141.12 | H21: 0.0392 | I21: 3.49E-02 | J21: 1579850.168 | K21: 338 | L21: =Dichte(K21,J21) -> 1.12363 | M21: =VLOOKUP(J21*0.00001,'Datenbank Werte '!$A$1:$B$500,2,TRUE)*0.000001 -> 9.71E-06 | N21: 8.64E-06 | O21: 8.99E-02 | P21: =Tabelle7[[#This Row],['[kg/h']]]/Tabelle7[[#This Row],['[kg/m^3']4]] -> 1570.09 | Q21: 111.05 | R21: =Tabelle7[[#This Row],['[m/s']]]/VLOOKUP(J21*0.00001,'Datenbank Werte '!$A$1:$C$500,3,TRUE) -> 0.08 | S21: 2.5692E+05 | T21: 2.0E-03 | U21: =Rohrreibungszahl(Tabelle7[[#This Row],['[-']]],Tabelle7[[#This Row],['[-']4]],Tabelle7[[#This Row],['[-']3]],Tabelle7[[#This Row],['[m']2]],Tabelle7[[#This Row],['[m']3]]) -> 2.41E-02 | X21: =IF(Tabelle7[[#This Row],['[-']2]]>0,Tabelle7[[#This Row],['[-']2]]*(Tabelle7[[#This Row],['[kg/m^3']]]/2)*Tabelle7[[#This Row],['[m/s']]]^2,Druckverlust(Tabelle7[[#This Row],[Spalte1]],C21,U21,V21,P21,L21,O21,J21,K21,Q21,D21,E21)) -> 1669.29 | Y21: 0.01669292264 | Z21: 15.80 | AA21: 15.78 | AB21: 1669.29 | AC21: =SUM($AB$10:AB21) -> 421819.12
B22: T-Stück (zum TC) | C22: Rohr | E22: 0.02 | F22: =IF(ISTEXT(F21),E15,F21) -> 4.00E-05 | G22: 141.12 | H22: 0.0392 | I22: 3.49E-02 | J22: 1578180.876 | K22: 338 | L22: =Dichte(K22,J22) -> 1.12245 | M22: =VLOOKUP(J22*0.00001,'Datenbank Werte '!$A$1:$B$500,2,TRUE)*0.000001 -> 9.71E-06 | N22: 8.65E-06 | O22: 8.99E-02 | P22: =Tabelle7[[#This Row],['[kg/h']]]/Tabelle7[[#This Row],['[kg/m^3']4]] -> 1570.09 | Q22: 111.17 | R22: =Tabelle7[[#This Row],['[m/s']]]/VLOOKUP(J22*0.00001,'Datenbank Werte '!$A$1:$C$500,3,TRUE) -> 0.08 | S22: 2.5692E+05 | T22: 2.0E-03 | U22: =Rohrreibungszahl(Tabelle7[[#This Row],['[-']]],Tabelle7[[#This Row],['[-']4]],Tabelle7[[#This Row],['[-']3]],Tabelle7[[#This Row],['[m']2]],Tabelle7[[#This Row],['[m']3]]) -> 2.41E-02 | W22: 0.05 | X22: =IF(Tabelle7[[#This Row],['[-']2]]>0,Tabelle7[[#This Row],['[-']2]]*(Tabelle7[[#This Row],['[kg/m^3']]]/2)*Tabelle7[[#This Row],['[m/s']]]^2,Druckverlust(Tabelle7[[#This Row],[Spalte1]],C22,U22,V22,P22,L22,O22,J22,K22,Q22,D22,E22)) -> 346.77 | Y22: 0.003467726519 | Z22: 15.78 | AA22: 15.78 | AB22: 346.77 | AC22: =SUM($AB$10:AB22) -> 422165.90
C23: Rohr | D23: 0.1 | E23: 0.02 | F23: =IF(ISTEXT(F22),E16,F22) -> 4.00E-05 | G23: 141.12 | H23: 0.0392 | I23: 3.49E-02 | J23: 1577834.103 | K23: 338 | L23: =Dichte(K23,J23) -> 1.12221 | M23: =VLOOKUP(J23*0.00001,'Datenbank Werte '!$A$1:$B$500,2,TRUE)*0.000001 -> 9.71E-06 | N23: 8.66E-06 | O23: 8.99E-02 | P23: =Tabelle7[[#This Row],['[kg/h']]]/Tabelle7[[#This Row],['[kg/m^3']4]] -> 1570.09 | Q23: 111.19 | R23: =Tabelle7[[#This Row],['[m/s']]]/VLOOKUP(J23*0.00001,'Datenbank Werte '!$A$1:$C$500,3,TRUE) -> 0.08 | S23: 2.5692E+05 | T23: 2.0E-03 | U23: =Rohrreibungszahl(Tabelle7[[#This Row],['[-']]],Tabelle7[[#This Row],['[-']4]],Tabelle7[[#This Row],['[-']3]],Tabelle7[[#This Row],['[m']2]],Tabelle7[[#This Row],['[m']3]]) -> 2.41E-02 | X23: =IF(Tabelle7[[#This Row],['[-']2]]>0,Tabelle7[[#This Row],['[-']2]]*(Tabelle7[[#This Row],['[kg/m^3']]]/2)*Tabelle7[[#This Row],['[m/s']]]^2,Druckverlust(Tabelle7[[#This Row],[Spalte1]],C23,U23,V23,P23,L23,O23,J23,K23,Q23,D23,E23)) -> 835.70 | Y23: 0.008357035291 | Z23: 15.78 | AA23: 15.77 | AB23: 835.70 | AC23: =SUM($AB$10:AB23) -> 423001.60
B24: T-Stück (Ausgang Sammelrohr) | C24: Rohr | E24: 0.02 | F24: =IF(ISTEXT(F23),E18,F23) -> 4.00E-05 | G24: 141.12 | H24: 0.0392 | I24: 3.49E-02 | J24: 1576998.4 | K24: 338 | L24: =Dichte(K24,J24) -> 1.12162 | M24: =VLOOKUP(J24*0.00001,'Datenbank Werte '!$A$1:$B$500,2,TRUE)*0.000001 -> 9.71E-06 | N24: 8.66E-06 | O24: 8.99E-02 | P24: =Tabelle7[[#This Row],['[kg/h']]]/Tabelle7[[#This Row],['[kg/m^3']4]] -> 1570.09 | Q24: 111.25 | R24: =Tabelle7[[#This Row],['[m/s']]]/VLOOKUP(J24*0.00001,'Datenbank Werte '!$A$1:$C$500,3,TRUE) -> 0.08 | S24: 2.5692E+05 | T24: 2.0E-03 | U24: =Rohrreibungszahl(Tabelle7[[#This Row],['[-']]],Tabelle7[[#This Row],['[-']4]],Tabelle7[[#This Row],['[-']3]],Tabelle7[[#This Row],['[m']2]],Tabelle7[[#This Row],['[m']3]]) -> 2.41E-02 | W24: 1.3 | X24: =IF(Tabelle7[[#This Row],['[-']2]]>0,Tabelle7[[#This Row],['[-']2]]*(Tabelle7[[#This Row],['[kg/m^3']]]/2)*Tabelle7[[#This Row],['[m/s']]]^2,Druckverlust(Tabelle7[[#This Row],[Spalte1]],C24,U24,V24,P24,L24,O24,J24,K24,Q24,D24,E24)) -> 9022.79 | Y24: 0.09022792049 | Z24: 15.77 | AA24: 15.68 | AB24: 9022.79 | AC24: =SUM($AB$10:AB24) -> 432024.39
C25: Rohr | D25: 0.2 | E25: 0.02 | F25: =IF(ISTEXT(F24),E19,F24) -> 4.00E-05 | G25: 141.12 | H25: 0.0392 | I25: 3.51E-02 | J25: 1567975.608 | K25: 338 | L25: =Dichte(K25,J25) -> 1.11525 | M25: =VLOOKUP(J25*0.00001,'Datenbank Werte '!$A$1:$B$500,2,TRUE)*0.000001 -> 9.71E-06 | N25: 8.71E-06 | O25: 8.99E-02 | P25: =Tabelle7[[#This Row],['[kg/h']]]/Tabelle7[[#This Row],['[kg/m^3']4]] -> 1570.09 | Q25: 111.88 | R25: =Tabelle7[[#This Row],['[m/s']]]/VLOOKUP(J25*0.00001,'Datenbank Werte '!$A$1:$C$500,3,TRUE) -> 0.08 | S25: 2.5692E+05 | T25: 2.0E-03 | U25: =Rohrreibungszahl(Tabelle7[[#This Row],['[-']]],Tabelle7[[#This Row],['[-']4]],Tabelle7[[#This Row],['[-']3]],Tabelle7[[#This Row],['[m']2]],Tabelle7[[#This Row],['[m']3]]) -> 2.41E-02 | X25: =IF(Tabelle7[[#This Row],['[-']2]]>0,Tabelle7[[#This Row],['[-']2]]*(Tabelle7[[#This Row],['[kg/m^3']]]/2)*Tabelle7[[#This Row],['[m/s']]]^2,Druckverlust(Tabelle7[[#This Row],[Spalte1]],C25,U25,V25,P25,L25,O25,J25,K25,Q25,D25,E25)) -> 1681.83 | Y25: 0.01681826652 | Z25: 15.68 | AA25: 15.66 | AB25: 1681.83 | AC25: =SUM($AB$10:AB25) -> 433706.22
B26: T-Stück (Überdruckventil) | C26: Rohr | E26: 0.02 | F26: =IF(ISTEXT(F25),E20,F25) -> 4.00E-05 | G26: 141.12 | H26: 0.0392 | I26: 3.52E-02 | J26: 1566293.781 | K26: =IF(ISTEXT(K25),E18,K25) -> 338 | L26: =Dichte(K26,J26) -> 1.11407 | M26: =VLOOKUP(J26*0.00001,'Datenbank Werte '!$A$1:$B$500,2,TRUE)*0.000001 -> 9.71E-06 | N26: 8.72E-06 | O26: =IF(ISTEXT(O25),H18,O25) -> 8.99E-02 | P26: =Tabelle7[[#This Row],['[kg/h']]]/Tabelle7[[#This Row],['[kg/m^3']4]] -> 1570.09 | Q26: 112.00 | R26: =Tabelle7[[#This Row],['[m/s']]]/VLOOKUP(J26*0.00001,'Datenbank Werte '!$A$1:$C$500,3,TRUE) -> 0.08 | S26: 2.5692E+05 | T26: 2.0E-03 | U26: =Rohrreibungszahl(Tabelle7[[#This Row],['[-']]],Tabelle7[[#This Row],['[-']4]],Tabelle7[[#This Row],['[-']3]],Tabelle7[[#This Row],['[m']2]],Tabelle7[[#This Row],['[m']3]]) -> 2.41E-02 | W26: 0.05 | X26: =IF(Tabelle7[[#This Row],['[-']2]]>0,Tabelle7[[#This Row],['[-']2]]*(Tabelle7[[#This Row],['[kg/m^3']]]/2)*Tabelle7[[#This Row],['[m/s']]]^2,Druckverlust(Tabelle7[[#This Row],[Spalte1]],C26,U26,V26,P26,L26,O26,J26,K26,Q26,D26,E26)) -> 349.38 | Y26: 0.003493820706 | Z26: 15.66 | AA26: 15.66 | AB26: 349.38 | AC26: =SUM($AB$10:AB26) -> 434055.60
C27: Rohr | D27: 0.2 | E27: 0.02 | F27: 4.00E-05 | G27: 141.12 | H27: 0.0392 | I27: 3.52E-02 | J27: 1565944.399 | K27: =IF(ISTEXT(K26),E19,K26) -> 338 | L27: =Dichte(K27,J27) -> 1.11382 | M27: =VLOOKUP(J27*0.00001,'Datenbank Werte '!$A$1:$B$500,2,TRUE)*0.000001 -> 9.71E-06 | N27: 8.72E-06 | O27: =IF(ISTEXT(O26),H19,O26) -> 8.99E-02 | P27: =Tabelle7[[#This Row],['[kg/h']]]/Tabelle7[[#This Row],['[kg/m^3']4]] -> 1570.09 | Q27: 112.03 | R27: =Tabelle7[[#This Row],['[m/s']]]/VLOOKUP(J27*0.00001,'Datenbank Werte '!$A$1:$C$500,3,TRUE) -> 0.08 | S27: 2.5692E+05 | T27: 2.0E-03 | U27: =Rohrreibungszahl(Tabelle7[[#This Row],['[-']]],Tabelle7[[#This Row],['[-']4]],Tabelle7[[#This Row],['[-']3]],Tabelle7[[#This Row],['[m']2]],Tabelle7[[#This Row],['[m']3]]) -> 2.41E-02 | X27: =IF(Tabelle7[[#This Row],['[-']2]]>0,Tabelle7[[#This Row],['[-']2]]*(Tabelle7[[#This Row],['[kg/m^3']]]/2)*Tabelle7[[#This Row],['[m/s']]]^2,Druckverlust(Tabelle7[[#This Row],[Spalte1]],C27,U27,V27,P27,L27,O27,J27,K27,Q27,D27,E27)) -> 1683.99 | Y27: 0.01683989768 | Z27: 15.66 | AA27: 15.64 | AB27: 1683.99 | AC27: =SUM($AB$10:AB27) -> 435739.59
B28: T-Stück (Sensoren) | C28: Rohr | E28: 0.02 | F28: 4.00E-05 | G28: 141.12 | H28: 0.0392 | I28: 3.52E-02 | J28: 1564260.409 | K28: =IF(ISTEXT(K27),E20,K27) -> 338 | L28: =Dichte(K28,J28) -> 1.11263 | M28: =VLOOKUP(J28*0.00001,'Datenbank Werte '!$A$1:$B$500,2,TRUE)*0.000001 -> 9.71E-06 | N28: 8.73E-06 | O28: =IF(ISTEXT(O27),H20,O27) -> 8.99E-02 | P28: =Tabelle7[[#This Row],['[kg/h']]]/Tabelle7[[#This Row],['[kg/m^3']4]] -> 1570.09 | Q28: 112.15 | R28: =Tabelle7[[#This Row],['[m/s']]]/VLOOKUP(J28*0.00001,'Datenbank Werte '!$A$1:$C$500,3,TRUE) -> 0.08 | S28: 2.5692E+05 | T28: 2.0E-03 | U28: =Rohrreibungszahl(Tabelle7[[#This Row],['[-']]],Tabelle7[[#This Row],['[-']4]],Tabelle7[[#This Row],['[-']3]],Tabelle7[[#This Row],['[m']2]],Tabelle7[[#This Row],['[m']3]]) -> 2.41E-02 | W28: 0.05 | X28: =IF(Tabelle7[[#This Row],['[-']2]]>0,Tabelle7[[#This Row],['[-']2]]*(Tabelle7[[#This Row],['[kg/m^3']]]/2)*Tabelle7[[#This Row],['[m/s']]]^2,Druckverlust(Tabelle7[[#This Row],[Spalte1]],C28,U28,V28,P28,L28,O28,J28,K28,Q28,D28,E28)) -> 349.83 | Y28: 0.003498324024 | Z28: 15.64 | AA28: 15.64 | AB28: 349.83 | AC28: =SUM($AB$10:AB28) -> 436089.42
C29: Rohr | D29: 0.2 | E29: 0.02 | F29: 4.00E-05 | G29: 141.12 | H29: 0.0392 | I29: 3.52E-02 | J29: 1563910.577 | K29: 338 | L29: =Dichte(K29,J29) -> 1.11239 | M29: =VLOOKUP(J29*0.00001,'Datenbank Werte '!$A$1:$B$500,2,TRUE)*0.000001 -> 9.71E-06 | N29: 8.73E-06 | O29: 8.99E-02 | P29: =Tabelle7[[#This Row],['[kg/h']]]/Tabelle7[[#This Row],['[kg/m^3']4]] -> 1570.09 | Q29: 112.17 | R29: =Tabelle7[[#This Row],['[m/s']]]/VLOOKUP(J29*0.00001,'Datenbank Werte '!$A$1:$C$500,3,TRUE) -> 0.08 | S29: 2.5692E+05 | T29: 2.0E-03 | U29: =Rohrreibungszahl(Tabelle7[[#This Row],['[-']]],Tabelle7[[#This Row],['[-']4]],Tabelle7[[#This Row],['[-']3]],Tabelle7[[#This Row],['[m']2]],Tabelle7[[#This Row],['[m']3]]) -> 2.41E-02 | X29: =IF(Tabelle7[[#This Row],['[-']2]]>0,Tabelle7[[#This Row],['[-']2]]*(Tabelle7[[#This Row],['[kg/m^3']]]/2)*Tabelle7[[#This Row],['[m/s']]]^2,Druckverlust(Tabelle7[[#This Row],[Spalte1]],C29,U29,V29,P29,L29,O29,J29,K29,Q29,D29,E29)) -> 1686.16 | Y29: 0.01686161297 | Z29: 15.64 | AA29: 15.62 | AB29: 1686.16 | AC29: =SUM($AB$10:AB29) -> 437775.58
B30: T-Stück (Entlüftungsventil) | C30: Rohr | E30: 0.02 | F30: 4.00E-05 | G30: 141.12 | H30: 0.0392 | I30: 3.53E-02 | J30: 1562224.416 | K30: 338 | L30: =Dichte(K30,J30) -> 1.11120 | M30: =VLOOKUP(J30*0.00001,'Datenbank Werte '!$A$1:$B$500,2,TRUE)*0.000001 -> 9.71E-06 | N30: 8.74E-06 | O30: 8.99E-02 | P30: =Tabelle7[[#This Row],['[kg/h']]]/Tabelle7[[#This Row],['[kg/m^3']4]] -> 1570.09 | Q30: 112.29 | R30: =Tabelle7[[#This Row],['[m/s']]]/VLOOKUP(J30*0.00001,'Datenbank Werte '!$A$1:$C$500,3,TRUE) -> 0.08 | S30: 2.5692E+05 | T30: 2.0E-03 | U30: =Rohrreibungszahl(Tabelle7[[#This Row],['[-']]],Tabelle7[[#This Row],['[-']4]],Tabelle7[[#This Row],['[-']3]],Tabelle7[[#This Row],['[m']2]],Tabelle7[[#This Row],['[m']3]]) -> 2.41E-02 | W30: 0.05 | X30: =IF(Tabelle7[[#This Row],['[-']2]]>0,Tabelle7[[#This Row],['[-']2]]*(Tabelle7[[#This Row],['[kg/m^3']]]/2)*Tabelle7[[#This Row],['[m/s']]]^2,Druckverlust(Tabelle7[[#This Row],[Spalte1]],C30,U30,V30,P30,L30,O30,J30,K30,Q30,D30,E30)) -> 350.28 | Y30: 0.003502844894 | Z30: 15.62 | AA30: 15.62 | AB30: 350.28 | AC30: =SUM($AB$10:AB30) -> 438125.87
B31: Hauptventil | C31: Ventil | E31: 0.02 | F31: 4.00E-05 | G31: 141.12 | H31: 0.0392 | I31: 3.53E-02 | J31: 1561874.131 | K31: 338 | L31: =Dichte(K31,J31) -> 1.11095 | M31: =VLOOKUP(J31*0.00001,'Datenbank Werte '!$A$1:$B$500,2,TRUE)*0.000001 -> 9.71E-06 | N31: 8.74E-06 | O31: 8.99E-02 | P31: =Tabelle7[[#This Row],['[kg/h']]]/Tabelle7[[#This Row],['[kg/m^3']4]] -> 1570.09 | Q31: 112.32 | R31: =Tabelle7[[#This Row],['[m/s']]]/VLOOKUP(J31*0.00001,'Datenbank Werte '!$A$1:$C$500,3,TRUE) -> 0.08 | S31: 2.5692E+05 | T31: 2.0E-03 | U31: =Rohrreibungszahl(Tabelle7[[#This Row],['[-']]],Tabelle7[[#This Row],['[-']4]],Tabelle7[[#This Row],['[-']3]],Tabelle7[[#This Row],['[m']2]],Tabelle7[[#This Row],['[m']3]]) -> Nur bei 'Rohr' benötigt | V31: 4 | X31: =IF(Tabelle7[[#This Row],['[-']2]]>0,Tabelle7[[#This Row],['[-']2]]*(Tabelle7[[#This Row],['[kg/m^3']]]/2)*Tabelle7[[#This Row],['[m/s']]]^2,Druckverlust(Tabelle7[[#This Row],[Spalte1]],C31,U31,V31,P31,L31,O31,J31,K31,Q31,D31,E31)) -> 123141.51 | Y31: 1.231415057 | Z31: 15.62 | AA31: 14.39 | AB31: 123141.51 | AC31: =SUM($AB$10:AB31) -> 561267.37
C32: Rohr | D32: 0.2 | E32: 0.02 | F32: 4.00E-05 | G32: 141.12 | H32: 0.0392 | I32: 3.83E-02 | J32: 1438732.626 | K32: 338 | L32: =Dichte(K32,J32) -> 1.02404 | M32: =VLOOKUP(J32*0.00001,'Datenbank Werte '!$A$1:$B$500,2,TRUE)*0.000001 -> 9.71E-06 | N32: 9.48E-06 | O32: 8.99E-02 | P32: =Tabelle7[[#This Row],['[kg/h']]]/Tabelle7[[#This Row],['[kg/m^3']4]] -> 1570.09 | Q32: 121.85 | R32: =Tabelle7[[#This Row],['[m/s']]]/VLOOKUP(J32*0.00001,'Datenbank Werte '!$A$1:$C$500,3,TRUE) -> 0.09 | S32: 2.5693E+05 | T32: 2.0E-03 | U32: =Rohrreibungszahl(Tabelle7[[#This Row],['[-']]],Tabelle7[[#This Row],['[-']4]],Tabelle7[[#This Row],['[-']3]],Tabelle7[[#This Row],['[m']2]],Tabelle7[[#This Row],['[m']3]]) -> 2.41E-02 | X32: =IF(Tabelle7[[#This Row],['[-']2]]>0,Tabelle7[[#This Row],['[-']2]]*(Tabelle7[[#This Row],['[kg/m^3']]]/2)*Tabelle7[[#This Row],['[m/s']]]^2,Druckverlust(Tabelle7[[#This Row],[Spalte1]],C32,U32,V32,P32,L32,O32,J32,K32,Q32,D32,E32)) -> 1831.63 | Y32: 0.01831629881 | Z32: 14.39 | AA32: 14.37 | AB32: 1831.63 | AC32: =SUM($AB$10:AB32) -> 563099.00
B33: T-Stück (Druckminderer) | C33: Rohr | E33: 0.02 | F33: 4.00E-05 | G33: =17.64*4 -> 70.56 | H33: 0.0196 | I33: 1.92E-02 | J33: 1436900.996 | K33: 338 | L33: =Dichte(K33,J33) -> 1.02275 | M33: =VLOOKUP(J33*0.00001,'Datenbank Werte '!$A$1:$B$500,2,TRUE)*0.000001 -> 9.71E-06 | N33: 9.50E-06 | O33: 8.99E-02 | P33: =Tabelle7[[#This Row],['[kg/h']]]/Tabelle7[[#This Row],['[kg/m^3']4]] -> 785.05 | Q33: 61.00 | R33: =Tabelle7[[#This Row],['[m/s']]]/VLOOKUP(J33*0.00001,'Datenbank Werte '!$A$1:$C$500,3,TRUE) -> 0.04 | S33: 1.2847E+05 | T33: 2.0E-03 | U33: =Rohrreibungszahl(Tabelle7[[#This Row],['[-']]],Tabelle7[[#This Row],['[-']4]],Tabelle7[[#This Row],['[-']3]],Tabelle7[[#This Row],['[m']2]],Tabelle7[[#This Row],['[m']3]]) -> 2.47E-02 | W33: 1.3 | X33: =IF(Tabelle7[[#This Row],['[-']2]]>0,Tabelle7[[#This Row],['[-']2]]*(Tabelle7[[#This Row],['[kg/m^3']]]/2)*Tabelle7[[#This Row],['[m/s']]]^2,Druckverlust(Tabelle7[[#This Row],[Spalte1]],C33,U33,V33,P33,L33,O33,J33,K33,Q33,D33,E33)) -> 2473.76 | Y33: 0.02473761911 | Z33: 14.37 | AA33: 14.34 | AB33: 2473.76 | AC33: =SUM($AB$10:AB33) -> 565572.77
C34: Rohr | D34: 0.3 | E34: 0.02 | F34: 4.00E-05 | G34: =17.64*4 -> 70.56 | H34: 0.0196 | I34: 1.92E-02 | J34: 1434427.234 | K34: 338 | L34: =Dichte(K34,J34) -> 1.02100 | M34: =VLOOKUP(J34*0.00001,'Datenbank Werte '!$A$1:$B$500,2,TRUE)*0.000001 -> 9.71E-06 | N34: 9.51E-06 | O34: 8.99E-02 | P34: =Tabelle7[[#This Row],['[kg/h']]]/Tabelle7[[#This Row],['[kg/m^3']4]] -> 785.05 | Q34: 61.11 | R34: =Tabelle7[[#This Row],['[m/s']]]/VLOOKUP(J34*0.00001,'Datenbank Werte '!$A$1:$C$500,3,TRUE) -> 0.04 | S34: 1.2847E+05 | T34: 2.0E-03 | U34: =Rohrreibungszahl(Tabelle7[[#This Row],['[-']]],Tabelle7[[#This Row],['[-']4]],Tabelle7[[#This Row],['[-']3]],Tabelle7[[#This Row],['[m']2]],Tabelle7[[#This Row],['[m']3]]) -> 2.47E-02 | X34: =IF(Tabelle7[[#This Row],['[-']2]]>0,Tabelle7[[#This Row],['[-']2]]*(Tabelle7[[#This Row],['[kg/m^3']]]/2)*Tabelle7[[#This Row],['[m/s']]]^2,Druckverlust(Tabelle7[[#This Row],[Spalte1]],C34,U34,V34,P34,L34,O34,J34,K34,Q34,D34,E34)) -> 707.31 | Y34: 0.007073078156 | Z34: 14.34 | AA34: 14.34 | AB34: 707.31 | AC34: =SUM($AB$10:AB34) -> 566280.07
B35: 90°Winkel | C35: Rohr | E35: 0.02 | F35: 4.00E-05 | G35: 70.56 | H35: 0.0196 | I35: 1.92E-02 | J35: 1433719.926 | K35: 338 | L35: =Dichte(K35,J35) -> 1.02050 | M35: =VLOOKUP(J35*0.00001,'Datenbank Werte '!$A$1:$B$500,2,TRUE)*0.000001 -> 9.71E-06 | N35: 9.52E-06 | O35: 8.99E-02 | P35: =Tabelle7[[#This Row],['[kg/h']]]/Tabelle7[[#This Row],['[kg/m^3']4]] -> 785.05 | Q35: 61.14 | R35: =Tabelle7[[#This Row],['[m/s']]]/VLOOKUP(J35*0.00001,'Datenbank Werte '!$A$1:$C$500,3,TRUE) -> 0.04 | S35: 1.2847E+05 | T35: 2.0E-03 | U35: =Rohrreibungszahl(Tabelle7[[#This Row],['[-']]],Tabelle7[[#This Row],['[-']4]],Tabelle7[[#This Row],['[-']3]],Tabelle7[[#This Row],['[m']2]],Tabelle7[[#This Row],['[m']3]]) -> 2.47E-02 | W35: 0.15 | X35: =IF(Tabelle7[[#This Row],['[-']2]]>0,Tabelle7[[#This Row],['[-']2]]*(Tabelle7[[#This Row],['[kg/m^3']]]/2)*Tabelle7[[#This Row],['[m/s']]]^2,Druckverlust(Tabelle7[[#This Row],[Spalte1]],C35,U35,V35,P35,L35,O35,J35,K35,Q35,D35,E35)) -> 286.06 | Y35: 0.002860624752 | Z35: 14.34 | AA35: 14.33 | AB35: 286.06 | AC35: =SUM($AB$10:AB35) -> 566566.14
C36: Rohr | D36: 0.2 | E36: 0.02 | F36: 4.00E-05 | G36: 70.56 | H36: 0.0196 | I36: 1.92E-02 | J36: 1433433.863 | K36: 338 | L36: =Dichte(K36,J36) -> 1.02030 | M36: =VLOOKUP(J36*0.00001,'Datenbank Werte '!$A$1:$B$500,2,TRUE)*0.000001 -> 9.71E-06 | N36: 9.52E-06 | O36: 8.99E-02 | P36: =Tabelle7[[#This Row],['[kg/h']]]/Tabelle7[[#This Row],['[kg/m^3']4]] -> 785.05 | Q36: 61.15 | R36: =Tabelle7[[#This Row],['[m/s']]]/VLOOKUP(J36*0.00001,'Datenbank Werte '!$A$1:$C$500,3,TRUE) -> 0.04 | S36: 1.2847E+05 | T36: 2.0E-03 | U36: =Rohrreibungszahl(Tabelle7[[#This Row],['[-']]],Tabelle7[[#This Row],['[-']4]],Tabelle7[[#This Row],['[-']3]],Tabelle7[[#This Row],['[m']2]],Tabelle7[[#This Row],['[m']3]]) -> 2.47E-02 | X36: =IF(Tabelle7[[#This Row],['[-']2]]>0,Tabelle7[[#This Row],['[-']2]]*(Tabelle7[[#This Row],['[kg/m^3']]]/2)*Tabelle7[[#This Row],['[m/s']]]^2,Druckverlust(Tabelle7[[#This Row],[Spalte1]],C36,U36,V36,P36,L36,O36,J36,K36,Q36,D36,E36)) -> 471.86 | Y36: 0.004718627966 | Z36: 14.33 | AA36: 14.33 | AB36: 471.86 | AC36: =SUM($AB$10:AB36) -> 567038.00
B37: Ergebnis | AB37: Druckverlust gesamt in bar | AC37: =SUBTOTAL(104,Tabelle7['[Pa']4])*0.00001 -> 5.670379993
S42: =S11*T11 -> 513.7571169
G49: 1
G50: 2

Sheet TC_3 bis Druckminderer
C2: Temperatur | E2: 338 | G2: Normdichte | H2: 0.08988
C3: Massenstrom | E3: =17.64*8 -> 141.12 | G3: Startdruck | H3: 20.00
C4: Rauigleit (mm) | E4: 4.00E-02
C5: Innendurchmesser | E5: ='Diagramme '!C3 -> 0.02
C7: Rohr oder Ventil | D7: Länge Rohrleitung | E7: Innendruchmesser Rohr | F7: Rauigkeit | G7: Massenstrom H2 | H7: Massenstrom H2 | I7: Volumenstrom H2 | J7: Druck | K7: Temperatur | L7: Dichte | M7: dynamische Viskosität | N7: kinematische Viskosität | O7: Norm Dichte | P7: Norm Volumenstrom | Q7: Geschwindigkeit | R7: Mach-Zahl | S7: RE-Zahl | T7: k/d | U7: Rohrreibungszahl | V7: Kv-Wert | W7: Widerstandsbeiwert Zeta | X7: Durckverlust durch Komponente | Y7: Durckverlust durch Komponente | Z7: p_1 | AA7: p_2 | AB7: Delta p | AC7: Delta P aufsummiert
A9: System | B9: Komponente | C9: [-] | D9: [m] | E9: [m]2 | F9: [m]3 | G9: [kg/h] | H9: [kg/s] | I9: [m^3/s] | J9: [Pa] | K9: [K] | L9: [kg/m^3] | M9: [Pa*s] | N9: [m^2/s] | O9: [kg/m^3] | P9: [Nm^3/h] | Q9: [m/s] | R9: [-] | S9: [-] | T9: [-] | U9: [-] | V9: [m^3/h] | W9: [-] | X9: [Pa] | Y9: [bar] | Z9: [bar] | AA9: [bar] | AB9: [Pa] | AC9: [Pa]
B10: H2 Kupplung | C10: Ventil | E10: =IF(ISTEXT(E9),$E$5,E9) -> 0.02 | F10: =IF(ISTEXT(F9),E4*0.001,F9) -> 4.00E-05 | G10: =17.64*8 -> 141.12 | H10: =G10/3600 -> 0.0392 | I10: =H10/L10 -> 2.76E-02 | J10: =IF(ISTEXT(AA9),$H$3*100000,AA9*100000) -> 2000000 | K10: =IF(ISTEXT(K9),E2,K9) -> 338 | L10: =Dichte(K10,J10) -> 1.41924 | M10: =VLOOKUP(J10*0.00001,'Datenbank Werte '!$A$1:$B$500,2,TRUE)*0.000001 -> 9.72E-06 | N10: =M10/L10 -> 6.85E-06 | O10: =IF(ISTEXT(O9),H2,O9) -> 8.99E-02 | P10: =Tabelle745[[#This Row],['[kg/h']]]/Tabelle745[[#This Row],['[kg/m^3']4]] -> 1570.09 | Q10: =H10*4/(L10*PI()*E10^2) -> 87.92 | R10: =Tabelle745[[#This Row],['[m/s']]]/VLOOKUP(J10*0.00001,'Datenbank Werte '!$A$1:$C$500,3,TRUE) -> 0.06 | S10: =(L10*Q10*E10)/M10 -> 2.5685E+05 | T10: =F10/E10 -> 2.0E-03 | U10: =Rohrreibungszahl(Tabelle745[[#This Row],['[-']]],Tabelle745[[#This Row],['[-']4]],Tabelle745[[#This Row],['[-']3]],Tabelle745[[#This Row],['[m']2]],Tabelle745[[#This Row],['[m']3]]) -> Nur bei 'Rohr' benötigt | V10: 3.53 | X10: =IF(Tabelle745[[#This Row],['[-']2]]>0,Tabelle745[[#This Row],['[-']2]]*(Tabelle745[[#This Row],['[kg/m^3']]]/2)*Tabelle745[[#This Row],['[m/s']]]^2,Druckverlust(Tabelle745[[#This Row],[Spalte1]],C10,U10,V10,P10,L10,O10,J10,K10,Q10,D10,E10)) -> 121072.38 | Y10: =X10/10^5 -> 1.210723779 | Z10: =J10/10^5 -> 20.00 | AA10: =Z10-Y10 -> 18.79 | AB10: =X10 -> 121072.38 | AC10: =SUM($AB$10:AB10) -> 121072.38
B11: Schlauch | C11: Rohr | D11: 1 | E11: =IF(ISTEXT(E10),$E$5,E10) -> 0.02 | F11: 4.00E-05 | G11: 141.12 | H11: 0.0392 | I11: 2.94E-02 | J11: =IF(ISTEXT(AA10),$H$3*100000,AA10*100000) -> 1878927.622 | K11: =IF(ISTEXT(K10),E3,K10) -> 338 | L11: =Dichte(K11,J11) -> 1.33419 | M11: =VLOOKUP(J11*0.00001,'Datenbank Werte '!$A$1:$B$500,2,TRUE)*0.000001 -> 9.71E-06 | N11: 7.28E-06 | O11: =IF(ISTEXT(O10),H3,O10) -> 8.99E-02 | P11: =Tabelle745[[#This Row],['[kg/h']]]/Tabelle745[[#This Row],['[kg/m^3']4]] -> 1570.09 | Q11: 93.52 | R11: =Tabelle745[[#This Row],['[m/s']]]/VLOOKUP(J11*0.00001,'Datenbank Werte '!$A$1:$C$500,3,TRUE) -> 0.07 | S11: 2.5688E+05 | T11: 2.0E-03 | U11: =Rohrreibungszahl(Tabelle745[[#This Row],['[-']]],Tabelle745[[#This Row],['[-']4]],Tabelle745[[#This Row],['[-']3]],Tabelle745[[#This Row],['[m']2]],Tabelle745[[#This Row],['[m']3]]) -> 2.41E-02 | X11: =IF(Tabelle745[[#This Row],['[-']2]]>0,Tabelle745[[#This Row],['[-']2]]*(Tabelle745[[#This Row],['[kg/m^3']]]/2)*Tabelle745[[#This Row],['[m/s']]]^2,Druckverlust(Tabelle745[[#This Row],[Spalte1]],C11,U11,V11,P11,L11,O11,J11,K11,Q11,D11,E11)) -> 7029.25 | Y11: 0.0702924573 | Z11: 18.79 | AA11: 18.72 | AB11: 7029.25 | AC11: =SUM($AB$10:AB11) -> 128101.62
B12: 90°Winkel | C12: Rohr | E12: 0.02 | F12: 4.00E-05 | G12: =17.64*8 -> 141.12 | H12: =G12/3600 -> 0.0392 | I12: 2.95E-02 | J12: 1871898.376 | K12: 338 | L12: =Dichte(K12,J12) -> 1.32925 | M12: =VLOOKUP(J12*0.00001,'Datenbank Werte '!$A$1:$B$500,2,TRUE)*0.000001 -> 9.71E-06 | N12: 7.31E-06 | O12: 8.99E-02 | P12: =Tabelle745[[#This Row],['[kg/h']]]/Tabelle745[[#This Row],['[kg/m^3']4]] -> 1570.09 | Q12: 93.87 | R12: =Tabelle745[[#This Row],['[m/s']]]/VLOOKUP(J12*0.00001,'Datenbank Werte '!$A$1:$C$500,3,TRUE) -> 0.07 | S12: 2.5688E+05 | T12: 2.0E-03 | U12: =Rohrreibungszahl(Tabelle745[[#This Row],['[-']]],Tabelle745[[#This Row],['[-']4]],Tabelle745[[#This Row],['[-']3]],Tabelle745[[#This Row],['[m']2]],Tabelle745[[#This Row],['[m']3]]) -> 2.41E-02 | W12: 0.15 | X12: =IF(Tabelle745[[#This Row],['[-']2]]>0,Tabelle745[[#This Row],['[-']2]]*(Tabelle745[[#This Row],['[kg/m^3']]]/2)*Tabelle745[[#This Row],['[m/s']]]^2,Druckverlust(Tabelle745[[#This Row],[Spalte1]],C12,U12,V12,P12,L12,O12,J12,K12,Q12,D12,E12)) -> 878.47 | Y12: =X12/10^5 -> 0.008784693107 | Z12: =J12/10^5 -> 18.72 | AA12: =Z12-Y12 -> 18.71 | AB12: =X12 -> 878.47 | AC12: =SUM($AB$10:AB12) -> 128980.09
B13: Rohr | C13: Rohr | D13: 2 | E13: 0.02 | F13: 4.00E-05 | G13: =17.64*8 -> 141.12 | H13: =G13/3600 -> 0.0392 | I13: 2.95E-02 | J13: 1871019.907 | K13: 338 | L13: =Dichte(K13,J13) -> 1.32863 | M13: =VLOOKUP(J13*0.00001,'Datenbank Werte '!$A$1:$B$500,2,TRUE)*0.000001 -> 9.71E-06 | N13: 7.31E-06 | O13: 8.99E-02 | P13: =Tabelle745[[#This Row],['[kg/h']]]/Tabelle745[[#This Row],['[kg/m^3']4]] -> 1570.09 | Q13: 93.91 | R13: =Tabelle745[[#This Row],['[m/s']]]/VLOOKUP(J13*0.00001,'Datenbank Werte '!$A$1:$C$500,3,TRUE) -> 0.07 | S13: 2.5688E+05 | T13: 2.0E-03 | U13: =Rohrreibungszahl(Tabelle745[[#This Row],['[-']]],Tabelle745[[#This Row],['[-']4]],Tabelle745[[#This Row],['[-']3]],Tabelle745[[#This Row],['[m']2]],Tabelle745[[#This Row],['[m']3]]) -> 2.41E-02 | X13: =IF(Tabelle745[[#This Row],['[-']2]]>0,Tabelle745[[#This Row],['[-']2]]*(Tabelle745[[#This Row],['[kg/m^3']]]/2)*Tabelle745[[#This Row],['[m/s']]]^2,Druckverlust(Tabelle745[[#This Row],[Spalte1]],C13,U13,V13,P13,L13,O13,J13,K13,Q13,D13,E13)) -> 14117.31 | Y13: 0.1411730849 | Z13: 18.71 | AA13: 18.57 | AB13: 14117.31 | AC13: =SUM($AB$10:AB13) -> 143097.40
B14: 90°Winkel | C14: Rohr | E14: 0.02 | F14: 4.00E-05 | G14: =17.64*8 -> 141.12 | H14: =G14/3600 -> 0.0392 | I14: 2.97E-02 | J14: 1856902.599 | K14: 338 | L14: =Dichte(K14,J14) -> 1.31871 | M14: =VLOOKUP(J14*0.00001,'Datenbank Werte '!$A$1:$B$500,2,TRUE)*0.000001 -> 9.71E-06 | N14: 7.37E-06 | O14: 8.99E-02 | P14: =Tabelle745[[#This Row],['[kg/h']]]/Tabelle745[[#This Row],['[kg/m^3']4]] -> 1570.09 | Q14: 94.62 | R14: =Tabelle745[[#This Row],['[m/s']]]/VLOOKUP(J14*0.00001,'Datenbank Werte '!$A$1:$C$500,3,TRUE) -> 0.07 | S14: 2.5688E+05 | T14: 2.0E-03 | U14: =Rohrreibungszahl(Tabelle745[[#This Row],['[-']]],Tabelle745[[#This Row],['[-']4]],Tabelle745[[#This Row],['[-']3]],Tabelle745[[#This Row],['[m']2]],Tabelle745[[#This Row],['[m']3]]) -> 2.41E-02 | W14: 0.15 | X14: =IF(Tabelle745[[#This Row],['[-']2]]>0,Tabelle745[[#This Row],['[-']2]]*(Tabelle745[[#This Row],['[kg/m^3']]]/2)*Tabelle745[[#This Row],['[m/s']]]^2,Druckverlust(Tabelle745[[#This Row],[Spalte1]],C14,U14,V14,P14,L14,O14,J14,K14,Q14,D14,E14)) -> 885.49 | Y14: 0.008854921823 | Z14: 18.57 | AA14: 18.56 | AB14: 885.49 | AC14: =SUM($AB$10:AB14) -> 143982.89
B15: Rohr (Durchführung FRP) | C15: Rohr | D15: 1.6 | E15: 0.02 | F15: 4.00E-05 | G15: =17.64*8 -> 141.12 | H15: =G15/3600 -> 0.0392 | I15: 2.97E-02 | J15: 1856017.106 | K15: 338 | L15: =Dichte(K15,J15) -> 1.31809 | M15: =VLOOKUP(J15*0.00001,'Datenbank Werte '!$A$1:$B$500,2,TRUE)*0.000001 -> 9.71E-06 | N15: 7.37E-06 | O15: 8.99E-02 | P15: =Tabelle745[[#This Row],['[kg/h']]]/Tabelle745[[#This Row],['[kg/m^3']4]] -> 1570.09 | Q15: 94.67 | R15: =Tabelle745[[#This Row],['[m/s']]]/VLOOKUP(J15*0.00001,'Datenbank Werte '!$A$1:$C$500,3,TRUE) -> 0.07 | S15: 2.5688E+05 | T15: 2.0E-03 | U15: =Rohrreibungszahl(Tabelle745[[#This Row],['[-']]],Tabelle745[[#This Row],['[-']4]],Tabelle745[[#This Row],['[-']3]],Tabelle745[[#This Row],['[m']2]],Tabelle745[[#This Row],['[m']3]]) -> 2.41E-02 | X15: =IF(Tabelle745[[#This Row],['[-']2]]>0,Tabelle745[[#This Row],['[-']2]]*(Tabelle745[[#This Row],['[kg/m^3']]]/2)*Tabelle745[[#This Row],['[m/s']]]^2,Druckverlust(Tabelle745[[#This Row],[Spalte1]],C15,U15,V15,P15,L15,O15,J15,K15,Q15,D15,E15)) -> 11384.22 | Y15: 0.113842206 | Z15: 18.56 | AA15: 18.45 | AB15: 11384.22 | AC15: =SUM($AB$10:AB15) -> 155367.11
B16: Filter | C16: Ventil | E16: 0.02 | F16: 4.00E-05 | G16: 141.12 | H16: 0.0392 | I16: 2.99E-02 | J16: 1844632.886 | K16: 338 | L16: =Dichte(K16,J16) -> 1.31008 | M16: =VLOOKUP(J16*0.00001,'Datenbank Werte '!$A$1:$B$500,2,TRUE)*0.000001 -> 9.71E-06 | N16: 7.42E-06 | O16: 8.99E-02 | P16: =Tabelle745[[#This Row],['[kg/h']]]/Tabelle745[[#This Row],['[kg/m^3']4]] -> 1570.09 | Q16: 95.24 | R16: =Tabelle745[[#This Row],['[m/s']]]/VLOOKUP(J16*0.00001,'Datenbank Werte '!$A$1:$C$500,3,TRUE) -> 0.07 | S16: 2.5688E+05 | T16: 2.0E-03 | U16: =Rohrreibungszahl(Tabelle745[[#This Row],['[-']]],Tabelle745[[#This Row],['[-']4]],Tabelle745[[#This Row],['[-']3]],Tabelle745[[#This Row],['[m']2]],Tabelle745[[#This Row],['[m']3]]) -> Nur bei 'Rohr' benötigt | V16: 4 | X16: =IF(Tabelle745[[#This Row],['[-']2]]>0,Tabelle745[[#This Row],['[-']2]]*(Tabelle745[[#This Row],['[kg/m^3']]]/2)*Tabelle745[[#This Row],['[m/s']]]^2,Druckverlust(Tabelle745[[#This Row],[Spalte1]],C16,U16,V16,P16,L16,O16,J16,K16,Q16,D16,E16)) -> 101646.03 | Y16: 1.016460346 | Z16: 18.45 | AA16: 17.43 | AB16: 101646.03 | AC16: =SUM($AB$10:AB16) -> 257013.15
B17: Rückschlag-/Absperrventil | C17: Ventil | E17: 0.02 | F17: 4.00E-05 | G17: 141.12 | H17: 0.0392 | I17: 3.16E-02 | J17: 1742986.851 | K17: 338 | L17: =Dichte(K17,J17) -> 1.23857 | M17: =VLOOKUP(J17*0.00001,'Datenbank Werte '!$A$1:$B$500,2,TRUE)*0.000001 -> 9.71E-06 | N17: 7.84E-06 | O17: 8.99E-02 | P17: =Tabelle745[[#This Row],['[kg/h']]]/Tabelle745[[#This Row],['[kg/m^3']4]] -> 1570.09 | Q17: 100.74 | R17: =Tabelle745[[#This Row],['[m/s']]]/VLOOKUP(J17*0.00001,'Datenbank Werte '!$A$1:$C$500,3,TRUE) -> 0.07 | S17: 2.5689E+05 | T17: 2.0E-03 | U17: =Rohrreibungszahl(Tabelle745[[#This Row],['[-']]],Tabelle745[[#This Row],['[-']4]],Tabelle745[[#This Row],['[-']3]],Tabelle745[[#This Row],['[m']2]],Tabelle745[[#This Row],['[m']3]]) -> Nur bei 'Rohr' benötigt | V17: 4 | X17: =IF(Tabelle745[[#This Row],['[-']2]]>0,Tabelle745[[#This Row],['[-']2]]*(Tabelle745[[#This Row],['[kg/m^3']]]/2)*Tabelle745[[#This Row],['[m/s']]]^2,Druckverlust(Tabelle745[[#This Row],[Spalte1]],C17,U17,V17,P17,L17,O17,J17,K17,Q17,D17,E17)) -> 108385.90 | Y17: 1.083859043 | Z17: 17.43 | AA17: 16.35 | AB17: 108385.90 | AC17: =SUM($AB$10:AB17) -> 365399.05
B18: T-Stück (Eingang Sammelrohr) | C18: Rohr | E18: 0.02 | F18: 4.00E-05 | G18: 141.12 | H18: 0.0392 | I18: 3.37E-02 | J18: 1634600.947 | K18: 338 | L18: =Dichte(K18,J18) -> 1.16223 | M18: =VLOOKUP(J18*0.00001,'Datenbank Werte '!$A$1:$B$500,2,TRUE)*0.000001 -> 9.71E-06 | N18: 8.36E-06 | O18: 8.99E-02 | P18: =Tabelle745[[#This Row],['[kg/h']]]/Tabelle745[[#This Row],['[kg/m^3']4]] -> 1570.09 | Q18: 107.36 | R18: =Tabelle745[[#This Row],['[m/s']]]/VLOOKUP(J18*0.00001,'Datenbank Werte '!$A$1:$C$500,3,TRUE) -> 0.08 | S18: 2.5691E+05 | T18: 2.0E-03 | U18: =Rohrreibungszahl(Tabelle745[[#This Row],['[-']]],Tabelle745[[#This Row],['[-']4]],Tabelle745[[#This Row],['[-']3]],Tabelle745[[#This Row],['[m']2]],Tabelle745[[#This Row],['[m']3]]) -> 2.41E-02 | W18: 0.9 | X18: =IF(Tabelle745[[#This Row],['[-']2]]>0,Tabelle745[[#This Row],['[-']2]]*(Tabelle745[[#This Row],['[kg/m^3']]]/2)*Tabelle745[[#This Row],['[m/s']]]^2,Druckverlust(Tabelle745[[#This Row],[Spalte1]],C18,U18,V18,P18,L18,O18,J18,K18,Q18,D18,E18)) -> 6028.29 | Y18: 0.06028290916 | Z18: 16.35 | AA18: 16.29 | AB18: 6028.29 | AC18: =SUM($AB$10:AB18) -> 371427.34
C19: Rohr | D19: 0.1 | E19: 0.02 | F19: 4.00E-05 | G19: 141.12 | H19: 0.0392 | I19: 3.39E-02 | J19: 1628572.656 | K19: 338 | L19: =Dichte(K19,J19) -> 1.15798 | M19: =VLOOKUP(J19*0.00001,'Datenbank Werte '!$A$1:$B$500,2,TRUE)*0.000001 -> 9.71E-06 | N19: 8.39E-06 | O19: 8.99E-02 | P19: =Tabelle745[[#This Row],['[kg/h']]]/Tabelle745[[#This Row],['[kg/m^3']4]] -> 1570.09 | Q19: 107.75 | R19: =Tabelle745[[#This Row],['[m/s']]]/VLOOKUP(J19*0.00001,'Datenbank Werte '!$A$1:$C$500,3,TRUE) -> 0.08 | S19: 2.5691E+05 | T19: 2.0E-03 | U19: =Rohrreibungszahl(Tabelle745[[#This Row],['[-']]],Tabelle745[[#This Row],['[-']4]],Tabelle745[[#This Row],['[-']3]],Tabelle745[[#This Row],['[m']2]],Tabelle745[[#This Row],['[m']3]]) -> 2.41E-02 | X19: =IF(Tabelle745[[#This Row],['[-']2]]>0,Tabelle745[[#This Row],['[-']2]]*(Tabelle745[[#This Row],['[kg/m^3']]]/2)*Tabelle745[[#This Row],['[m/s']]]^2,Druckverlust(Tabelle745[[#This Row],[Spalte1]],C19,U19,V19,P19,L19,O19,J19,K19,Q19,D19,E19)) -> 809.89 | Y19: 0.008098892093 | Z19: 16.29 | AA19: 16.28 | AB19: 809.89 | AC19: =SUM($AB$10:AB19) -> 372237.23
B20: T-Stück (Ausgang Sammelrohr) | C20: Rohr | E20: 0.02 | F20: 4.00E-05 | G20: 141.12 | H20: 0.0392 | I20: 3.39E-02 | J20: 1627762.767 | K20: 338 | L20: =Dichte(K20,J20) -> 1.15741 | M20: =VLOOKUP(J20*0.00001,'Datenbank Werte '!$A$1:$B$500,2,TRUE)*0.000001 -> 9.71E-06 | N20: 8.39E-06 | O20: 8.99E-02 | P20: =Tabelle745[[#This Row],['[kg/h']]]/Tabelle745[[#This Row],['[kg/m^3']4]] -> 1570.09 | Q20: 107.81 | R20: =Tabelle745[[#This Row],['[m/s']]]/VLOOKUP(J20*0.00001,'Datenbank Werte '!$A$1:$C$500,3,TRUE) -> 0.08 | S20: 2.5691E+05 | T20: 2.0E-03 | U20: =Rohrreibungszahl(Tabelle745[[#This Row],['[-']]],Tabelle745[[#This Row],['[-']4]],Tabelle745[[#This Row],['[-']3]],Tabelle745[[#This Row],['[m']2]],Tabelle745[[#This Row],['[m']3]]) -> 2.41E-02 | W20: 1.3 | X20: =IF(Tabelle745[[#This Row],['[-']2]]>0,Tabelle745[[#This Row],['[-']2]]*(Tabelle745[[#This Row],['[kg/m^3']]]/2)*Tabelle745[[#This Row],['[m/s']]]^2,Druckverlust(Tabelle745[[#This Row],[Spalte1]],C20,U20,V20,P20,L20,O20,J20,K20,Q20,D20,E20)) -> 8743.79 | Y20: 0.08743789728 | Z20: 16.28 | AA20: 16.19 | AB20: 8743.79 | AC20: =SUM($AB$10:AB20) -> 380981.02
C21: Rohr | D21: 0.2 | E21: 0.02 | F21: 4.00E-05 | G21: 141.12 | H21: 0.0392 | I21: 3.41E-02 | J21: 1619018.977 | K21: 338 | L21: =Dichte(K21,J21) -> 1.15124 | M21: =VLOOKUP(J21*0.00001,'Datenbank Werte '!$A$1:$B$500,2,TRUE)*0.000001 -> 9.71E-06 | N21: 8.44E-06 | O21: 8.99E-02 | P21: =Tabelle745[[#This Row],['[kg/h']]]/Tabelle745[[#This Row],['[kg/m^3']4]] -> 1570.09 | Q21: 108.38 | R21: =Tabelle745[[#This Row],['[m/s']]]/VLOOKUP(J21*0.00001,'Datenbank Werte '!$A$1:$C$500,3,TRUE) -> 0.08 | S21: 2.5691E+05 | T21: 2.0E-03 | U21: =Rohrreibungszahl(Tabelle745[[#This Row],['[-']]],Tabelle745[[#This Row],['[-']4]],Tabelle745[[#This Row],['[-']3]],Tabelle745[[#This Row],['[m']2]],Tabelle745[[#This Row],['[m']3]]) -> 2.41E-02 | X21: =IF(Tabelle745[[#This Row],['[-']2]]>0,Tabelle745[[#This Row],['[-']2]]*(Tabelle745[[#This Row],['[kg/m^3']]]/2)*Tabelle745[[#This Row],['[m/s']]]^2,Druckverlust(Tabelle745[[#This Row],[Spalte1]],C21,U21,V21,P21,L21,O21,J21,K21,Q21,D21,E21)) -> 1629.25 | Y21: 0.01629252839 | Z21: 16.19 | AA21: 16.17 | AB21: 1629.25 | AC21: =SUM($AB$10:AB21) -> 382610.28
B22: T-Stück (Überdruckventil) | C22: Rohr | E22: 0.02 | F22: 4.00E-05 | G22: 141.12 | H22: 0.0392 | I22: 3.41E-02 | J22: 1617389.724 | K22: 338 | L22: =Dichte(K22,J22) -> 1.15010 | M22: =VLOOKUP(J22*0.00001,'Datenbank Werte '!$A$1:$B$500,2,TRUE)*0.000001 -> 9.71E-06 | N22: 8.45E-06 | O22: 8.99E-02 | P22: =Tabelle745[[#This Row],['[kg/h']]]/Tabelle745[[#This Row],['[kg/m^3']4]] -> 1570.09 | Q22: 108.49 | R22: =Tabelle745[[#This Row],['[m/s']]]/VLOOKUP(J22*0.00001,'Datenbank Werte '!$A$1:$C$500,3,TRUE) -> 0.08 | S22: 2.5691E+05 | T22: 2.0E-03 | U22: =Rohrreibungszahl(Tabelle745[[#This Row],['[-']]],Tabelle745[[#This Row],['[-']4]],Tabelle745[[#This Row],['[-']3]],Tabelle745[[#This Row],['[m']2]],Tabelle745[[#This Row],['[m']3]]) -> 2.41E-02 | W22: 0.05 | X22: =IF(Tabelle745[[#This Row],['[-']2]]>0,Tabelle745[[#This Row],['[-']2]]*(Tabelle745[[#This Row],['[kg/m^3']]]/2)*Tabelle745[[#This Row],['[m/s']]]^2,Druckverlust(Tabelle745[[#This Row],[Spalte1]],C22,U22,V22,P22,L22,O22,J22,K22,Q22,D22,E22)) -> 338.44 | Y22: 0.003384375577 | Z22: 16.17 | AA22: 16.17 | AB22: 338.44 | AC22: =SUM($AB$10:AB22) -> 382948.71
C23: Rohr | D23: 0.2 | E23: 0.02 | F23: 4.00E-05 | G23: 141.12 | H23: 0.0392 | I23: 3.41E-02 | J23: 1617051.287 | K23: 338 | L23: =Dichte(K23,J23) -> 1.14986 | M23: =VLOOKUP(J23*0.00001,'Datenbank Werte '!$A$1:$B$500,2,TRUE)*0.000001 -> 9.71E-06 | N23: 8.45E-06 | O23: 8.99E-02 | P23: =Tabelle745[[#This Row],['[kg/h']]]/Tabelle745[[#This Row],['[kg/m^3']4]] -> 1570.09 | Q23: 108.52 | R23: =Tabelle745[[#This Row],['[m/s']]]/VLOOKUP(J23*0.00001,'Datenbank Werte '!$A$1:$C$500,3,TRUE) -> 0.08 | S23: 2.5691E+05 | T23: 2.0E-03 | U23: =Rohrreibungszahl(Tabelle745[[#This Row],['[-']]],Tabelle745[[#This Row],['[-']4]],Tabelle745[[#This Row],['[-']3]],Tabelle745[[#This Row],['[m']2]],Tabelle745[[#This Row],['[m']3]]) -> 2.41E-02 | X23: =IF(Tabelle745[[#This Row],['[-']2]]>0,Tabelle745[[#This Row],['[-']2]]*(Tabelle745[[#This Row],['[kg/m^3']]]/2)*Tabelle745[[#This Row],['[m/s']]]^2,Druckverlust(Tabelle745[[#This Row],[Spalte1]],C23,U23,V23,P23,L23,O23,J23,K23,Q23,D23,E23)) -> 1631.22 | Y23: 0.01631218109 | Z23: 16.17 | AA23: 16.15 | AB23: 1631.22 | AC23: =SUM($AB$10:AB23) -> 384579.93
B24: T-Stück (Sensoren) | C24: Rohr | E24: 0.02 | F24: 4.00E-05 | G24: 141.12 | H24: 0.0392 | I24: 3.41E-02 | J24: 1615420.069 | K24: 338 | L24: =Dichte(K24,J24) -> 1.14871 | M24: =VLOOKUP(J24*0.00001,'Datenbank Werte '!$A$1:$B$500,2,TRUE)*0.000001 -> 9.71E-06 | N24: 8.46E-06 | O24: 8.99E-02 | P24: =Tabelle745[[#This Row],['[kg/h']]]/Tabelle745[[#This Row],['[kg/m^3']4]] -> 1570.09 | Q24: 108.62 | R24: =Tabelle745[[#This Row],['[m/s']]]/VLOOKUP(J24*0.00001,'Datenbank Werte '!$A$1:$C$500,3,TRUE) -> 0.08 | S24: 2.5691E+05 | T24: 2.0E-03 | U24: =Rohrreibungszahl(Tabelle745[[#This Row],['[-']]],Tabelle745[[#This Row],['[-']4]],Tabelle745[[#This Row],['[-']3]],Tabelle745[[#This Row],['[m']2]],Tabelle745[[#This Row],['[m']3]]) -> 2.41E-02 | W24: 0.05 | X24: =IF(Tabelle745[[#This Row],['[-']2]]>0,Tabelle745[[#This Row],['[-']2]]*(Tabelle745[[#This Row],['[kg/m^3']]]/2)*Tabelle745[[#This Row],['[m/s']]]^2,Druckverlust(Tabelle745[[#This Row],[Spalte1]],C24,U24,V24,P24,L24,O24,J24,K24,Q24,D24,E24)) -> 338.85 | Y24: 0.003388466185 | Z24: 16.15 | AA24: 16.15 | AB24: 338.85 | AC24: =SUM($AB$10:AB24) -> 384918.78
C25: Rohr | D25: 0.2 | E25: 0.02 | F25: 4.00E-05 | G25: 141.12 | H25: 0.0392 | I25: 3.41E-02 | J25: 1615081.222 | K25: 338 | L25: =Dichte(K25,J25) -> 1.14847 | M25: =VLOOKUP(J25*0.00001,'Datenbank Werte '!$A$1:$B$500,2,TRUE)*0.000001 -> 9.71E-06 | N25: 8.46E-06 | O25: 8.99E-02 | P25: =Tabelle745[[#This Row],['[kg/h']]]/Tabelle745[[#This Row],['[kg/m^3']4]] -> 1570.09 | Q25: 108.65 | R25: =Tabelle745[[#This Row],['[m/s']]]/VLOOKUP(J25*0.00001,'Datenbank Werte '!$A$1:$C$500,3,TRUE) -> 0.08 | S25: 2.5691E+05 | T25: 2.0E-03 | U25: =Rohrreibungszahl(Tabelle745[[#This Row],['[-']]],Tabelle745[[#This Row],['[-']4]],Tabelle745[[#This Row],['[-']3]],Tabelle745[[#This Row],['[m']2]],Tabelle745[[#This Row],['[m']3]]) -> 2.41E-02 | X25: =IF(Tabelle745[[#This Row],['[-']2]]>0,Tabelle745[[#This Row],['[-']2]]*(Tabelle745[[#This Row],['[kg/m^3']]]/2)*Tabelle745[[#This Row],['[m/s']]]^2,Druckverlust(Tabelle745[[#This Row],[Spalte1]],C25,U25,V25,P25,L25,O25,J25,K25,Q25,D25,E25)) -> 1633.19 | Y25: 0.01633190548 | Z25: 16.15 | AA25: 16.13 | AB25: 1633.19 | AC25: =SUM($AB$10:AB25) -> 386551.97
B26: T-Stück (Entlüftungsventil) | C26: Rohr | E26: 0.02 | F26: 4.00E-05 | G26: 141.12 | H26: 0.0392 | I26: 3.42E-02 | J26: 1613448.031 | K26: 338 | L26: =Dichte(K26,J26) -> 1.14732 | M26: =VLOOKUP(J26*0.00001,'Datenbank Werte '!$A$1:$B$500,2,TRUE)*0.000001 -> 9.71E-06 | N26: 8.47E-06 | O26: 8.99E-02 | P26: =Tabelle745[[#This Row],['[kg/h']]]/Tabelle745[[#This Row],['[kg/m^3']4]] -> 1570.09 | Q26: 108.76 | R26: =Tabelle745[[#This Row],['[m/s']]]/VLOOKUP(J26*0.00001,'Datenbank Werte '!$A$1:$C$500,3,TRUE) -> 0.08 | S26: 2.5691E+05 | T26: 2.0E-03 | U26: =Rohrreibungszahl(Tabelle745[[#This Row],['[-']]],Tabelle745[[#This Row],['[-']4]],Tabelle745[[#This Row],['[-']3]],Tabelle745[[#This Row],['[m']2]],Tabelle745[[#This Row],['[m']3]]) -> 2.41E-02 | W26: 0.05 | X26: =IF(Tabelle745[[#This Row],['[-']2]]>0,Tabelle745[[#This Row],['[-']2]]*(Tabelle745[[#This Row],['[kg/m^3']]]/2)*Tabelle745[[#This Row],['[m/s']]]^2,Druckverlust(Tabelle745[[#This Row],[Spalte1]],C26,U26,V26,P26,L26,O26,J26,K26,Q26,D26,E26)) -> 339.26 | Y26: 0.003392571745 | Z26: 16.13 | AA26: 16.13 | AB26: 339.26 | AC26: =SUM($AB$10:AB26) -> 386891.23
B27: Hauptventil | C27: Ventil | E27: 0.02 | F27: 4.00E-05 | G27: 141.12 | H27: 0.0392 | I27: 3.42E-02 | J27: 1613108.774 | K27: 338 | L27: =Dichte(K27,J27) -> 1.14708 | M27: =VLOOKUP(J27*0.00001,'Datenbank Werte '!$A$1:$B$500,2,TRUE)*0.000001 -> 9.71E-06 | N27: 8.47E-06 | O27: 8.99E-02 | P27: =Tabelle745[[#This Row],['[kg/h']]]/Tabelle745[[#This Row],['[kg/m^3']4]] -> 1570.09 | Q27: 108.78 | R27: =Tabelle745[[#This Row],['[m/s']]]/VLOOKUP(J27*0.00001,'Datenbank Werte '!$A$1:$C$500,3,TRUE) -> 0.08 | S27: 2.5691E+05 | T27: 2.0E-03 | U27: =Rohrreibungszahl(Tabelle745[[#This Row],['[-']]],Tabelle745[[#This Row],['[-']4]],Tabelle745[[#This Row],['[-']3]],Tabelle745[[#This Row],['[m']2]],Tabelle745[[#This Row],['[m']3]]) ->  | V27: 4 | X27: =IF(Tabelle745[[#This Row],['[-']2]]>0,Tabelle745[[#This Row],['[-']2]]*(Tabelle745[[#This Row],['[kg/m^3']]]/2)*Tabelle745[[#This Row],['[m/s']]]^2,Druckverlust(Tabelle745[[#This Row],[Spalte1]],C27,U27,V27,P27,L27,O27,J27,K27,Q27,D27,E27)) -> 118541.10 | Y27: 1.185411041 | Z27: 16.13 | AA27: 14.95 | AB27: 118541.10 | AC27: =SUM($AB$10:AB27) -> 505432.33
C28: Rohr | D28: 0.2 | E28: 0.02 | F28: 4.00E-05 | G28: 141.12 | H28: 0.0392 | I28: 3.69E-02 | J28: 1494567.67 | K28: 338 | L28: =Dichte(K28,J28) -> 1.06346 | M28: =VLOOKUP(J28*0.00001,'Datenbank Werte '!$A$1:$B$500,2,TRUE)*0.000001 -> 9.71E-06 | N28: 9.13E-06 | O28: 8.99E-02 | P28: =Tabelle745[[#This Row],['[kg/h']]]/Tabelle745[[#This Row],['[kg/m^3']4]] -> 1570.09 | Q28: 117.33 | R28: =Tabelle745[[#This Row],['[m/s']]]/VLOOKUP(J28*0.00001,'Datenbank Werte '!$A$1:$C$500,3,TRUE) -> 0.08 | S28: 2.5693E+05 | T28: 2.0E-03 | U28: =Rohrreibungszahl(Tabelle745[[#This Row],['[-']]],Tabelle745[[#This Row],['[-']4]],Tabelle745[[#This Row],['[-']3]],Tabelle745[[#This Row],['[m']2]],Tabelle745[[#This Row],['[m']3]]) -> 2.41E-02 | X28: =IF(Tabelle745[[#This Row],['[-']2]]>0,Tabelle745[[#This Row],['[-']2]]*(Tabelle745[[#This Row],['[kg/m^3']]]/2)*Tabelle745[[#This Row],['[m/s']]]^2,Druckverlust(Tabelle745[[#This Row],[Spalte1]],C28,U28,V28,P28,L28,O28,J28,K28,Q28,D28,E28)) -> 1763.73 | Y28: 0.01763732665 | Z28: 14.95 | AA28: 14.93 | AB28: 1763.73 | AC28: =SUM($AB$10:AB28) -> 507196.06
B29: T-Stück (Druckminderer) | C29: Rohr | E29: 0.02 | F29: 4.00E-05 | G29: =17.64*4 -> 70.56 | H29: 0.0196 | I29: 1.85E-02 | J29: 1492803.937 | K29: 338 | L29: =Dichte(K29,J29) -> 1.06222 | M29: =VLOOKUP(J29*0.00001,'Datenbank Werte '!$A$1:$B$500,2,TRUE)*0.000001 -> 9.71E-06 | N29: 9.14E-06 | O29: 8.99E-02 | P29: =Tabelle745[[#This Row],['[kg/h']]]/Tabelle745[[#This Row],['[kg/m^3']4]] -> 785.05 | Q29: 58.73 | R29: =Tabelle745[[#This Row],['[m/s']]]/VLOOKUP(J29*0.00001,'Datenbank Werte '!$A$1:$C$500,3,TRUE) -> 0.04 | S29: 1.2847E+05 | T29: 2.0E-03 | U29: =Rohrreibungszahl(Tabelle745[[#This Row],['[-']]],Tabelle745[[#This Row],['[-']4]],Tabelle745[[#This Row],['[-']3]],Tabelle745[[#This Row],['[m']2]],Tabelle745[[#This Row],['[m']3]]) -> 2.47E-02 | W29: 1.3 | X29: =IF(Tabelle745[[#This Row],['[-']2]]>0,Tabelle745[[#This Row],['[-']2]]*(Tabelle745[[#This Row],['[kg/m^3']]]/2)*Tabelle745[[#This Row],['[m/s']]]^2,Druckverlust(Tabelle745[[#This Row],[Spalte1]],C29,U29,V29,P29,L29,O29,J29,K29,Q29,D29,E29)) -> 2381.84 | Y29: 0.02381840423 | Z29: 14.93 | AA29: 14.90 | AB29: 2381.84 | AC29: =SUM($AB$10:AB29) -> 509577.90
C30: Rohr | D30: 0.3 | E30: 0.02 | F30: 4.00E-05 | G30: =17.64*4 -> 70.56 | H30: 0.0196 | I30: 1.85E-02 | J30: 1490422.097 | K30: 338 | L30: =Dichte(K30,J30) -> 1.06054 | M30: =VLOOKUP(J30*0.00001,'Datenbank Werte '!$A$1:$B$500,2,TRUE)*0.000001 -> 9.71E-06 | N30: 9.16E-06 | O30: 8.99E-02 | P30: =Tabelle745[[#This Row],['[kg/h']]]/Tabelle745[[#This Row],['[kg/m^3']4]] -> 785.05 | Q30: 58.83 | R30: =Tabelle745[[#This Row],['[m/s']]]/VLOOKUP(J30*0.00001,'Datenbank Werte '!$A$1:$C$500,3,TRUE) -> 0.04 | S30: 1.2847E+05 | T30: 2.0E-03 | U30: =Rohrreibungszahl(Tabelle745[[#This Row],['[-']]],Tabelle745[[#This Row],['[-']4]],Tabelle745[[#This Row],['[-']3]],Tabelle745[[#This Row],['[m']2]],Tabelle745[[#This Row],['[m']3]]) -> 2.47E-02 | X30: =IF(Tabelle745[[#This Row],['[-']2]]>0,Tabelle745[[#This Row],['[-']2]]*(Tabelle745[[#This Row],['[kg/m^3']]]/2)*Tabelle745[[#This Row],['[m/s']]]^2,Druckverlust(Tabelle745[[#This Row],[Spalte1]],C30,U30,V30,P30,L30,O30,J30,K30,Q30,D30,E30)) -> 680.94 | Y30: 0.006809396196 | Z30: 14.90 | AA30: 14.90 | AB30: 680.94 | AC30: =SUM($AB$10:AB30) -> 510258.84
B31: 90°Winkel | C31: Rohr | E31: 0.02 | F31: 4.00E-05 | G31: 70.56 | H31: 0.0196 | I31: 1.85E-02 | J31: 1489741.157 | K31: 338 | L31: =Dichte(K31,J31) -> 1.06005 | M31: =VLOOKUP(J31*0.00001,'Datenbank Werte '!$A$1:$B$500,2,TRUE)*0.000001 -> 9.71E-06 | N31: 9.16E-06 | O31: 8.99E-02 | P31: =Tabelle745[[#This Row],['[kg/h']]]/Tabelle745[[#This Row],['[kg/m^3']4]] -> 785.05 | Q31: 58.85 | R31: =Tabelle745[[#This Row],['[m/s']]]/VLOOKUP(J31*0.00001,'Datenbank Werte '!$A$1:$C$500,3,TRUE) -> 0.04 | S31: 1.2847E+05 | T31: 2.0E-03 | U31: =Rohrreibungszahl(Tabelle745[[#This Row],['[-']]],Tabelle745[[#This Row],['[-']4]],Tabelle745[[#This Row],['[-']3]],Tabelle745[[#This Row],['[m']2]],Tabelle745[[#This Row],['[m']3]]) -> 2.47E-02 | W31: 0.15 | X31: =IF(Tabelle745[[#This Row],['[-']2]]>0,Tabelle745[[#This Row],['[-']2]]*(Tabelle745[[#This Row],['[kg/m^3']]]/2)*Tabelle745[[#This Row],['[m/s']]]^2,Druckverlust(Tabelle745[[#This Row],[Spalte1]],C31,U31,V31,P31,L31,O31,J31,K31,Q31,D31,E31)) -> 275.39 | Y31: 0.002753882236 | Z31: 14.90 | AA31: 14.89 | AB31: 275.39 | AC31: =SUM($AB$10:AB31) -> 510534.23
C32: Rohr | D32: 0.2 | E32: 0.02 | F32: 4.00E-05 | G32: 70.56 | H32: 0.0196 | I32: 1.85E-02 | J32: 1489465.769 | K32: 338 | L32: =Dichte(K32,J32) -> 1.05986 | M32: =VLOOKUP(J32*0.00001,'Datenbank Werte '!$A$1:$B$500,2,TRUE)*0.000001 -> 9.71E-06 | N32: 9.16E-06 | O32: 8.99E-02 | P32: =Tabelle745[[#This Row],['[kg/h']]]/Tabelle745[[#This Row],['[kg/m^3']4]] -> 785.05 | Q32: 58.87 | R32: =Tabelle745[[#This Row],['[m/s']]]/VLOOKUP(J32*0.00001,'Datenbank Werte '!$A$1:$C$500,3,TRUE) -> 0.04 | S32: 1.2847E+05 | T32: 2.0E-03 | U32: =Rohrreibungszahl(Tabelle745[[#This Row],['[-']]],Tabelle745[[#This Row],['[-']4]],Tabelle745[[#This Row],['[-']3]],Tabelle745[[#This Row],['[m']2]],Tabelle745[[#This Row],['[m']3]]) -> 2.47E-02 | X32: =IF(Tabelle745[[#This Row],['[-']2]]>0,Tabelle745[[#This Row],['[-']2]]*(Tabelle745[[#This Row],['[kg/m^3']]]/2)*Tabelle745[[#This Row],['[m/s']]]^2,Druckverlust(Tabelle745[[#This Row],[Spalte1]],C32,U32,V32,P32,L32,O32,J32,K32,Q32,D32,E32)) -> 454.25 | Y32: 0.00454248878 | Z32: 14.89 | AA32: 14.89 | AB32: 454.25 | AC32: =SUM($AB$10:AB32) -> 510988.48
B33: Ergebnis | AB33: Druckverlust gesamt in bar | AC33: =SUBTOTAL(104,Tabelle745['[Pa']4])*0.00001 -> 5.109884797

Sheet TC_4 bis Druckminderer
C2: Temperatur | E2: 338 | G2: Normdichte | H2: 0.08988
C3: Massenstrom | E3: =17.64*8 -> 141.12 | G3: Startdruck | H3: 20.00
C4: Rauigleit (mm) | E4: 4.00E-02
C5: Innendurchmesser | E5: ='Diagramme '!C3 -> 0.02
C7: Rohr oder Ventil | D7: Länge Rohrleitung | E7: Innendruchmesser Rohr | F7: Rauigkeit | G7: Massenstrom H2 | H7: Massenstrom H2 | I7: Volumenstrom H2 | J7: Druck | K7: Temperatur | L7: Dichte | M7: dynamische Viskosität | N7: kinematische Viskosität | O7: Norm Dichte | P7: Norm Volumenstrom | Q7: Geschwindigkeit | R7: Mach-Zahl | S7: RE-Zahl | T7: k/d | U7: Rohrreibungszahl | V7: Kv-Wert | W7: Widerstandsbeiwert Zeta | X7: Durckverlust durch Komponente | Y7: Durckverlust durch Komponente | Z7: p_1 | AA7: p_2 | AB7: Delta p | AC7: Delta P aufsummiert
A9: System | B9: Komponente | C9: [-] | D9: [m] | E9: [m]2 | F9: [m]3 | G9: [kg/h] | H9: [kg/s] | I9: [m^3/s] | J9: [Pa] | K9: [K] | L9: [kg/m^3] | M9: [Pa*s] | N9: [m^2/s] | O9: [kg/m^3] | P9: [Nm^3/h] | Q9: [m/s] | R9: [-] | S9: [-] | T9: [-] | U9: [-] | V9: [m^3/h] | W9: [-] | X9: [Pa] | Y9: [bar] | Z9: [bar] | AA9: [bar] | AB9: [Pa] | AC9: [Pa]
B10: H2 Kupplung | C10: Ventil | E10: =IF(ISTEXT(E9),$E$5,E9) -> 0.02 | F10: =IF(ISTEXT(F9),E4*0.001,F9) -> 4.00E-05 | G10: =17.64*8 -> 141.12 | H10: =G10/3600 -> 0.0392 | I10: =H10/L10 -> 2.76E-02 | J10: =IF(ISTEXT(AA9),$H$3*100000,AA9*100000) -> 2000000 | K10: =IF(ISTEXT(K9),E2,K9) -> 338 | L10: =Dichte(K10,J10) -> 1.41924 | M10: =VLOOKUP(J10*0.00001,'Datenbank Werte '!$A$1:$B$500,2,TRUE)*0.000001 -> 9.72E-06 | N10: =M10/L10 -> 6.85E-06 | O10: =IF(ISTEXT(O9),H2,O9) -> 8.99E-02 | P10: =Tabelle76[[#This Row],['[kg/h']]]/Tabelle76[[#This Row],['[kg/m^3']4]] -> 1570.09 | Q10: =H10*4/(L10*PI()*E10^2) -> 87.92 | R10: =Tabelle76[[#This Row],['[m/s']]]/VLOOKUP(J10*0.00001,'Datenbank Werte '!$A$1:$C$500,3,TRUE) -> 0.06 | S10: =(L10*Q10*E10)/M10 -> 2.5685E+05 | T10: =F10/E10 -> 2.0E-03 | U10: =Rohrreibungszahl(Tabelle76[[#This Row],['[-']]],Tabelle76[[#This Row],['[-']4]],Tabelle76[[#This Row],['[-']3]],Tabelle76[[#This Row],['[m']2]],Tabelle76[[#This Row],['[m']3]]) -> Nur bei 'Rohr' benötigt | V10: 3.53 | X10: =IF(Tabelle76[[#This Row],['[-']2]]>0,Tabelle76[[#This Row],['[-']2]]*(Tabelle76[[#This Row],['[kg/m^3']]]/2)*Tabelle76[[#This Row],['[m/s']]]^2,Druckverlust(Tabelle76[[#This Row],[Spalte1]],C10,U10,V10,P10,L10,O10,J10,K10,Q10,D10,E10)) -> 121072.38 | Y10: =X10/10^5 -> 1.210723779 | Z10: =J10/10^5 -> 20.00 | AA10: =Z10-Y10 -> 18.79 | AB10: =X10 -> 121072.38 | AC10: =SUM($AB$10:AB10) -> 121072.38
B11: Schlauch | C11: Rohr | D11: 1 | E11: =IF(ISTEXT(E10),$E$5,E10) -> 0.02 | F11: =IF(ISTEXT(F10),E5,F10) -> 4.00E-05 | G11: 141.12 | H11: 0.0392 | I11: 2.94E-02 | J11: =IF(ISTEXT(AA10),$H$3*100000,AA10*100000) -> 1878927.622 | K11: =IF(ISTEXT(K10),E3,K10) -> 338 | L11: =Dichte(K11,J11) -> 1.33419 | M11: =VLOOKUP(J11*0.00001,'Datenbank Werte '!$A$1:$B$500,2,TRUE)*0.000001 -> 9.71E-06 | N11: 7.28E-06 | O11: =IF(ISTEXT(O10),H3,O10) -> 8.99E-02 | P11: =Tabelle76[[#This Row],['[kg/h']]]/Tabelle76[[#This Row],['[kg/m^3']4]] -> 1570.09 | Q11: 93.52 | R11: =Tabelle76[[#This Row],['[m/s']]]/VLOOKUP(J11*0.00001,'Datenbank Werte '!$A$1:$C$500,3,TRUE) -> 0.07 | S11: 2.5688E+05 | T11: 2.0E-03 | U11: =Rohrreibungszahl(Tabelle76[[#This Row],['[-']]],Tabelle76[[#This Row],['[-']4]],Tabelle76[[#This Row],['[-']3]],Tabelle76[[#This Row],['[m']2]],Tabelle76[[#This Row],['[m']3]]) -> 2.41E-02 | X11: =IF(Tabelle76[[#This Row],['[-']2]]>0,Tabelle76[[#This Row],['[-']2]]*(Tabelle76[[#This Row],['[kg/m^3']]]/2)*Tabelle76[[#This Row],['[m/s']]]^2,Druckverlust(Tabelle76[[#This Row],[Spalte1]],C11,U11,V11,P11,L11,O11,J11,K11,Q11,D11,E11)) -> 7029.25 | Y11: 0.0702924573 | Z11: 18.79 | AA11: 18.72 | AB11: 7029.25 | AC11: =SUM($AB$10:AB11) -> 128101.62
B12: 90°Winkel | C12: Rohr | E12: 0.02 | F12: 4.00E-05 | G12: =17.64*8 -> 141.12 | H12: =G12/3600 -> 0.0392 | I12: 2.95E-02 | J12: 1871898.376 | K12: 338 | L12: =Dichte(K12,J12) -> 1.32925 | M12: =VLOOKUP(J12*0.00001,'Datenbank Werte '!$A$1:$B$500,2,TRUE)*0.000001 -> 9.71E-06 | N12: 7.31E-06 | O12: 8.99E-02 | P12: =Tabelle76[[#This Row],['[kg/h']]]/Tabelle76[[#This Row],['[kg/m^3']4]] -> 1570.09 | Q12: 93.87 | R12: =Tabelle76[[#This Row],['[m/s']]]/VLOOKUP(J12*0.00001,'Datenbank Werte '!$A$1:$C$500,3,TRUE) -> 0.07 | S12: 2.5688E+05 | T12: 2.0E-03 | U12: =Rohrreibungszahl(Tabelle76[[#This Row],['[-']]],Tabelle76[[#This Row],['[-']4]],Tabelle76[[#This Row],['[-']3]],Tabelle76[[#This Row],['[m']2]],Tabelle76[[#This Row],['[m']3]]) -> 2.41E-02 | W12: 0.15 | X12: =IF(Tabelle76[[#This Row],['[-']2]]>0,Tabelle76[[#This Row],['[-']2]]*(Tabelle76[[#This Row],['[kg/m^3']]]/2)*Tabelle76[[#This Row],['[m/s']]]^2,Druckverlust(Tabelle76[[#This Row],[Spalte1]],C12,U12,V12,P12,L12,O12,J12,K12,Q12,D12,E12)) -> 878.47 | Y12: 0.008784693107 | Z12: =J12/10^5 -> 18.72 | AA12: =Z12-Y12 -> 18.71 | AB12: =X12 -> 878.47 | AC12: =SUM($AB$10:AB12) -> 128980.09
B13: Rohr | C13: Rohr | D13: 2 | E13: 0.02 | F13: 4.00E-05 | G13: 141.12 | H13: 0.0392 | I13: 2.95E-02 | J13: 1871019.907 | K13: 338 | L13: =Dichte(K13,J13) -> 1.32863 | M13: =VLOOKUP(J13*0.00001,'Datenbank Werte '!$A$1:$B$500,2,TRUE)*0.000001 -> 9.71E-06 | N13: 7.31E-06 | O13: 8.99E-02 | P13: =Tabelle76[[#This Row],['[kg/h']]]/Tabelle76[[#This Row],['[kg/m^3']4]] -> 1570.09 | Q13: 93.91 | R13: =Tabelle76[[#This Row],['[m/s']]]/VLOOKUP(J13*0.00001,'Datenbank Werte '!$A$1:$C$500,3,TRUE) -> 0.07 | S13: 2.5688E+05 | T13: 2.0E-03 | U13: =Rohrreibungszahl(Tabelle76[[#This Row],['[-']]],Tabelle76[[#This Row],['[-']4]],Tabelle76[[#This Row],['[-']3]],Tabelle76[[#This Row],['[m']2]],Tabelle76[[#This Row],['[m']3]]) -> 2.41E-02 | X13: =IF(Tabelle76[[#This Row],['[-']2]]>0,Tabelle76[[#This Row],['[-']2]]*(Tabelle76[[#This Row],['[kg/m^3']]]/2)*Tabelle76[[#This Row],['[m/s']]]^2,Druckverlust(Tabelle76[[#This Row],[Spalte1]],C13,U13,V13,P13,L13,O13,J13,K13,Q13,D13,E13)) -> 14117.31 | Y13: 0.1411730849 | Z13: 18.71 | AA13: 18.57 | AB13: 14117.31 | AC13: =SUM($AB$10:AB13) -> 143097.40
B14: 90°Winkel | C14: Rohr | E14: 0.02 | F14: 4.00E-05 | G14: 141.12 | H14: 0.0392 | I14: 2.97E-02 | J14: 1856902.599 | K14: 338 | L14: =Dichte(K14,J14) -> 1.31871 | M14: =VLOOKUP(J14*0.00001,'Datenbank Werte '!$A$1:$B$500,2,TRUE)*0.000001 -> 9.71E-06 | N14: 7.37E-06 | O14: 8.99E-02 | P14: =Tabelle76[[#This Row],['[kg/h']]]/Tabelle76[[#This Row],['[kg/m^3']4]] -> 1570.09 | Q14: 94.62 | R14: =Tabelle76[[#This Row],['[m/s']]]/VLOOKUP(J14*0.00001,'Datenbank Werte '!$A$1:$C$500,3,TRUE) -> 0.07 | S14: 2.5688E+05 | T14: 2.0E-03 | U14: =Rohrreibungszahl(Tabelle76[[#This Row],['[-']]],Tabelle76[[#This Row],['[-']4]],Tabelle76[[#This Row],['[-']3]],Tabelle76[[#This Row],['[m']2]],Tabelle76[[#This Row],['[m']3]]) -> 2.41E-02 | W14: 0.15 | X14: =IF(Tabelle76[[#This Row],['[-']2]]>0,Tabelle76[[#This Row],['[-']2]]*(Tabelle76[[#This Row],['[kg/m^3']]]/2)*Tabelle76[[#This Row],['[m/s']]]^2,Druckverlust(Tabelle76[[#This Row],[Spalte1]],C14,U14,V14,P14,L14,O14,J14,K14,Q14,D14,E14)) -> 885.49 | Y14: 0.008854921823 | Z14: 18.57 | AA14: 18.56 | AB14: 885.49 | AC14: =SUM($AB$10:AB14) -> 143982.89
B15: Rohr | C15: Rohr | D15: 3 | E15: 0.02 | F15: 4.00E-05 | G15: 141.12 | H15: 0.0392 | I15: 2.97E-02 | J15: 1856017.106 | K15: 338 | L15: =Dichte(K15,J15) -> 1.31809 | M15: =VLOOKUP(J15*0.00001,'Datenbank Werte '!$A$1:$B$500,2,TRUE)*0.000001 -> 9.71E-06 | N15: 7.37E-06 | O15: 8.99E-02 | P15: =Tabelle76[[#This Row],['[kg/h']]]/Tabelle76[[#This Row],['[kg/m^3']4]] -> 1570.09 | Q15: 94.67 | R15: =Tabelle76[[#This Row],['[m/s']]]/VLOOKUP(J15*0.00001,'Datenbank Werte '!$A$1:$C$500,3,TRUE) -> 0.07 | S15: 2.5688E+05 | T15: 2.0E-03 | U15: =Rohrreibungszahl(Tabelle76[[#This Row],['[-']]],Tabelle76[[#This Row],['[-']4]],Tabelle76[[#This Row],['[-']3]],Tabelle76[[#This Row],['[m']2]],Tabelle76[[#This Row],['[m']3]]) -> 2.41E-02 | X15: =IF(Tabelle76[[#This Row],['[-']2]]>0,Tabelle76[[#This Row],['[-']2]]*(Tabelle76[[#This Row],['[kg/m^3']]]/2)*Tabelle76[[#This Row],['[m/s']]]^2,Druckverlust(Tabelle76[[#This Row],[Spalte1]],C15,U15,V15,P15,L15,O15,J15,K15,Q15,D15,E15)) -> 21345.41 | Y15: 0.2134541362 | Z15: 18.56 | AA15: 18.35 | AB15: 21345.41 | AC15: =SUM($AB$10:AB15) -> 165328.31
B16: 90°Winkel | C16: Rohr | E16: =IF(ISTEXT(E15),$E$5,E15) -> 0.02 | F16: =IF(ISTEXT(F15),E10,F15) -> 4.00E-05 | G16: 141.12 | H16: 0.0392 | I16: 3.01E-02 | J16: =IF(ISTEXT(AA15),$H$3*100000,AA15*100000) -> 1834671.693 | K16: 338 | L16: =Dichte(K16,J16) -> 1.30308 | M16: =VLOOKUP(J16*0.00001,'Datenbank Werte '!$A$1:$B$500,2,TRUE)*0.000001 -> 9.71E-06 | N16: 7.46E-06 | O16: 8.99E-02 | P16: =Tabelle76[[#This Row],['[kg/h']]]/Tabelle76[[#This Row],['[kg/m^3']4]] -> 1570.09 | Q16: 95.76 | R16: =Tabelle76[[#This Row],['[m/s']]]/VLOOKUP(J16*0.00001,'Datenbank Werte '!$A$1:$C$500,3,TRUE) -> 0.07 | S16: 2.5688E+05 | T16: 2.0E-03 | U16: =Rohrreibungszahl(Tabelle76[[#This Row],['[-']]],Tabelle76[[#This Row],['[-']4]],Tabelle76[[#This Row],['[-']3]],Tabelle76[[#This Row],['[m']2]],Tabelle76[[#This Row],['[m']3]]) -> 2.41E-02 | W16: 0.15 | X16: =IF(Tabelle76[[#This Row],['[-']2]]>0,Tabelle76[[#This Row],['[-']2]]*(Tabelle76[[#This Row],['[kg/m^3']]]/2)*Tabelle76[[#This Row],['[m/s']]]^2,Druckverlust(Tabelle76[[#This Row],[Spalte1]],C16,U16,V16,P16,L16,O16,J16,K16,Q16,D16,E16)) -> 896.11 | Y16: 0.008961146876 | Z16: 18.35 | AA16: 18.34 | AB16: 896.11 | AC16: =SUM($AB$10:AB16) -> 166224.42
B17: Rohr (Durchführung FRP) | C17: Rohr | D17: 1.6 | E17: =IF(ISTEXT(E16),$E$5,E16) -> 0.02 | F17: =IF(ISTEXT(F16),E11,F16) -> 4.00E-05 | G17: 141.12 | H17: 0.0392 | I17: =H17/L17 -> 3.01E-02 | J17: =IF(ISTEXT(AA16),$H$3*100000,AA16*100000) -> 1833775.578 | K17: 338 | L17: =Dichte(K17,J17) -> 1.30245 | M17: =VLOOKUP(J17*0.00001,'Datenbank Werte '!$A$1:$B$500,2,TRUE)*0.000001 -> 9.71E-06 | N17: =M17/L17 -> 7.46E-06 | O17: 8.99E-02 | P17: =Tabelle76[[#This Row],['[kg/h']]]/Tabelle76[[#This Row],['[kg/m^3']4]] -> 1570.09 | Q17: =H17*4/(L17*PI()*E17^2) -> 95.80 | R17: =Tabelle76[[#This Row],['[m/s']]]/VLOOKUP(J17*0.00001,'Datenbank Werte '!$A$1:$C$500,3,TRUE) -> 0.07 | S17: =(L17*Q17*E17)/M17 -> 2.5688E+05 | T17: =F17/E17 -> 2.0E-03 | U17: =Rohrreibungszahl(Tabelle76[[#This Row],['[-']]],Tabelle76[[#This Row],['[-']4]],Tabelle76[[#This Row],['[-']3]],Tabelle76[[#This Row],['[m']2]],Tabelle76[[#This Row],['[m']3]]) -> 2.41E-02 | X17: =IF(Tabelle76[[#This Row],['[-']2]]>0,Tabelle76[[#This Row],['[-']2]]*(Tabelle76[[#This Row],['[kg/m^3']]]/2)*Tabelle76[[#This Row],['[m/s']]]^2,Druckverlust(Tabelle76[[#This Row],[Spalte1]],C17,U17,V17,P17,L17,O17,J17,K17,Q17,D17,E17)) -> 11520.92 | Y17: 0.115209202 | Z17: 18.34 | AA17: 18.22 | AB17: 11520.92 | AC17: =SUM($AB$10:AB17) -> 177745.34
B18: Filter | C18: Ventil | E18: =IF(ISTEXT(E16),$E$5,E16) -> 0.02 | F18: =IF(ISTEXT(F16),E11,F16) -> 4.00E-05 | G18: 141.12 | H18: 0.0392 | I18: =H18/L18 -> 3.03E-02 | J18: =IF(ISTEXT(AA17),$H$3*100000,AA17*100000) -> 1822254.658 | K18: 338 | L18: =Dichte(K18,J18) -> 1.29434 | M18: =VLOOKUP(J18*0.00001,'Datenbank Werte '!$A$1:$B$500,2,TRUE)*0.000001 -> 9.71E-06 | N18: =M18/L18 -> 7.51E-06 | O18: 8.99E-02 | P18: =Tabelle76[[#This Row],['[kg/h']]]/Tabelle76[[#This Row],['[kg/m^3']4]] -> 1570.09 | Q18: =H18*4/(L18*PI()*E18^2) -> 96.40 | R18: =Tabelle76[[#This Row],['[m/s']]]/VLOOKUP(J18*0.00001,'Datenbank Werte '!$A$1:$C$500,3,TRUE) -> 0.07 | S18: =(L18*Q18*E18)/M18 -> 2.5688E+05 | T18: =F18/E18 -> 2.0E-03 | U18: =Rohrreibungszahl(Tabelle76[[#This Row],['[-']]],Tabelle76[[#This Row],['[-']4]],Tabelle76[[#This Row],['[-']3]],Tabelle76[[#This Row],['[m']2]],Tabelle76[[#This Row],['[m']3]]) -> Nur bei 'Rohr' benötigt | V18: 4 | X18: =IF(Tabelle76[[#This Row],['[-']2]]>0,Tabelle76[[#This Row],['[-']2]]*(Tabelle76[[#This Row],['[kg/m^3']]]/2)*Tabelle76[[#This Row],['[m/s']]]^2,Druckverlust(Tabelle76[[#This Row],[Spalte1]],C18,U18,V18,P18,L18,O18,J18,K18,Q18,D18,E18)) -> 103052.27 | Y18: 1.030522657 | Z18: 18.22 | AA18: 17.19 | AB18: 103052.27 | AC18: =SUM($AB$10:AB18) -> 280797.61
B19: Rückschlag-/Absperrventil | C19: Ventil | E19: =IF(ISTEXT(E18),$E$5,E18) -> 0.02 | F19: =IF(ISTEXT(F18),E12,F18) -> 4.00E-05 | G19: 141.12 | H19: 0.0392 | I19: 3.21E-02 | J19: 1719202.392 | K19: 338 | L19: =Dichte(K19,J19) -> 1.22182 | M19: =VLOOKUP(J19*0.00001,'Datenbank Werte '!$A$1:$B$500,2,TRUE)*0.000001 -> 9.71E-06 | N19: 7.95E-06 | O19: 8.99E-02 | P19: =Tabelle76[[#This Row],['[kg/h']]]/Tabelle76[[#This Row],['[kg/m^3']4]] -> 1570.09 | Q19: 102.12 | R19: =Tabelle76[[#This Row],['[m/s']]]/VLOOKUP(J19*0.00001,'Datenbank Werte '!$A$1:$C$500,3,TRUE) -> 0.07 | S19: 2.5689E+05 | T19: 2.0E-03 | U19: =Rohrreibungszahl(Tabelle76[[#This Row],['[-']]],Tabelle76[[#This Row],['[-']4]],Tabelle76[[#This Row],['[-']3]],Tabelle76[[#This Row],['[m']2]],Tabelle76[[#This Row],['[m']3]]) ->  | V19: 4 | X19: =IF(Tabelle76[[#This Row],['[-']2]]>0,Tabelle76[[#This Row],['[-']2]]*(Tabelle76[[#This Row],['[kg/m^3']]]/2)*Tabelle76[[#This Row],['[m/s']]]^2,Druckverlust(Tabelle76[[#This Row],[Spalte1]],C19,U19,V19,P19,L19,O19,J19,K19,Q19,D19,E19)) -> 110103.69 | Y19: 1.10103688 | Z19: 17.19 | AA19: 16.09 | AB19: 110103.69 | AC19: =SUM($AB$10:AB19) -> 390901.30
B20: T-Stück (Eingang Sammelrohr) | C20: Rohr | E20: =IF(ISTEXT(E19),$E$5,E19) -> 0.02 | F20: =IF(ISTEXT(F19),E13,F19) -> 4.00E-05 | G20: 141.12 | H20: 0.0392 | I20: =H20/L20 -> 3.43E-02 | J20: 1609098.704 | K20: 338 | L20: =Dichte(K20,J20) -> 1.14425 | M20: =VLOOKUP(J20*0.00001,'Datenbank Werte '!$A$1:$B$500,2,TRUE)*0.000001 -> 9.71E-06 | N20: =M20/L20 -> 8.49E-06 | O20: 8.99E-02 | P20: =Tabelle76[[#This Row],['[kg/h']]]/Tabelle76[[#This Row],['[kg/m^3']4]] -> 1570.09 | Q20: =H20*4/(L20*PI()*E20^2) -> 109.05 | R20: =Tabelle76[[#This Row],['[m/s']]]/VLOOKUP(J20*0.00001,'Datenbank Werte '!$A$1:$C$500,3,TRUE) -> 0.08 | S20: =(L20*Q20*E20)/M20 -> 2.5691E+05 | T20: =F20/E20 -> 2.0E-03 | U20: =Rohrreibungszahl(Tabelle76[[#This Row],['[-']]],Tabelle76[[#This Row],['[-']4]],Tabelle76[[#This Row],['[-']3]],Tabelle76[[#This Row],['[m']2]],Tabelle76[[#This Row],['[m']3]]) -> 2.41E-02 | W20: 0.9 | X20: =IF(Tabelle76[[#This Row],['[-']2]]>0,Tabelle76[[#This Row],['[-']2]]*(Tabelle76[[#This Row],['[kg/m^3']]]/2)*Tabelle76[[#This Row],['[m/s']]]^2,Druckverlust(Tabelle76[[#This Row],[Spalte1]],C20,U20,V20,P20,L20,O20,J20,K20,Q20,D20,E20)) -> 6122.99 | Y20: 0.06122991832 | Z20: 16.09 | AA20: 16.03 | AB20: 6122.99 | AC20: =SUM($AB$10:AB20) -> 397024.29
B21: Sammelrohr | C21: Rohr | D21: 0.2 | E21: =IF(ISTEXT(E20),$E$5,E20) -> 0.02 | F21: =IF(ISTEXT(F20),E14,F20) -> 4.00E-05 | G21: 141.12 | H21: 0.0392 | I21: =H21/L21 -> 3.44E-02 | J21: 1602975.712 | K21: 338 | L21: =Dichte(K21,J21) -> 1.13993 | M21: =VLOOKUP(J21*0.00001,'Datenbank Werte '!$A$1:$B$500,2,TRUE)*0.000001 -> 9.71E-06 | N21: =M21/L21 -> 8.52E-06 | O21: 8.99E-02 | P21: =Tabelle76[[#This Row],['[kg/h']]]/Tabelle76[[#This Row],['[kg/m^3']4]] -> 1570.09 | Q21: =H21*4/(L21*PI()*E21^2) -> 109.46 | R21: =Tabelle76[[#This Row],['[m/s']]]/VLOOKUP(J21*0.00001,'Datenbank Werte '!$A$1:$C$500,3,TRUE) -> 0.08 | S21: =(L21*Q21*E21)/M21 -> 2.5691E+05 | T21: =F21/E21 -> 2.0E-03 | U21: =Rohrreibungszahl(Tabelle76[[#This Row],['[-']]],Tabelle76[[#This Row],['[-']4]],Tabelle76[[#This Row],['[-']3]],Tabelle76[[#This Row],['[m']2]],Tabelle76[[#This Row],['[m']3]]) -> 2.41E-02 | X21: =IF(Tabelle76[[#This Row],['[-']2]]>0,Tabelle76[[#This Row],['[-']2]]*(Tabelle76[[#This Row],['[kg/m^3']]]/2)*Tabelle76[[#This Row],['[m/s']]]^2,Druckverlust(Tabelle76[[#This Row],[Spalte1]],C21,U21,V21,P21,L21,O21,J21,K21,Q21,D21,E21)) -> 1645.42 | Y21: 0.01645417071 | Z21: 16.03 | AA21: 16.01 | AB21: 1645.42 | AC21: =SUM($AB$10:AB21) -> 398669.70
B22: T-Stück (zum TC) | C22: Rohr | E22: =IF(ISTEXT(E21),$E$5,E21) -> 0.02 | F22: =IF(ISTEXT(F21),E15,F21) -> 4.00E-05 | G22: 141.12 | H22: 0.0392 | I22: 3.44E-02 | J22: 1601330.295 | K22: 338 | L22: =Dichte(K22,J22) -> 1.13877 | M22: =VLOOKUP(J22*0.00001,'Datenbank Werte '!$A$1:$B$500,2,TRUE)*0.000001 -> 9.71E-06 | N22: 8.53E-06 | O22: 8.99E-02 | P22: =Tabelle76[[#This Row],['[kg/h']]]/Tabelle76[[#This Row],['[kg/m^3']4]] -> 1570.09 | Q22: 109.57 | R22: =Tabelle76[[#This Row],['[m/s']]]/VLOOKUP(J22*0.00001,'Datenbank Werte '!$A$1:$C$500,3,TRUE) -> 0.08 | S22: 2.5691E+05 | T22: 2.0E-03 | U22: =Rohrreibungszahl(Tabelle76[[#This Row],['[-']]],Tabelle76[[#This Row],['[-']4]],Tabelle76[[#This Row],['[-']3]],Tabelle76[[#This Row],['[m']2]],Tabelle76[[#This Row],['[m']3]]) -> 2.41E-02 | W22: 0.05 | X22: =IF(Tabelle76[[#This Row],['[-']2]]>0,Tabelle76[[#This Row],['[-']2]]*(Tabelle76[[#This Row],['[kg/m^3']]]/2)*Tabelle76[[#This Row],['[m/s']]]^2,Druckverlust(Tabelle76[[#This Row],[Spalte1]],C22,U22,V22,P22,L22,O22,J22,K22,Q22,D22,E22)) -> 341.80 | Y22: 0.003418021489 | Z22: 16.01 | AA22: 16.01 | AB22: 341.80 | AC22: =SUM($AB$10:AB22) -> 399011.51
C23: Rohr | D23: 0.1 | E23: 0.02 | F23: =IF(ISTEXT(F22),E16,F22) -> 4.00E-05 | G23: 141.12 | H23: 0.0392 | I23: 3.44E-02 | J23: 1600988.493 | K23: 338 | L23: =Dichte(K23,J23) -> 1.13853 | M23: =VLOOKUP(J23*0.00001,'Datenbank Werte '!$A$1:$B$500,2,TRUE)*0.000001 -> 9.71E-06 | N23: 8.53E-06 | O23: 8.99E-02 | P23: =Tabelle76[[#This Row],['[kg/h']]]/Tabelle76[[#This Row],['[kg/m^3']4]] -> 1570.09 | Q23: 109.59 | R23: =Tabelle76[[#This Row],['[m/s']]]/VLOOKUP(J23*0.00001,'Datenbank Werte '!$A$1:$C$500,3,TRUE) -> 0.08 | S23: 2.5691E+05 | T23: 2.0E-03 | U23: =Rohrreibungszahl(Tabelle76[[#This Row],['[-']]],Tabelle76[[#This Row],['[-']4]],Tabelle76[[#This Row],['[-']3]],Tabelle76[[#This Row],['[m']2]],Tabelle76[[#This Row],['[m']3]]) -> 2.41E-02 | X23: =IF(Tabelle76[[#This Row],['[-']2]]>0,Tabelle76[[#This Row],['[-']2]]*(Tabelle76[[#This Row],['[kg/m^3']]]/2)*Tabelle76[[#This Row],['[m/s']]]^2,Druckverlust(Tabelle76[[#This Row],[Spalte1]],C23,U23,V23,P23,L23,O23,J23,K23,Q23,D23,E23)) -> 823.72 | Y23: 0.008237209115 | Z23: 16.01 | AA23: 16.00 | AB23: 823.72 | AC23: =SUM($AB$10:AB23) -> 399835.23
B24: T-Stück (Ausgang Sammelrohr) | C24: Rohr | E24: 0.02 | F24: =IF(ISTEXT(F23),E18,F23) -> 4.00E-05 | G24: 141.12 | H24: 0.0392 | I24: 3.44E-02 | J24: 1600164.772 | K24: 338 | L24: =Dichte(K24,J24) -> 1.13795 | M24: =VLOOKUP(J24*0.00001,'Datenbank Werte '!$A$1:$B$500,2,TRUE)*0.000001 -> 9.71E-06 | N24: 8.54E-06 | O24: 8.99E-02 | P24: =Tabelle76[[#This Row],['[kg/h']]]/Tabelle76[[#This Row],['[kg/m^3']4]] -> 1570.09 | Q24: 109.65 | R24: =Tabelle76[[#This Row],['[m/s']]]/VLOOKUP(J24*0.00001,'Datenbank Werte '!$A$1:$C$500,3,TRUE) -> 0.08 | S24: 2.5691E+05 | T24: 2.0E-03 | U24: =Rohrreibungszahl(Tabelle76[[#This Row],['[-']]],Tabelle76[[#This Row],['[-']4]],Tabelle76[[#This Row],['[-']3]],Tabelle76[[#This Row],['[m']2]],Tabelle76[[#This Row],['[m']3]]) -> 2.41E-02 | W24: 1.3 | X24: =IF(Tabelle76[[#This Row],['[-']2]]>0,Tabelle76[[#This Row],['[-']2]]*(Tabelle76[[#This Row],['[kg/m^3']]]/2)*Tabelle76[[#This Row],['[m/s']]]^2,Druckverlust(Tabelle76[[#This Row],[Spalte1]],C24,U24,V24,P24,L24,O24,J24,K24,Q24,D24,E24)) -> 8893.27 | Y24: 0.08893273085 | Z24: 16.00 | AA24: 15.91 | AB24: 8893.27 | AC24: =SUM($AB$10:AB24) -> 408728.50
C25: Rohr | D25: 0.2 | E25: 0.02 | F25: =IF(ISTEXT(F24),E19,F24) -> 4.00E-05 | G25: 141.12 | H25: 0.0392 | I25: 3.46E-02 | J25: 1591271.499 | K25: 338 | L25: =Dichte(K25,J25) -> 1.13168 | M25: =VLOOKUP(J25*0.00001,'Datenbank Werte '!$A$1:$B$500,2,TRUE)*0.000001 -> 9.71E-06 | N25: 8.58E-06 | O25: 8.99E-02 | P25: =Tabelle76[[#This Row],['[kg/h']]]/Tabelle76[[#This Row],['[kg/m^3']4]] -> 1570.09 | Q25: 110.26 | R25: =Tabelle76[[#This Row],['[m/s']]]/VLOOKUP(J25*0.00001,'Datenbank Werte '!$A$1:$C$500,3,TRUE) -> 0.08 | S25: 2.5692E+05 | T25: 2.0E-03 | U25: =Rohrreibungszahl(Tabelle76[[#This Row],['[-']]],Tabelle76[[#This Row],['[-']4]],Tabelle76[[#This Row],['[-']3]],Tabelle76[[#This Row],['[m']2]],Tabelle76[[#This Row],['[m']3]]) -> 2.41E-02 | X25: =IF(Tabelle76[[#This Row],['[-']2]]>0,Tabelle76[[#This Row],['[-']2]]*(Tabelle76[[#This Row],['[kg/m^3']]]/2)*Tabelle76[[#This Row],['[m/s']]]^2,Druckverlust(Tabelle76[[#This Row],[Spalte1]],C25,U25,V25,P25,L25,O25,J25,K25,Q25,D25,E25)) -> 1657.41 | Y25: 0.01657412789 | Z25: 15.91 | AA25: 15.90 | AB25: 1657.41 | AC25: =SUM($AB$10:AB25) -> 410385.91
B26: T-Stück (Überdruckventil) | C26: Rohr | E26: 0.02 | F26: =IF(ISTEXT(F25),E20,F25) -> 4.00E-05 | G26: 141.12 | H26: 0.0392 | I26: 3.47E-02 | J26: 1589614.086 | K26: 338 | L26: =Dichte(K26,J26) -> 1.13051 | M26: =VLOOKUP(J26*0.00001,'Datenbank Werte '!$A$1:$B$500,2,TRUE)*0.000001 -> 9.71E-06 | N26: 8.59E-06 | O26: 8.99E-02 | P26: =Tabelle76[[#This Row],['[kg/h']]]/Tabelle76[[#This Row],['[kg/m^3']4]] -> 1570.09 | Q26: 110.37 | R26: =Tabelle76[[#This Row],['[m/s']]]/VLOOKUP(J26*0.00001,'Datenbank Werte '!$A$1:$C$500,3,TRUE) -> 0.08 | S26: 2.5692E+05 | T26: 2.0E-03 | U26: =Rohrreibungszahl(Tabelle76[[#This Row],['[-']]],Tabelle76[[#This Row],['[-']4]],Tabelle76[[#This Row],['[-']3]],Tabelle76[[#This Row],['[m']2]],Tabelle76[[#This Row],['[m']3]]) -> 2.41E-02 | W26: 0.05 | X26: =IF(Tabelle76[[#This Row],['[-']2]]>0,Tabelle76[[#This Row],['[-']2]]*(Tabelle76[[#This Row],['[kg/m^3']]]/2)*Tabelle76[[#This Row],['[m/s']]]^2,Druckverlust(Tabelle76[[#This Row],[Spalte1]],C26,U26,V26,P26,L26,O26,J26,K26,Q26,D26,E26)) -> 344.30 | Y26: 0.003442996885 | Z26: 15.90 | AA26: 15.89 | AB26: 344.30 | AC26: =SUM($AB$10:AB26) -> 410730.21
C27: Rohr | D27: 0.2 | E27: 0.02 | F27: =IF(ISTEXT(F26),E21,F26) -> 4.00E-05 | G27: 141.12 | H27: 0.0392 | I27: 3.47E-02 | J27: 1589269.787 | K27: 338 | L27: =Dichte(K27,J27) -> 1.13027 | M27: =VLOOKUP(J27*0.00001,'Datenbank Werte '!$A$1:$B$500,2,TRUE)*0.000001 -> 9.71E-06 | N27: 8.59E-06 | O27: 8.99E-02 | P27: =Tabelle76[[#This Row],['[kg/h']]]/Tabelle76[[#This Row],['[kg/m^3']4]] -> 1570.09 | Q27: 110.40 | R27: =Tabelle76[[#This Row],['[m/s']]]/VLOOKUP(J27*0.00001,'Datenbank Werte '!$A$1:$C$500,3,TRUE) -> 0.08 | S27: 2.5692E+05 | T27: 2.0E-03 | U27: =Rohrreibungszahl(Tabelle76[[#This Row],['[-']]],Tabelle76[[#This Row],['[-']4]],Tabelle76[[#This Row],['[-']3]],Tabelle76[[#This Row],['[m']2]],Tabelle76[[#This Row],['[m']3]]) -> 2.41E-02 | X27: =IF(Tabelle76[[#This Row],['[-']2]]>0,Tabelle76[[#This Row],['[-']2]]*(Tabelle76[[#This Row],['[kg/m^3']]]/2)*Tabelle76[[#This Row],['[m/s']]]^2,Druckverlust(Tabelle76[[#This Row],[Spalte1]],C27,U27,V27,P27,L27,O27,J27,K27,Q27,D27,E27)) -> 1659.48 | Y27: 0.01659482456 | Z27: 15.89 | AA27: 15.88 | AB27: 1659.48 | AC27: =SUM($AB$10:AB27) -> 412389.70
B28: T-Stück (Sensoren) | C28: Rohr | E28: 0.02 | F28: 4.00E-05 | G28: 141.12 | H28: 0.0392 | I28: 3.47E-02 | J28: 1587610.304 | K28: 338 | L28: =Dichte(K28,J28) -> 1.12910 | M28: =VLOOKUP(J28*0.00001,'Datenbank Werte '!$A$1:$B$500,2,TRUE)*0.000001 -> 9.71E-06 | N28: 8.60E-06 | O28: 8.99E-02 | P28: =Tabelle76[[#This Row],['[kg/h']]]/Tabelle76[[#This Row],['[kg/m^3']4]] -> 1570.09 | Q28: 110.51 | R28: =Tabelle76[[#This Row],['[m/s']]]/VLOOKUP(J28*0.00001,'Datenbank Werte '!$A$1:$C$500,3,TRUE) -> 0.08 | S28: 2.5692E+05 | T28: 2.0E-03 | U28: =Rohrreibungszahl(Tabelle76[[#This Row],['[-']]],Tabelle76[[#This Row],['[-']4]],Tabelle76[[#This Row],['[-']3]],Tabelle76[[#This Row],['[m']2]],Tabelle76[[#This Row],['[m']3]]) -> 2.41E-02 | W28: 0.05 | X28: =IF(Tabelle76[[#This Row],['[-']2]]>0,Tabelle76[[#This Row],['[-']2]]*(Tabelle76[[#This Row],['[kg/m^3']]]/2)*Tabelle76[[#This Row],['[m/s']]]^2,Druckverlust(Tabelle76[[#This Row],[Spalte1]],C28,U28,V28,P28,L28,O28,J28,K28,Q28,D28,E28)) -> 344.73 | Y28: 0.003447305254 | Z28: 15.88 | AA28: 15.87 | AB28: 344.73 | AC28: =SUM($AB$10:AB28) -> 412734.43
C29: Rohr | D29: 0.2 | E29: 0.02 | F29: 4.00E-05 | G29: 141.12 | H29: 0.0392 | I29: 3.47E-02 | J29: 1587265.574 | K29: 338 | L29: =Dichte(K29,J29) -> 1.12886 | M29: =VLOOKUP(J29*0.00001,'Datenbank Werte '!$A$1:$B$500,2,TRUE)*0.000001 -> 9.71E-06 | N29: 8.60E-06 | O29: 8.99E-02 | P29: =Tabelle76[[#This Row],['[kg/h']]]/Tabelle76[[#This Row],['[kg/m^3']4]] -> 1570.09 | Q29: 110.53 | R29: =Tabelle76[[#This Row],['[m/s']]]/VLOOKUP(J29*0.00001,'Datenbank Werte '!$A$1:$C$500,3,TRUE) -> 0.08 | S29: 2.5692E+05 | T29: 2.0E-03 | U29: =Rohrreibungszahl(Tabelle76[[#This Row],['[-']]],Tabelle76[[#This Row],['[-']4]],Tabelle76[[#This Row],['[-']3]],Tabelle76[[#This Row],['[m']2]],Tabelle76[[#This Row],['[m']3]]) -> 2.41E-02 | X29: =IF(Tabelle76[[#This Row],['[-']2]]>0,Tabelle76[[#This Row],['[-']2]]*(Tabelle76[[#This Row],['[kg/m^3']]]/2)*Tabelle76[[#This Row],['[m/s']]]^2,Druckverlust(Tabelle76[[#This Row],[Spalte1]],C29,U29,V29,P29,L29,O29,J29,K29,Q29,D29,E29)) -> 1661.56 | Y29: 0.01661559939 | Z29: 15.87 | AA29: 15.86 | AB29: 1661.56 | AC29: =SUM($AB$10:AB29) -> 414395.99
B30: T-Stück (Entlüftungsventil) | C30: Rohr | E30: 0.02 | F30: 4.00E-05 | G30: 141.12 | H30: 0.0392 | I30: 3.48E-02 | J30: 1585604.014 | K30: 338 | L30: =Dichte(K30,J30) -> 1.12769 | M30: =VLOOKUP(J30*0.00001,'Datenbank Werte '!$A$1:$B$500,2,TRUE)*0.000001 -> 9.71E-06 | N30: 8.61E-06 | O30: 8.99E-02 | P30: =Tabelle76[[#This Row],['[kg/h']]]/Tabelle76[[#This Row],['[kg/m^3']4]] -> 1570.09 | Q30: 110.65 | R30: =Tabelle76[[#This Row],['[m/s']]]/VLOOKUP(J30*0.00001,'Datenbank Werte '!$A$1:$C$500,3,TRUE) -> 0.08 | S30: 2.5692E+05 | T30: 2.0E-03 | U30: =Rohrreibungszahl(Tabelle76[[#This Row],['[-']]],Tabelle76[[#This Row],['[-']4]],Tabelle76[[#This Row],['[-']3]],Tabelle76[[#This Row],['[m']2]],Tabelle76[[#This Row],['[m']3]]) -> 2.41E-02 | W30: 0.05 | X30: =IF(Tabelle76[[#This Row],['[-']2]]>0,Tabelle76[[#This Row],['[-']2]]*(Tabelle76[[#This Row],['[kg/m^3']]]/2)*Tabelle76[[#This Row],['[m/s']]]^2,Druckverlust(Tabelle76[[#This Row],[Spalte1]],C30,U30,V30,P30,L30,O30,J30,K30,Q30,D30,E30)) -> 345.16 | Y30: 0.003451629925 | Z30: 15.86 | AA30: 15.85 | AB30: 345.16 | AC30: =SUM($AB$10:AB30) -> 414741.15
B31: Hauptventil | C31: Ventil | E31: 0.02 | F31: 4.00E-05 | G31: 141.12 | H31: 0.0392 | I31: 3.48E-02 | J31: 1585258.851 | K31: 338 | L31: =Dichte(K31,J31) -> 1.12744 | M31: =VLOOKUP(J31*0.00001,'Datenbank Werte '!$A$1:$B$500,2,TRUE)*0.000001 -> 9.71E-06 | N31: 8.62E-06 | O31: 8.99E-02 | P31: =Tabelle76[[#This Row],['[kg/h']]]/Tabelle76[[#This Row],['[kg/m^3']4]] -> 1570.09 | Q31: 110.67 | R31: =Tabelle76[[#This Row],['[m/s']]]/VLOOKUP(J31*0.00001,'Datenbank Werte '!$A$1:$C$500,3,TRUE) -> 0.08 | S31: 2.5692E+05 | T31: 2.0E-03 | U31: =Rohrreibungszahl(Tabelle76[[#This Row],['[-']]],Tabelle76[[#This Row],['[-']4]],Tabelle76[[#This Row],['[-']3]],Tabelle76[[#This Row],['[m']2]],Tabelle76[[#This Row],['[m']3]]) ->  | V31: 4 | X31: =IF(Tabelle76[[#This Row],['[-']2]]>0,Tabelle76[[#This Row],['[-']2]]*(Tabelle76[[#This Row],['[kg/m^3']]]/2)*Tabelle76[[#This Row],['[m/s']]]^2,Druckverlust(Tabelle76[[#This Row],[Spalte1]],C31,U31,V31,P31,L31,O31,J31,K31,Q31,D31,E31)) -> 120994.33 | Y31: 1.209943279 | Z31: 15.85 | AA31: 14.64 | AB31: 120994.33 | AC31: =SUM($AB$10:AB31) -> 535735.48
C32: Rohr | D32: 0.2 | E32: 0.02 | F32: 4.00E-05 | G32: 141.12 | H32: 0.0392 | I32: 3.76E-02 | J32: 1464264.523 | K32: 338 | L32: =Dichte(K32,J32) -> 1.04207 | M32: =VLOOKUP(J32*0.00001,'Datenbank Werte '!$A$1:$B$500,2,TRUE)*0.000001 -> 9.71E-06 | N32: 9.32E-06 | O32: 8.99E-02 | P32: =Tabelle76[[#This Row],['[kg/h']]]/Tabelle76[[#This Row],['[kg/m^3']4]] -> 1570.09 | Q32: 119.74 | R32: =Tabelle76[[#This Row],['[m/s']]]/VLOOKUP(J32*0.00001,'Datenbank Werte '!$A$1:$C$500,3,TRUE) -> 0.08 | S32: 2.5693E+05 | T32: 2.0E-03 | U32: =Rohrreibungszahl(Tabelle76[[#This Row],['[-']]],Tabelle76[[#This Row],['[-']4]],Tabelle76[[#This Row],['[-']3]],Tabelle76[[#This Row],['[m']2]],Tabelle76[[#This Row],['[m']3]]) -> 2.41E-02 | X32: =IF(Tabelle76[[#This Row],['[-']2]]>0,Tabelle76[[#This Row],['[-']2]]*(Tabelle76[[#This Row],['[kg/m^3']]]/2)*Tabelle76[[#This Row],['[m/s']]]^2,Druckverlust(Tabelle76[[#This Row],[Spalte1]],C32,U32,V32,P32,L32,O32,J32,K32,Q32,D32,E32)) -> 1799.94 | Y32: 0.0179993973 | Z32: 14.64 | AA32: 14.62 | AB32: 1799.94 | AC32: =SUM($AB$10:AB32) -> 537535.42
B33: T-Stück (Druckminderer) | C33: Rohr | E33: 0.02 | F33: 4.00E-05 | G33: =17.64*4 -> 70.56 | H33: 0.0196 | I33: 1.88E-02 | J33: 1462464.583 | K33: 338 | L33: =Dichte(K33,J33) -> 1.04080 | M33: =VLOOKUP(J33*0.00001,'Datenbank Werte '!$A$1:$B$500,2,TRUE)*0.000001 -> 9.71E-06 | N33: 9.33E-06 | O33: 8.99E-02 | P33: =Tabelle76[[#This Row],['[kg/h']]]/Tabelle76[[#This Row],['[kg/m^3']4]] -> 785.05 | Q33: 59.94 | R33: =Tabelle76[[#This Row],['[m/s']]]/VLOOKUP(J33*0.00001,'Datenbank Werte '!$A$1:$C$500,3,TRUE) -> 0.04 | S33: 1.2847E+05 | T33: 2.0E-03 | U33: =Rohrreibungszahl(Tabelle76[[#This Row],['[-']]],Tabelle76[[#This Row],['[-']4]],Tabelle76[[#This Row],['[-']3]],Tabelle76[[#This Row],['[m']2]],Tabelle76[[#This Row],['[m']3]]) -> 2.47E-02 | W33: 1.3 | X33: =IF(Tabelle76[[#This Row],['[-']2]]>0,Tabelle76[[#This Row],['[-']2]]*(Tabelle76[[#This Row],['[kg/m^3']]]/2)*Tabelle76[[#This Row],['[m/s']]]^2,Druckverlust(Tabelle76[[#This Row],[Spalte1]],C33,U33,V33,P33,L33,O33,J33,K33,Q33,D33,E33)) -> 2430.86 | Y33: 0.02430855551 | Z33: 14.62 | AA33: 14.60 | AB33: 2430.86 | AC33: =SUM($AB$10:AB33) -> 539966.27
C34: Rohr | D34: 0.3 | E34: 0.02 | F34: 4.00E-05 | G34: =17.64*4 -> 70.56 | H34: 0.0196 | I34: 1.89E-02 | J34: 1460033.727 | K34: 338 | L34: =Dichte(K34,J34) -> 1.03908 | M34: =VLOOKUP(J34*0.00001,'Datenbank Werte '!$A$1:$B$500,2,TRUE)*0.000001 -> 9.71E-06 | N34: 9.35E-06 | O34: 8.99E-02 | P34: =Tabelle76[[#This Row],['[kg/h']]]/Tabelle76[[#This Row],['[kg/m^3']4]] -> 785.05 | Q34: 60.04 | R34: =Tabelle76[[#This Row],['[m/s']]]/VLOOKUP(J34*0.00001,'Datenbank Werte '!$A$1:$C$500,3,TRUE) -> 0.04 | S34: 1.2847E+05 | T34: 2.0E-03 | U34: =Rohrreibungszahl(Tabelle76[[#This Row],['[-']]],Tabelle76[[#This Row],['[-']4]],Tabelle76[[#This Row],['[-']3]],Tabelle76[[#This Row],['[m']2]],Tabelle76[[#This Row],['[m']3]]) -> 2.47E-02 | X34: =IF(Tabelle76[[#This Row],['[-']2]]>0,Tabelle76[[#This Row],['[-']2]]*(Tabelle76[[#This Row],['[kg/m^3']]]/2)*Tabelle76[[#This Row],['[m/s']]]^2,Druckverlust(Tabelle76[[#This Row],[Spalte1]],C34,U34,V34,P34,L34,O34,J34,K34,Q34,D34,E34)) -> 695.00 | Y34: 0.006949986443 | Z34: 14.60 | AA34: 14.59 | AB34: 695.00 | AC34: =SUM($AB$10:AB34) -> 540661.27
B35: 90°Winkel | C35: Rohr | E35: 0.02 | F35: 4.00E-05 | G35: 70.56 | H35: 0.0196 | I35: 1.89E-02 | J35: 1459338.729 | K35: 338 | L35: =Dichte(K35,J35) -> 1.03859 | M35: =VLOOKUP(J35*0.00001,'Datenbank Werte '!$A$1:$B$500,2,TRUE)*0.000001 -> 9.71E-06 | N35: 9.35E-06 | O35: 8.99E-02 | P35: =Tabelle76[[#This Row],['[kg/h']]]/Tabelle76[[#This Row],['[kg/m^3']4]] -> 785.05 | Q35: 60.07 | R35: =Tabelle76[[#This Row],['[m/s']]]/VLOOKUP(J35*0.00001,'Datenbank Werte '!$A$1:$C$500,3,TRUE) -> 0.04 | S35: 1.2847E+05 | T35: 2.0E-03 | U35: =Rohrreibungszahl(Tabelle76[[#This Row],['[-']]],Tabelle76[[#This Row],['[-']4]],Tabelle76[[#This Row],['[-']3]],Tabelle76[[#This Row],['[m']2]],Tabelle76[[#This Row],['[m']3]]) -> 2.47E-02 | W35: 0.15 | X35: =IF(Tabelle76[[#This Row],['[-']2]]>0,Tabelle76[[#This Row],['[-']2]]*(Tabelle76[[#This Row],['[kg/m^3']]]/2)*Tabelle76[[#This Row],['[m/s']]]^2,Druckverlust(Tabelle76[[#This Row],[Spalte1]],C35,U35,V35,P35,L35,O35,J35,K35,Q35,D35,E35)) -> 281.08 | Y35: 0.00281079389 | Z35: 14.59 | AA35: 14.59 | AB35: 281.08 | AC35: =SUM($AB$10:AB35) -> 540942.35
C36: Rohr | D36: 0.2 | E36: 0.02 | F36: 4.00E-05 | G36: 70.56 | H36: 0.0196 | I36: 1.89E-02 | J36: 1459057.649 | K36: 338 | L36: =Dichte(K36,J36) -> 1.03839 | M36: =VLOOKUP(J36*0.00001,'Datenbank Werte '!$A$1:$B$500,2,TRUE)*0.000001 -> 9.71E-06 | N36: 9.35E-06 | O36: 8.99E-02 | P36: =Tabelle76[[#This Row],['[kg/h']]]/Tabelle76[[#This Row],['[kg/m^3']4]] -> 785.05 | Q36: 60.08 | R36: =Tabelle76[[#This Row],['[m/s']]]/VLOOKUP(J36*0.00001,'Datenbank Werte '!$A$1:$C$500,3,TRUE) -> 0.04 | S36: 1.2847E+05 | T36: 2.0E-03 | U36: =Rohrreibungszahl(Tabelle76[[#This Row],['[-']]],Tabelle76[[#This Row],['[-']4]],Tabelle76[[#This Row],['[-']3]],Tabelle76[[#This Row],['[m']2]],Tabelle76[[#This Row],['[m']3]]) -> 2.47E-02 | X36: =IF(Tabelle76[[#This Row],['[-']2]]>0,Tabelle76[[#This Row],['[-']2]]*(Tabelle76[[#This Row],['[kg/m^3']]]/2)*Tabelle76[[#This Row],['[m/s']]]^2,Druckverlust(Tabelle76[[#This Row],[Spalte1]],C36,U36,V36,P36,L36,O36,J36,K36,Q36,D36,E36)) -> 463.64 | Y36: 0.004636399528 | Z36: 14.59 | AA36: 14.59 | AB36: 463.64 | AC36: =SUM($AB$10:AB36) -> 541405.99
B37: Ergebnis | AB37: Druckverlust gesamt in bar | AC37: =SUBTOTAL(104,Tabelle76['[Pa']4])*0.00001 -> 5.414059905

Sheet Datenbank Werte
A1: Pressure (bar) | B1: Viscosity (uPa*s) | C1: Sound Spd, (m/s)
A2: 0 | B2: 9.707 | C2: 1397.6
A3: 1 | B3: 9.7074 | C3: 1398.4
A4: 2 | B4: 9.7077 | C4: 1399.2
A5: 3 | B5: 9.7081 | C5: 1400
A6: 4 | B6: 9.7084 | C6: 1400.8
A7: 5 | B7: 9.7088 | C7: 1401.6
A8: 6 | B8: 9.7092 | C8: 1402.4
A9: 7 | B9: 9.7096 | C9: 1403.2
A10: 8 | B10: 9.71 | C10: 1404
A11: 9 | B11: 9.7104 | C11: 1404.8
A12: 10 | B12: 9.7109 | C12: 1405.6
A13: 11 | B13: 9.7113 | C13: 1406.5
A14: 12 | B14: 9.7118 | C14: 1407.3
A15: 13 | B15: 9.7123 | C15: 1408.1
A16: 14 | B16: 9.7128 | C16: 1408.9
A17: 15 | B17: 9.7133 | C17: 1409.7
A18: 16 | B18: 9.7138 | C18: 1410.5
A19: 17 | B19: 9.7143 | C19: 1411.3
A20: 18 | B20: 9.7149 | C20: 1412.1
A21: 19 | B21: 9.7154 | C21: 1412.9
A22: 20 | B22: 9.716 | C22: 1413.7
A23: 21 | B23: 9.7166 | C23: 1414.5
A24: 22 | B24: 9.7171 | C24: 1415.4
A25: 23 | B25: 9.7177 | C25: 1416.2
A26: 24 | B26: 9.7184 | C26: 1417
A27: 25 | B27: 9.719 | C27: 1417.8
A28: 26 | B28: 9.7196 | C28: 1418.6
A29: 27 | B29: 9.7203 | C29: 1419.4
A30: 28 | B30: 9.7209 | C30: 1420.2
A31: 29 | B31: 9.7216 | C31: 1421
A32: 30 | B32: 9.7223 | C32: 1421.8
A33: 31 | B33: 9.723 | C33: 1422.6
A34: 32 | B34: 9.7237 | C34: 1423.5
A35: 33 | B35: 9.7244 | C35: 1424.3
A36: 34 | B36: 9.7251 | C36: 1425.1
A37: 35 | B37: 9.7258 | C37: 1425.9
A38: 36 | B38: 9.7266 | C38: 1426.7
A39: 37 | B39: 9.7273 | C39: 1427.5
A40: 38 | B40: 9.7281 | C40: 1428.3
A41: 39 | B41: 9.7289 | C41: 1429.1
A42: 40 | B42: 9.7297 | C42: 1430
A43: 41 | B43: 9.7305 | C43: 1430.8
A44: 42 | B44: 9.7313 | C44: 1431.6
A45: 43 | B45: 9.7321 | C45: 1432.4
A46: 44 | B46: 9.733 | C46: 1433.2
A47: 45 | B47: 9.7338 | C47: 1434
A48: 46 | B48: 9.7347 | C48: 1434.8
A49: 47 | B49: 9.7356 | C49: 1435.6
A50: 48 | B50: 9.7364 | C50: 1436.5
A51: 49 | B51: 9.7373 | C51: 1437.3
A52: 50 | B52: 9.7382 | C52: 1438.1
A53: 51 | B53: 9.7391 | C53: 1438.9
A54: 52 | B54: 9.7401 | C54: 1439.7
A55: 53 | B55: 9.741 | C55: 1440.5
A56: 54 | B56: 9.742 | C56: 1441.3
A57: 55 | B57: 9.7429 | C57: 1442.2
A58: 56 | B58: 9.7439 | C58: 1443
A59: 57 | B59: 9.7449 | C59: 1443.8
A60: 58 | B60: 9.7458 | C60: 1444.6
A61: 59 | B61: 9.7468 | C61: 1445.4
A62: 60 | B62: 9.7479 | C62: 1446.2
A63: 61 | B63: 9.7489 | C63: 1447.1
A64: 62 | B64: 9.7499 | C64: 1447.9
A65: 63 | B65: 9.7509 | C65: 1448.7
A66: 64 | B66: 9.752 | C66: 1449.5
A67: 65 | B67: 9.7531 | C67: 1450.3
A68: 66 | B68: 9.7541 | C68: 1451.1
A69: 67 | B69: 9.7552 | C69: 1451.9
A70: 68 | B70: 9.7563 | C70: 1452.8
A71: 69 | B71: 9.7574 | C71: 1453.6
A72: 70 | B72: 9.7585 | C72: 1454.4
A73: 71 | B73: 9.7596 | C73: 1455.2
A74: 72 | B74: 9.7608 | C74: 1456
A75: 73 | B75: 9.7619 | C75: 1456.9
A76: 74 | B76: 9.7631 | C76: 1457.7
A77: 75 | B77: 9.7642 | C77: 1458.5
A78: 76 | B78: 9.7654 | C78: 1459.3
A79: 77 | B79: 9.7666 | C79: 1460.1
A80: 78 | B80: 9.7678 | C80: 1460.9
A81: 79 | B81: 9.769 | C81: 1461.8
A82: 80 | B82: 9.7702 | C82: 1462.6
A83: 81 | B83: 9.7714 | C83: 1463.4
A84: 82 | B84: 9.7726 | C84: 1464.2
A85: 83 | B85: 9.7739 | C85: 1465
A86: 84 | B86: 9.7751 | C86: 1465.9
A87: 85 | B87: 9.7764 | C87: 1466.7
A88: 86 | B88: 9.7776 | C88: 1467.5
A89: 87 | B89: 9.7789 | C89: 1468.3
A90: 88 | B90: 9.7802 | C90: 1469.1
A91: 89 | B91: 9.7815 | C91: 1469.9
A92: 90 | B92: 9.7828 | C92: 1470.8
A93: 91 | B93: 9.7841 | C93: 1471.6
A94: 92 | B94: 9.7854 | C94: 1472.4
A95: 93 | B95: 9.7868 | C95: 1473.2
A96: 94 | B96: 9.7881 | C96: 1474
A97: 95 | B97: 9.7895 | C97: 1474.9
A98: 96 | B98: 9.7908 | C98: 1475.7
A99: 97 | B99: 9.7922 | C99: 1476.5
A100: 98 | B100: 9.7936 | C100: 1477.3
A101: 99 | B101: 9.795 | C101: 1478.2
A102: 100 | B102: 9.7964 | C102: 1479
A103: 101 | B103: 9.7978 | C103: 1479.8
A104: 102 | B104: 9.7992 | C104: 1480.6
A105: 103 | B105: 9.8006 | C105: 1481.4
A106: 104 | B106: 9.8021 | C106: 1482.3
A107: 105 | B107: 9.8035 | C107: 1483.1
A108: 106 | B108: 9.805 | C108: 1483.9
A109: 107 | B109: 9.8064 | C109: 1484.7
A110: 108 | B110: 9.8079 | C110: 1485.5
A111: 109 | B111: 9.8094 | C111: 1486.4
A112: 110 | B112: 9.8108 | C112: 1487.2
A113: 111 | B113: 9.8123 | C113: 1488
A114: 112 | B114: 9.8138 | C114: 1488.8
A115: 113 | B115: 9.8154 | C115: 1489.7
A116: 114 | B116: 9.8169 | C116: 1490.5
A117: 115 | B117: 9.8184 | C117: 1491.3
A118: 116 | B118: 9.82 | C118: 1492.1
A119: 117 | B119: 9.8215 | C119: 1492.9
A120: 118 | B120: 9.8231 | C120: 1493.8
A121: 119 | B121: 9.8246 | C121: 1494.6
A122: 120 | B122: 9.8262 | C122: 1495.4
A123: 121 | B123: 9.8278 | C123: 1496.2
A124: 122 | B124: 9.8294 | C124: 1497.1
A125: 123 | B125: 9.831 | C125: 1497.9
A126: 124 | B126: 9.8326 | C126: 1498.7
A127: 125 | B127: 9.8342 | C127: 1499.5
A128: 126 | B128: 9.8358 | C128: 1500.4
A129: 127 | B129: 9.8374 | C129: 1501.2
A130: 128 | B130: 9.8391 | C130: 1502
A131: 129 | B131: 9.8407 | C131: 1502.8
A132: 130 | B132: 9.8424 | C132: 1503.7
A133: 131 | B133: 9.8441 | C133: 1504.5
A134: 132 | B134: 9.8457 | C134: 1505.3
A135: 133 | B135: 9.8474 | C135: 1506.1
A136: 134 | B136: 9.8491 | C136: 1506.9
A137: 135 | B137: 9.8508 | C137: 1507.8
A138: 136 | B138: 9.8525 | C138: 1508.6
A139: 137 | B139: 9.8542 | C139: 1509.4
A140: 138 | B140: 9.8559 | C140: 1510.2
A141: 139 | B141: 9.8577 | C141: 1511.1
A142: 140 | B142: 9.8594 | C142: 1511.9
A143: 141 | B143: 9.8611 | C143: 1512.7
A144: 142 | B144: 9.8629 | C144: 1513.5
A145: 143 | B145: 9.8647 | C145: 1514.4
A146: 144 | B146: 9.8664 | C146: 1515.2
A147: 145 | B147: 9.8682 | C147: 1516
A148: 146 | B148: 9.87 | C148: 1516.8
A149: 147 | B149: 9.8718 | C149: 1517.7
A150: 148 | B150: 9.8736 | C150: 1518.5
A151: 149 | B151: 9.8754 | C151: 1519.3
A152: 150 | B152: 9.8772 | C152: 1520.1
A153: 151 | B153: 9.879 | C153: 1521
A154: 152 | B154: 9.8808 | C154: 1521.8
A155: 153 | B155: 9.8827 | C155: 1522.6
A156: 154 | B156: 9.8845 | C156: 1523.4
A157: 155 | B157: 9.8864 | C157: 1524.3
A158: 156 | B158: 9.8882 | C158: 1525.1
A159: 157 | B159: 9.8901 | C159: 1525.9
A160: 158 | B160: 9.892 | C160: 1526.7
A161: 159 | B161: 9.8939 | C161: 1527.6
A162: 160 | B162: 9.8958 | C162: 1528.4
A163: 161 | B163: 9.8976 | C163: 1529.2
A164: 162 | B164: 9.8996 | C164: 1530
A165: 163 | B165: 9.9015 | C165: 1530.9
A166: 164 | B166: 9.9034 | C166: 1531.7
A167: 165 | B167: 9.9053 | C167: 1532.5
A168: 166 | B168: 9.9072 | C168: 1533.3
A169: 167 | B169: 9.9092 | C169: 1534.2
A170: 168 | B170: 9.9111 | C170: 1535
A171: 169 | B171: 9.9131 | C171: 1535.8
A172: 170 | B172: 9.915 | C172: 1536.6
A173: 171 | B173: 9.917 | C173: 1537.5
A174: 172 | B174: 9.919 | C174: 1538.3
A175: 173 | B175: 9.921 | C175: 1539.1
A176: 174 | B176: 9.923 | C176: 1539.9
A177: 175 | B177: 9.925 | C177: 1540.8
A178: 176 | B178: 9.927 | C178: 1541.6
A179: 177 | B179: 9.929 | C179: 1542.4
A180: 178 | B180: 9.931 | C180: 1543.2
A181: 179 | B181: 9.933 | C181: 1544.1
A182: 180 | B182: 9.935 | C182: 1544.9
A183: 181 | B183: 9.9371 | C183: 1545.7
A184: 182 | B184: 9.9391 | C184: 1546.5
A185: 183 | B185: 9.9412 | C185: 1547.4
A186: 184 | B186: 9.9432 | C186: 1548.2
A187: 185 | B187: 9.9453 | C187: 1549
A188: 186 | B188: 9.9474 | C188: 1549.9
A189: 187 | B189: 9.9494 | C189: 1550.7
A190: 188 | B190: 9.9515 | C190: 1551.5
A191: 189 | B191: 9.9536 | C191: 1552.3
A192: 190 | B192: 9.9557 | C192: 1553.2
A193: 191 | B193: 9.9578 | C193: 1554
A194: 192 | B194: 9.9599 | C194: 1554.8
A195: 193 | B195: 9.962 | C195: 1555.6
A196: 194 | B196: 9.9642 | C196: 1556.5
A197: 195 | B197: 9.9663 | C197: 1557.3
A198: 196 | B198: 9.9684 | C198: 1558.1
A199: 197 | B199: 9.9706 | C199: 1558.9
A200: 198 | B200: 9.9727 | C200: 1559.8
... 303 more rows
